Body Name,Body,Organisational unit,Service division,Expenditure category,Date,Transacton number,Net amount,Supplier,Narrative
Tendring DC,http://statistics.data.gov.uk/id/local-authority-district/22UN,Corporate Services,1320 - Print Unit Service Unit,4302 - External Print Unit Expenses,22/05/2012,2096594-1,105,2112199 - Adcal Labels Ltd,Job 037
Tendring DC,http://statistics.data.gov.uk/id/local-authority-district/22UN,Corporate Services,6740 - Careline,3060 - Running Costs - Diesel,15/05/2012,1048593-1,353.95,2101825 - Allstar Business Solutions Ltd,FUEL CARDS-DEC 2011
Tendring DC,http://statistics.data.gov.uk/id/local-authority-district/22UN,Corporate Services,6740 - Careline,3060 - Running Costs - Diesel,15/05/2012,1048594-1,434.54,2101825 - Allstar Business Solutions Ltd,FUEL CARDS NOVEMBER
Tendring DC,http://statistics.data.gov.uk/id/local-authority-district/22UN,Corporate Services,6740 - Careline,3060 - Running Costs - Diesel,15/05/2012,1048595-1,479.04,2101825 - Allstar Business Solutions Ltd,FUEL CARDS MARCH
Tendring DC,http://statistics.data.gov.uk/id/local-authority-district/22UN,Corporate Services,6740 - Careline,3060 - Running Costs - Diesel,15/05/2012,1048596-1,576.31,2101825 - Allstar Business Solutions Ltd,FUEL CARDS
Tendring DC,http://statistics.data.gov.uk/id/local-authority-district/22UN,Corporate Services,1950 - Transport,3062 - Running Costs - Petrol,08/05/2012,2096102-1,199.17,2101825 - Allstar Business Solutions Ltd,Courier Petrol
Tendring DC,http://statistics.data.gov.uk/id/local-authority-district/22UN,Corporate Services,7020 - SSCF - Crime Reduction,4900 - Grants,08/05/2012,2096240-1,166.67,2109992 - Anglian Community Enterprise,Advertising Logos
Tendring DC,http://statistics.data.gov.uk/id/local-authority-district/22UN,Corporate Services,1320 - Print Unit Service Unit,4302 - External Print Unit Expenses,08/05/2012,2096242-1,40,2100069 - Autoprint,
Tendring DC,http://statistics.data.gov.uk/id/local-authority-district/22UN,Corporate Services,1880 - Office Accommodation Expenses,4080 - Materials & Consumables,01/05/2012,1048415-1,13.28,2100099 - B & Q Trade Account,B&Q
Tendring DC,http://statistics.data.gov.uk/id/local-authority-district/22UN,Corporate Services,1880 - Office Accommodation Expenses,4080 - Materials & Consumables,15/05/2012,2096400-1,96.64,REDACTED PERSONAL DATA,REDACTED PERSONAL DATA
Tendring DC,http://statistics.data.gov.uk/id/local-authority-district/22UN,Corporate Services,1330 - Human Resources Service Unit,4300 - Printing & Stationery,08/05/2012,1048453-1,151.44,2100111 - Banner Business Supplies Ltd,BANNER
Tendring DC,http://statistics.data.gov.uk/id/local-authority-district/22UN,Corporate Services,1100 - Corporate Services Manager Service Unit,4300 - Printing & Stationery,29/05/2012,2096799-1,50.48,REDACTED PERSONAL DATA,REDACTED PERSONAL DATA
Tendring DC,http://statistics.data.gov.uk/id/local-authority-district/22UN,Corporate Services,6480 - Emergency Planning,4597 - Hired Services - Payments to Contractors,22/05/2012,2096773-1,210,2112241 - BCE (Colchester) Ltd,BCE Ltd Gas Explosion
Tendring DC,http://statistics.data.gov.uk/id/local-authority-district/22UN,Corporate Services,7746 - Town Centres & Jaywick Business Support,5500 - Miscellaneous Expenses,29/05/2012,2097012-1,360,2112273 - BRC Trading Ltd,Retail Symposium
Tendring DC,http://statistics.data.gov.uk/id/local-authority-district/22UN,Corporate Services,1880 - Office Accommodation Expenses,2100 - Building Repairs,22/05/2012,2096532-1,375,2100117 - Brian Birt Carpets Ltd,Brian Birt Carpets
Tendring DC,http://statistics.data.gov.uk/id/local-authority-district/22UN,Corporate Services,1880 - Office Accommodation Expenses,2304 - Energy Costs - Electricity,01/05/2012,2095886-1,136.34,2100197 - British Gas Trading Ltd,British Gas
Tendring DC,http://statistics.data.gov.uk/id/local-authority-district/22UN,Corporate Services,1860 - Depots General,2304 - Energy Costs - Electricity,01/05/2012,2095886-10,201.69,2100197 - British Gas Trading Ltd,British Gas
Tendring DC,http://statistics.data.gov.uk/id/local-authority-district/22UN,Corporate Services,1880 - Office Accommodation Expenses,2304 - Energy Costs - Electricity,01/05/2012,2095886-2,68.45,2100197 - British Gas Trading Ltd,British Gas
Tendring DC,http://statistics.data.gov.uk/id/local-authority-district/22UN,Corporate Services,1860 - Depots General,2304 - Energy Costs - Electricity,01/05/2012,2095886-3,55.93,2100197 - British Gas Trading Ltd,British Gas
Tendring DC,http://statistics.data.gov.uk/id/local-authority-district/22UN,Corporate Services,1880 - Office Accommodation Expenses,2304 - Energy Costs - Electricity,01/05/2012,2095886-4,105.59,2100197 - British Gas Trading Ltd,British Gas
Tendring DC,http://statistics.data.gov.uk/id/local-authority-district/22UN,Corporate Services,1880 - Office Accommodation Expenses,2304 - Energy Costs - Electricity,01/05/2012,2095886-5,1352.98,2100197 - British Gas Trading Ltd,British Gas
Tendring DC,http://statistics.data.gov.uk/id/local-authority-district/22UN,Corporate Services,1860 - Depots General,2304 - Energy Costs - Electricity,01/05/2012,2095886-6,538.83,2100197 - British Gas Trading Ltd,British Gas
Tendring DC,http://statistics.data.gov.uk/id/local-authority-district/22UN,Corporate Services,1880 - Office Accommodation Expenses,2304 - Energy Costs - Electricity,01/05/2012,2095886-7,1705.24,2100197 - British Gas Trading Ltd,British Gas
Tendring DC,http://statistics.data.gov.uk/id/local-authority-district/22UN,Corporate Services,1880 - Office Accommodation Expenses,2304 - Energy Costs - Electricity,01/05/2012,2095886-8,817.91,2100197 - British Gas Trading Ltd,British Gas
Tendring DC,http://statistics.data.gov.uk/id/local-authority-district/22UN,Corporate Services,1880 - Office Accommodation Expenses,2304 - Energy Costs - Electricity,01/05/2012,2095886-9,797.91,2100197 - British Gas Trading Ltd,British Gas
Tendring DC,http://statistics.data.gov.uk/id/local-authority-district/22UN,Corporate Services,6740 - Careline,2304 - Energy Costs - Electricity,01/05/2012,2095998-1,59.71,REDACTED PERSONAL DATA,REDACTED PERSONAL DATA
Tendring DC,http://statistics.data.gov.uk/id/local-authority-district/22UN,Corporate Services,1880 - Office Accommodation Expenses,2304 - Energy Costs - Electricity,22/05/2012,2096547-1,1597.21,2100197 - British Gas Trading Ltd,British Gas
Tendring DC,http://statistics.data.gov.uk/id/local-authority-district/22UN,Corporate Services,1860 - Depots General,2304 - Energy Costs - Electricity,22/05/2012,2096547-10,186.5,2100197 - British Gas Trading Ltd,British Gas
Tendring DC,http://statistics.data.gov.uk/id/local-authority-district/22UN,Corporate Services,1880 - Office Accommodation Expenses,2304 - Energy Costs - Electricity,22/05/2012,2096547-11,1725.13,2100197 - British Gas Trading Ltd,British Gas
Tendring DC,http://statistics.data.gov.uk/id/local-authority-district/22UN,Corporate Services,1880 - Office Accommodation Expenses,2304 - Energy Costs - Electricity,22/05/2012,2096547-12,743.86,2100197 - British Gas Trading Ltd,British Gas
Tendring DC,http://statistics.data.gov.uk/id/local-authority-district/22UN,Corporate Services,1880 - Office Accommodation Expenses,2304 - Energy Costs - Electricity,22/05/2012,2096547-13,-1002.58,2100197 - British Gas Trading Ltd,British Gas
Tendring DC,http://statistics.data.gov.uk/id/local-authority-district/22UN,Corporate Services,1880 - Office Accommodation Expenses,2304 - Energy Costs - Electricity,22/05/2012,2096547-14,-70.76,2100197 - British Gas Trading Ltd,British Gas
Tendring DC,http://statistics.data.gov.uk/id/local-authority-district/22UN,Corporate Services,1880 - Office Accommodation Expenses,2304 - Energy Costs - Electricity,22/05/2012,2096547-2,140.67,2100197 - British Gas Trading Ltd,British Gas
Tendring DC,http://statistics.data.gov.uk/id/local-authority-district/22UN,Corporate Services,1880 - Office Accommodation Expenses,2304 - Energy Costs - Electricity,22/05/2012,2096547-3,148.35,2100197 - British Gas Trading Ltd,British Gas
Tendring DC,http://statistics.data.gov.uk/id/local-authority-district/22UN,Corporate Services,1880 - Office Accommodation Expenses,2304 - Energy Costs - Electricity,22/05/2012,2096547-4,1659.06,2100197 - British Gas Trading Ltd,British Gas
Tendring DC,http://statistics.data.gov.uk/id/local-authority-district/22UN,Corporate Services,1860 - Depots General,2304 - Energy Costs - Electricity,22/05/2012,2096547-5,510.49,2100197 - British Gas Trading Ltd,British Gas
Tendring DC,http://statistics.data.gov.uk/id/local-authority-district/22UN,Corporate Services,1880 - Office Accommodation Expenses,2304 - Energy Costs - Electricity,22/05/2012,2096547-6,1419.41,2100197 - British Gas Trading Ltd,British Gas
Tendring DC,http://statistics.data.gov.uk/id/local-authority-district/22UN,Corporate Services,1880 - Office Accommodation Expenses,2304 - Energy Costs - Electricity,22/05/2012,2096547-7,129.77,2100197 - British Gas Trading Ltd,British Gas
Tendring DC,http://statistics.data.gov.uk/id/local-authority-district/22UN,Corporate Services,1860 - Depots General,2304 - Energy Costs - Electricity,22/05/2012,2096547-8,50.53,2100197 - British Gas Trading Ltd,British Gas
Tendring DC,http://statistics.data.gov.uk/id/local-authority-district/22UN,Corporate Services,1880 - Office Accommodation Expenses,2304 - Energy Costs - Electricity,22/05/2012,2096547-9,104.27,2100197 - British Gas Trading Ltd,British Gas
Tendring DC,http://statistics.data.gov.uk/id/local-authority-district/22UN,Corporate Services,7000 - CCTV,4718 - Fixed Communication Lines,01/05/2012,1048410-1,132.98,2100168 - British Telecommunications plc,BT BILL HAR/DVC
Tendring DC,http://statistics.data.gov.uk/id/local-authority-district/22UN,Corporate Services,7716 - Jaywick Strategic Leadership group initiatives,4710 - Telephones - Charges,22/05/2012,2096585-1,45.09,2100168 - British Telecommunications plc,01255 475918
Tendring DC,http://statistics.data.gov.uk/id/local-authority-district/22UN,Corporate Services,7716 - Jaywick Strategic Leadership group initiatives,4710 - Telephones - Charges,22/05/2012,2096586-1,51.72,2100168 - British Telecommunications plc,01255 428090
Tendring DC,http://statistics.data.gov.uk/id/local-authority-district/22UN,Corporate Services,7716 - Jaywick Strategic Leadership group initiatives,4710 - Telephones - Charges,22/05/2012,2096587-1,49.59,2106306 - British Telecommunications plc,01255 421410
Tendring DC,http://statistics.data.gov.uk/id/local-authority-district/22UN,Corporate Services,1760 - IT Direct Service Costs,4715 - Data Communication Charge,29/05/2012,1048711-1,19659.92,2100119 - BT Global Services,BT GLOBAL SVS
Tendring DC,http://statistics.data.gov.uk/id/local-authority-district/22UN,Corporate Services,5360 - HRA - Sheltered Units,2700 - Cleaning Materials,01/05/2012,2096004-1,124.08,2101624 - Bunzl,Cleaning Products
Tendring DC,http://statistics.data.gov.uk/id/local-authority-district/22UN,Corporate Services,1320 - Print Unit Service Unit,4302 - External Print Unit Expenses,22/05/2012,2096593-1,10,2104320 - C3 Imaging Colchester,Job 052
Tendring DC,http://statistics.data.gov.uk/id/local-authority-district/22UN,Corporate Services,1880 - Office Accommodation Expenses,2100 - Building Repairs,01/05/2012,1048414-1,88,2100858 - Chelmer Electrical Ltd,MALDON ELECTRICAL
Tendring DC,http://statistics.data.gov.uk/id/local-authority-district/22UN,Corporate Services,7040 - Civic Ceremonial Expenses,4100 - Contract Catering,22/05/2012,2096764-1,600,REDACTED PERSONAL DATA,REDACTED PERSONAL DATA
Tendring DC,http://statistics.data.gov.uk/id/local-authority-district/22UN,Corporate Services,1320 - Print Unit Service Unit,4400 - Maintenance Under Service Agreements,22/05/2012,2096596-1,195,2100353 - Consensus Guillotine Engineering Ltd,Guillotine Service
Tendring DC,http://statistics.data.gov.uk/id/local-authority-district/22UN,Corporate Services,7400 - Jaywick Enterprise Centre (Starter Units),2100 - Building Repairs,29/05/2012,2097013-1,157.94,2100314 - Cooper & Brome (Plumbing & Heating) Ltd,JEC Boiler Parts & Repairs
Tendring DC,http://statistics.data.gov.uk/id/local-authority-district/22UN,Corporate Services,1860 - Depots General,2308 - Energy Costs - Gas (Including LPG),01/05/2012,2095883-1,292.2,2104620 - Corona Energy Retail 4 Limited,Corona Energy
Tendring DC,http://statistics.data.gov.uk/id/local-authority-district/22UN,Corporate Services,1880 - Office Accommodation Expenses,2308 - Energy Costs - Gas (Including LPG),01/05/2012,2095883-2,79.61,2104620 - Corona Energy Retail 4 Limited,Corona Energy
Tendring DC,http://statistics.data.gov.uk/id/local-authority-district/22UN,Corporate Services,1880 - Office Accommodation Expenses,2308 - Energy Costs - Gas (Including LPG),01/05/2012,2095883-3,1817.72,2104620 - Corona Energy Retail 4 Limited,Corona Energy
Tendring DC,http://statistics.data.gov.uk/id/local-authority-district/22UN,Corporate Services,1880 - Office Accommodation Expenses,2308 - Energy Costs - Gas (Including LPG),01/05/2012,2095883-4,14.1,2104620 - Corona Energy Retail 4 Limited,Corona Energy
Tendring DC,http://statistics.data.gov.uk/id/local-authority-district/22UN,Corporate Services,1880 - Office Accommodation Expenses,2308 - Energy Costs - Gas (Including LPG),01/05/2012,2095883-5,1228.49,2104620 - Corona Energy Retail 4 Limited,Corona Energy
Tendring DC,http://statistics.data.gov.uk/id/local-authority-district/22UN,Corporate Services,6160 - Princes Theatre,2308 - Energy Costs - Gas (Including LPG),01/05/2012,2095883-6,136.5,2104620 - Corona Energy Retail 4 Limited,Corona Energy
Tendring DC,http://statistics.data.gov.uk/id/local-authority-district/22UN,Corporate Services,1880 - Office Accommodation Expenses,2100 - Building Repairs,01/05/2012,1048412-1,150,2108384 - DC Drains & Plumbing Services,DC DRAINS
Tendring DC,http://statistics.data.gov.uk/id/local-authority-district/22UN,Corporate Services,7400 - Jaywick Enterprise Centre (Starter Units),2100 - Building Repairs,08/05/2012,1048474-1,137,2108384 - DC Drains & Plumbing Services,REPLACEMENT TAPS JEC
Tendring DC,http://statistics.data.gov.uk/id/local-authority-district/22UN,Corporate Services,1880 - Office Accommodation Expenses,2100 - Building Repairs,01/05/2012,2095869-1,117.49,2108384 - DC Drains & Plumbing Services,D C Drains
Tendring DC,http://statistics.data.gov.uk/id/local-authority-district/22UN,Corporate Services,1880 - Office Accommodation Expenses,2100 - Building Repairs,01/05/2012,2095870-1,77.48,2108384 - DC Drains & Plumbing Services,DC Drains
Tendring DC,http://statistics.data.gov.uk/id/local-authority-district/22UN,Corporate Services,1880 - Office Accommodation Expenses,2100 - Building Repairs,01/05/2012,2095871-1,156.97,2108384 - DC Drains & Plumbing Services,D C Drains
Tendring DC,http://statistics.data.gov.uk/id/local-authority-district/22UN,Corporate Services,7400 - Jaywick Enterprise Centre (Starter Units),4350 - Photocopier Hire,15/05/2012,2096351-1,66.96,2110757 - Digital Copier Systems (Eastern) Ltd,Quarterly Mar - June
Tendring DC,http://statistics.data.gov.uk/id/local-authority-district/22UN,Corporate Services,1880 - Office Accommodation Expenses,2304 - Energy Costs - Electricity,15/05/2012,2096399-1,4810.88,REDACTED PERSONAL DATA,REDACTED PERSONAL DATA
Tendring DC,http://statistics.data.gov.uk/id/local-authority-district/22UN,Corporate Services,1100 - Corporate Services Manager Service Unit,4880 - Subscriptions Paid,15/05/2012,2096460-1,159,2111896 - Emap Ltd,Local Government Chronicle
Tendring DC,http://statistics.data.gov.uk/id/local-authority-district/22UN,Corporate Services,7746 - Town Centres & Jaywick Business Support,2304 - Energy Costs - Electricity,15/05/2012,1048576-1,76.23,2107644 - Eon,APRIL USAGE
Tendring DC,http://statistics.data.gov.uk/id/local-authority-district/22UN,Corporate Services,6885 - Public Halls-Jaywick Community Centre,2304 - Energy Costs - Electricity,29/05/2012,2096893-1,722.22,2107644 - Eon,Feb - May Usage
Tendring DC,http://statistics.data.gov.uk/id/local-authority-district/22UN,Corporate Services,7400 - Jaywick Enterprise Centre (Starter Units),2304 - Energy Costs - Electricity,29/05/2012,2097009-1,501.45,2107644 - Eon,JEC Usage Feb - May 12
Tendring DC,http://statistics.data.gov.uk/id/local-authority-district/22UN,Corporate Services,7360 - Community Rail Partnership,4900 - Grants,01/05/2012,2095937-1,2100,2100498 - Essex County Council,
Tendring DC,http://statistics.data.gov.uk/id/local-authority-district/22UN,Corporate Services,7040 - Civic Ceremonial Expenses,4100 - Contract Catering,15/05/2012,2096332-1,200,2100429 - Essex County Council,
Tendring DC,http://statistics.data.gov.uk/id/local-authority-district/22UN,Corporate Services,7025 - CDRP Support,4900 - Grants,29/05/2012,2097007-1,2500,2100530 - Essex Probation,IOM Funding
Tendring DC,http://statistics.data.gov.uk/id/local-authority-district/22UN,Corporate Services,7400 - Jaywick Enterprise Centre (Starter Units),2704 - Building Cleaning,15/05/2012,1048584-1,120,2110579 - Fields Total Cleaning,APRIL CLEAN @ JEC
Tendring DC,http://statistics.data.gov.uk/id/local-authority-district/22UN,Corporate Services,1880 - Office Accommodation Expenses,4632 - Security,01/05/2012,1048413-1,80,2100546 - GCS Alarms,GCS-WEELEY
Tendring DC,http://statistics.data.gov.uk/id/local-authority-district/22UN,Corporate Services,1880 - Office Accommodation Expenses,4632 - Security,08/05/2012,1048454-1,530,2100546 - GCS Alarms,GCS
Tendring DC,http://statistics.data.gov.uk/id/local-authority-district/22UN,Corporate Services,1880 - Office Accommodation Expenses,4632 - Security,08/05/2012,1048454-10,530,2100546 - GCS Alarms,GCS
Tendring DC,http://statistics.data.gov.uk/id/local-authority-district/22UN,Corporate Services,1880 - Office Accommodation Expenses,4632 - Security,08/05/2012,1048454-2,530,2100546 - GCS Alarms,GCS
Tendring DC,http://statistics.data.gov.uk/id/local-authority-district/22UN,Corporate Services,1880 - Office Accommodation Expenses,4632 - Security,08/05/2012,1048454-3,235,2100546 - GCS Alarms,GCS
Tendring DC,http://statistics.data.gov.uk/id/local-authority-district/22UN,Corporate Services,1880 - Office Accommodation Expenses,4632 - Security,08/05/2012,1048454-4,235,2100546 - GCS Alarms,GCS
Tendring DC,http://statistics.data.gov.uk/id/local-authority-district/22UN,Corporate Services,1860 - Depots General,4632 - Security,08/05/2012,1048454-5,530,2100546 - GCS Alarms,GCS
Tendring DC,http://statistics.data.gov.uk/id/local-authority-district/22UN,Corporate Services,1880 - Office Accommodation Expenses,4632 - Security,08/05/2012,1048454-6,235,2100546 - GCS Alarms,GCS
Tendring DC,http://statistics.data.gov.uk/id/local-authority-district/22UN,Corporate Services,1880 - Office Accommodation Expenses,4632 - Security,08/05/2012,1048454-7,530,2100546 - GCS Alarms,GCS
Tendring DC,http://statistics.data.gov.uk/id/local-authority-district/22UN,Corporate Services,1880 - Office Accommodation Expenses,4632 - Security,08/05/2012,1048454-8,235,2100546 - GCS Alarms,GCS
Tendring DC,http://statistics.data.gov.uk/id/local-authority-district/22UN,Corporate Services,1880 - Office Accommodation Expenses,4632 - Security,08/05/2012,1048454-9,530,2100546 - GCS Alarms,GCS
Tendring DC,http://statistics.data.gov.uk/id/local-authority-district/22UN,Corporate Services,1880 - Office Accommodation Expenses,4632 - Security,08/05/2012,1048455-1,300,2100546 - GCS Alarms,GCS
Tendring DC,http://statistics.data.gov.uk/id/local-authority-district/22UN,Corporate Services,1880 - Office Accommodation Expenses,4632 - Security,08/05/2012,1048455-2,1440,2100546 - GCS Alarms,GCS
Tendring DC,http://statistics.data.gov.uk/id/local-authority-district/22UN,Corporate Services,1880 - Office Accommodation Expenses,4632 - Security,08/05/2012,1048455-3,280,2100546 - GCS Alarms,GCS
Tendring DC,http://statistics.data.gov.uk/id/local-authority-district/22UN,Corporate Services,1860 - Depots General,4632 - Security,08/05/2012,1048455-4,215,2100546 - GCS Alarms,GCS
Tendring DC,http://statistics.data.gov.uk/id/local-authority-district/22UN,Corporate Services,1880 - Office Accommodation Expenses,4632 - Security,08/05/2012,1048455-5,180,2100546 - GCS Alarms,GCS
Tendring DC,http://statistics.data.gov.uk/id/local-authority-district/22UN,Corporate Services,1880 - Office Accommodation Expenses,4632 - Security,08/05/2012,1048455-6,495,2100546 - GCS Alarms,GCS
Tendring DC,http://statistics.data.gov.uk/id/local-authority-district/22UN,Corporate Services,1880 - Office Accommodation Expenses,4632 - Security,08/05/2012,1048455-7,140,2100546 - GCS Alarms,GCS
Tendring DC,http://statistics.data.gov.uk/id/local-authority-district/22UN,Corporate Services,1880 - Office Accommodation Expenses,4632 - Security,08/05/2012,1048455-8,295,2100546 - GCS Alarms,GCS
Tendring DC,http://statistics.data.gov.uk/id/local-authority-district/22UN,Corporate Services,1880 - Office Accommodation Expenses,4632 - Security,08/05/2012,1048458-1,10,2100546 - GCS Alarms,GCS
Tendring DC,http://statistics.data.gov.uk/id/local-authority-district/22UN,Corporate Services,7400 - Jaywick Enterprise Centre (Starter Units),4632 - Security,15/05/2012,1048577-1,465,2100546 - GCS Alarms,ANNUAL MAINT CCTV @ JEC
Tendring DC,http://statistics.data.gov.uk/id/local-authority-district/22UN,Corporate Services,1880 - Office Accommodation Expenses,4632 - Security,15/05/2012,2096396-1,64.5,REDACTED PERSONAL DATA,REDACTED PERSONAL DATA
Tendring DC,http://statistics.data.gov.uk/id/local-authority-district/22UN,Corporate Services,1880 - Office Accommodation Expenses,4632 - Security,15/05/2012,2096397-1,64.5,REDACTED PERSONAL DATA,REDACTED PERSONAL DATA
Tendring DC,http://statistics.data.gov.uk/id/local-authority-district/22UN,Corporate Services,1880 - Office Accommodation Expenses,4632 - Security,15/05/2012,2096398-1,64.5,REDACTED PERSONAL DATA,REDACTED PERSONAL DATA
Tendring DC,http://statistics.data.gov.uk/id/local-authority-district/22UN,Corporate Services,5240 - HRA - Managing Tenancies,5249 - Housing ASB Expenses,29/05/2012,2097010-1,180,2100546 - GCS Alarms,Service to Fast Response Unit
Tendring DC,http://statistics.data.gov.uk/id/local-authority-district/22UN,Corporate Services,7020 - SSCF - Crime Reduction,4900 - Grants,29/05/2012,2097010-2,180,2100546 - GCS Alarms,Service to Fast Response Unit
Tendring DC,http://statistics.data.gov.uk/id/local-authority-district/22UN,Corporate Services,1100 - Corporate Services Manager Service Unit,1700 - Training - Courses,22/05/2012,2096776-1,325,2101694 - GovNet Communications,Localism Act Seminar
Tendring DC,http://statistics.data.gov.uk/id/local-authority-district/22UN,Corporate Services,6920 - Youth Initiatives,4800 - Hospitality,29/05/2012,2097006-1,120,2100603 - Harwich & District Community Ass,Hall Hire 6/10
Tendring DC,http://statistics.data.gov.uk/id/local-authority-district/22UN,Corporate Services,7720 - Regeneration Projects,5500 - Miscellaneous Expenses,01/05/2012,2095941-1,1500,2111462 - Harwich Harbour Ferry Services Ltd,Foot Ferry Contr
Tendring DC,http://statistics.data.gov.uk/id/local-authority-district/22UN,Corporate Services,1880 - Office Accommodation Expenses,4666 - Hygiene Services,01/05/2012,1048416-1,22.22,2104976 - Initial Washroom Solutions,INITIAL
Tendring DC,http://statistics.data.gov.uk/id/local-authority-district/22UN,Corporate Services,1860 - Depots General,4666 - Hygiene Services,01/05/2012,1048416-2,11.11,2104976 - Initial Washroom Solutions,INITIAL
Tendring DC,http://statistics.data.gov.uk/id/local-authority-district/22UN,Corporate Services,1880 - Office Accommodation Expenses,4666 - Hygiene Services,01/05/2012,1048416-3,22.22,2104976 - Initial Washroom Solutions,INITIAL
Tendring DC,http://statistics.data.gov.uk/id/local-authority-district/22UN,Corporate Services,1880 - Office Accommodation Expenses,4666 - Hygiene Services,01/05/2012,1048416-4,11.11,2104976 - Initial Washroom Solutions,INITIAL
Tendring DC,http://statistics.data.gov.uk/id/local-authority-district/22UN,Corporate Services,1880 - Office Accommodation Expenses,4666 - Hygiene Services,01/05/2012,1048416-5,93.12,2104976 - Initial Washroom Solutions,INITIAL
Tendring DC,http://statistics.data.gov.uk/id/local-authority-district/22UN,Corporate Services,1880 - Office Accommodation Expenses,4666 - Hygiene Services,01/05/2012,1048416-6,5.55,2104976 - Initial Washroom Solutions,INITIAL
Tendring DC,http://statistics.data.gov.uk/id/local-authority-district/22UN,Corporate Services,1880 - Office Accommodation Expenses,4666 - Hygiene Services,01/05/2012,1048416-7,33.33,2104976 - Initial Washroom Solutions,INITIAL
Tendring DC,http://statistics.data.gov.uk/id/local-authority-district/22UN,Corporate Services,1880 - Office Accommodation Expenses,4666 - Hygiene Services,01/05/2012,1048416-8,11.12,2104976 - Initial Washroom Solutions,INITIAL
Tendring DC,http://statistics.data.gov.uk/id/local-authority-district/22UN,Corporate Services,7400 - Jaywick Enterprise Centre (Starter Units),2704 - Building Cleaning,01/05/2012,2095936-1,5.55,2104976 - Initial Washroom Solutions,Sanitact Unit Apr-May 12
Tendring DC,http://statistics.data.gov.uk/id/local-authority-district/22UN,Corporate Services,1880 - Office Accommodation Expenses,4666 - Hygiene Services,22/05/2012,2096775-1,22.22,2104976 - Initial Washroom Solutions,Initial
Tendring DC,http://statistics.data.gov.uk/id/local-authority-district/22UN,Corporate Services,1860 - Depots General,4666 - Hygiene Services,22/05/2012,2096775-2,11.11,2104976 - Initial Washroom Solutions,Initial
Tendring DC,http://statistics.data.gov.uk/id/local-authority-district/22UN,Corporate Services,1880 - Office Accommodation Expenses,4666 - Hygiene Services,22/05/2012,2096775-3,22.22,2104976 - Initial Washroom Solutions,Initial
Tendring DC,http://statistics.data.gov.uk/id/local-authority-district/22UN,Corporate Services,1880 - Office Accommodation Expenses,4666 - Hygiene Services,22/05/2012,2096775-4,11.11,2104976 - Initial Washroom Solutions,Initial
Tendring DC,http://statistics.data.gov.uk/id/local-authority-district/22UN,Corporate Services,1880 - Office Accommodation Expenses,4666 - Hygiene Services,22/05/2012,2096775-5,93.13,2104976 - Initial Washroom Solutions,Initial
Tendring DC,http://statistics.data.gov.uk/id/local-authority-district/22UN,Corporate Services,1880 - Office Accommodation Expenses,4666 - Hygiene Services,22/05/2012,2096775-6,5.55,2104976 - Initial Washroom Solutions,Initial
Tendring DC,http://statistics.data.gov.uk/id/local-authority-district/22UN,Corporate Services,1880 - Office Accommodation Expenses,4666 - Hygiene Services,22/05/2012,2096775-7,11.11,2104976 - Initial Washroom Solutions,Initial
Tendring DC,http://statistics.data.gov.uk/id/local-authority-district/22UN,Corporate Services,4820 - Public Conveniences,4080 - Materials & Consumables,22/05/2012,2096775-8,33.33,2104976 - Initial Washroom Solutions,Initial
Tendring DC,http://statistics.data.gov.uk/id/local-authority-district/22UN,Corporate Services,7400 - Jaywick Enterprise Centre (Starter Units),2704 - Building Cleaning,29/05/2012,2096939-1,5.55,2104976 - Initial Washroom Solutions,Sanitact Unit 28/5/12 - 27/6/12
Tendring DC,http://statistics.data.gov.uk/id/local-authority-district/22UN,Corporate Services,7300 - Licencing,5500 - Miscellaneous Expenses,01/05/2012,2095894-1,113.5,2111297 - Intelligent data Systems (UK) Ltd,DVLA
Tendring DC,http://statistics.data.gov.uk/id/local-authority-district/22UN,Corporate Services,1880 - Office Accommodation Expenses,4448 - Confidential Waste,15/05/2012,2096394-1,230.3,REDACTED PERSONAL DATA,REDACTED PERSONAL DATA
Tendring DC,http://statistics.data.gov.uk/id/local-authority-district/22UN,Corporate Services,1880 - Office Accommodation Expenses,4448 - Confidential Waste,15/05/2012,2096394-2,101.05,REDACTED PERSONAL DATA,REDACTED PERSONAL DATA
Tendring DC,http://statistics.data.gov.uk/id/local-authority-district/22UN,Corporate Services,1210 - Facilities Management Service Unit,3302 - Car Allowances - Officers,29/05/2012,1048803-1,50,REDACTED PERSONAL DATA,REDACTED PERSONAL DATA
Tendring DC,http://statistics.data.gov.uk/id/local-authority-district/22UN,Corporate Services,1210 - Facilities Management Service Unit,3302 - Car Allowances - Officers,08/05/2012,2096130-1,50,REDACTED PERSONAL DATA,REDACTED PERSONAL DATA
Tendring DC,http://statistics.data.gov.uk/id/local-authority-district/22UN,Corporate Services,1880 - Office Accommodation Expenses,2100 - Building Repairs,01/05/2012,2095873-1,132.41,2100890 - Kirby Locks Ltd,Kirby Locks Ltd
Tendring DC,http://statistics.data.gov.uk/id/local-authority-district/22UN,Corporate Services,1320 - Print Unit Service Unit,4080 - Materials & Consumables,08/05/2012,2096244-1,269.7,2100864 - Leston Stationery Ltd,100g Paper BRS
Tendring DC,http://statistics.data.gov.uk/id/local-authority-district/22UN,Corporate Services,1320 - Print Unit Service Unit,4080 - Materials & Consumables,15/05/2012,2096308-1,24.77,2100864 - Leston Stationery Ltd,Stationery
Tendring DC,http://statistics.data.gov.uk/id/local-authority-district/22UN,Corporate Services,1320 - Print Unit Service Unit,4080 - Materials & Consumables,22/05/2012,2096595-1,134.85,2100864 - Leston Stationery Ltd,Paper
Tendring DC,http://statistics.data.gov.uk/id/local-authority-district/22UN,Corporate Services,1320 - Print Unit Service Unit,4080 - Materials & Consumables,22/05/2012,2096758-1,13.78,2100864 - Leston Stationery Ltd,Wallets
Tendring DC,http://statistics.data.gov.uk/id/local-authority-district/22UN,Corporate Services,7746 - Town Centres & Jaywick Business Support,5500 - Miscellaneous Expenses,22/05/2012,2096777-1,30,2111739 - Love To Eat,ATCM Lunch
Tendring DC,http://statistics.data.gov.uk/id/local-authority-district/22UN,Corporate Services,1100 - Corporate Services Manager Service Unit,4300 - Printing & Stationery,15/05/2012,1048543-1,32.68,2110099 - Lyreco UK Ltd,MISC STATIONERY
Tendring DC,http://statistics.data.gov.uk/id/local-authority-district/22UN,Corporate Services,6580 - Member Support Cost,4300 - Printing & Stationery,15/05/2012,1048544-1,59.96,2110099 - Lyreco UK Ltd,LEADER OFFICE STATIONERY
Tendring DC,http://statistics.data.gov.uk/id/local-authority-district/22UN,Corporate Services,1210 - Facilities Management Service Unit,4300 - Printing & Stationery,15/05/2012,1048618-1,-1.29,2110099 - Lyreco UK Ltd,LYRECO
Tendring DC,http://statistics.data.gov.uk/id/local-authority-district/22UN,Corporate Services,5360 - HRA - Sheltered Units,4300 - Printing & Stationery,01/05/2012,2096000-1,12.7,REDACTED PERSONAL DATA,REDACTED PERSONAL DATA
Tendring DC,http://statistics.data.gov.uk/id/local-authority-district/22UN,Corporate Services,5360 - HRA - Sheltered Units,4300 - Printing & Stationery,01/05/2012,2096000-2,12.7,REDACTED PERSONAL DATA,REDACTED PERSONAL DATA
Tendring DC,http://statistics.data.gov.uk/id/local-authority-district/22UN,Corporate Services,5360 - HRA - Sheltered Units,4300 - Printing & Stationery,01/05/2012,2096000-3,12.7,REDACTED PERSONAL DATA,REDACTED PERSONAL DATA
Tendring DC,http://statistics.data.gov.uk/id/local-authority-district/22UN,Corporate Services,1320 - Print Unit Service Unit,4080 - Materials & Consumables,08/05/2012,2096243-1,262.5,2110099 - Lyreco UK Ltd,Envelopes
Tendring DC,http://statistics.data.gov.uk/id/local-authority-district/22UN,Corporate Services,1210 - Facilities Management Service Unit,4300 - Printing & Stationery,15/05/2012,2096395-1,78.92,REDACTED PERSONAL DATA,REDACTED PERSONAL DATA
Tendring DC,http://statistics.data.gov.uk/id/local-authority-district/22UN,Corporate Services,1210 - Facilities Management Service Unit,4300 - Printing & Stationery,22/05/2012,2096533-1,1.29,2110099 - Lyreco UK Ltd,Lyreco
Tendring DC,http://statistics.data.gov.uk/id/local-authority-district/22UN,Corporate Services,1100 - Corporate Services Manager Service Unit,4300 - Printing & Stationery,22/05/2012,2096588-1,55.87,2110099 - Lyreco UK Ltd,Lyreco Stationery
Tendring DC,http://statistics.data.gov.uk/id/local-authority-district/22UN,Corporate Services,1100 - Corporate Services Manager Service Unit,4300 - Printing & Stationery,22/05/2012,2096754-1,52.24,2110099 - Lyreco UK Ltd,General Stationery
Tendring DC,http://statistics.data.gov.uk/id/local-authority-district/22UN,Corporate Services,1320 - Print Unit Service Unit,4080 - Materials & Consumables,22/05/2012,2096760-1,1.1,2110099 - Lyreco UK Ltd,Metal Fasteners
Tendring DC,http://statistics.data.gov.uk/id/local-authority-district/22UN,Corporate Services,7025 - CDRP Support,4900 - Grants,29/05/2012,2097011-1,35.2,2110099 - Lyreco UK Ltd,Stationery
Tendring DC,http://statistics.data.gov.uk/id/local-authority-district/22UN,Corporate Services,1880 - Office Accommodation Expenses,2100 - Building Repairs,22/05/2012,1048633-1,28.15,2100991 - Micraft,MICRAFT
Tendring DC,http://statistics.data.gov.uk/id/local-authority-district/22UN,Corporate Services,1880 - Office Accommodation Expenses,2100 - Building Repairs,22/05/2012,1048634-1,37.5,2100991 - Micraft,MICRAFT
Tendring DC,http://statistics.data.gov.uk/id/local-authority-district/22UN,Corporate Services,1880 - Office Accommodation Expenses,2100 - Building Repairs,29/05/2012,1048811-1,20,2100967 - N Rudelhoff,NR ELECTRICAL
Tendring DC,http://statistics.data.gov.uk/id/local-authority-district/22UN,Corporate Services,1880 - Office Accommodation Expenses,2100 - Building Repairs,29/05/2012,1048812-1,704,2100967 - N Rudelhoff,NR ELECTRICAL
Tendring DC,http://statistics.data.gov.uk/id/local-authority-district/22UN,Corporate Services,1880 - Office Accommodation Expenses,2100 - Building Repairs,29/05/2012,1048812-2,93,2100967 - N Rudelhoff,NR ELECTRICAL
Tendring DC,http://statistics.data.gov.uk/id/local-authority-district/22UN,Corporate Services,1880 - Office Accommodation Expenses,2100 - Building Repairs,29/05/2012,1048813-1,485,2100967 - N Rudelhoff,NR ELECTRICAL
Tendring DC,http://statistics.data.gov.uk/id/local-authority-district/22UN,Corporate Services,1880 - Office Accommodation Expenses,2100 - Building Repairs,29/05/2012,1048813-2,73,2100967 - N Rudelhoff,NR ELECTRICAL
Tendring DC,http://statistics.data.gov.uk/id/local-authority-district/22UN,Corporate Services,1880 - Office Accommodation Expenses,2100 - Building Repairs,29/05/2012,1048813-3,138,2100967 - N Rudelhoff,NR ELECTRICAL
Tendring DC,http://statistics.data.gov.uk/id/local-authority-district/22UN,Corporate Services,1880 - Office Accommodation Expenses,2100 - Building Repairs,22/05/2012,2096535-1,9,2102791 - Nantmor Blinds Ltd,Nantmor Blinds Ltd
Tendring DC,http://statistics.data.gov.uk/id/local-authority-district/22UN,Corporate Services,7100 - Community Health/Safety,4355 - Books & Periodicals,08/05/2012,2096153-1,60,2111906 - NCSN Trading Ltd,National Community Safety Network
Tendring DC,http://statistics.data.gov.uk/id/local-authority-district/22UN,Corporate Services,7100 - Community Health/Safety,4900 - Grants,08/05/2012,2096153-2,139,2111906 - NCSN Trading Ltd,National Community Safety Network
Tendring DC,http://statistics.data.gov.uk/id/local-authority-district/22UN,Corporate Services,1880 - Office Accommodation Expenses,2300 - Energy Costs - Fuel Oil,08/05/2012,2096169-1,1024.2,2107113 - Pace Fuelcare Ltd,Pace Fule Care
Tendring DC,http://statistics.data.gov.uk/id/local-authority-district/22UN,Corporate Services,7220 - Election Expenses,4486 - Election Expenses,01/05/2012,1048290-1,-946.9,2103246 - Print.uk.com,CREDIT WEELEY BY ELECTION
Tendring DC,http://statistics.data.gov.uk/id/local-authority-district/22UN,Corporate Services,7220 - Election Expenses,4486 - Election Expenses,01/05/2012,1048316-1,946.9,2103246 - Print.uk.com,WEELEY BY ELECTION
Tendring DC,http://statistics.data.gov.uk/id/local-authority-district/22UN,Corporate Services,7220 - Election Expenses,4486 - Election Expenses,15/05/2012,1048546-1,1229.5,2103246 - Print.uk.com,HARWICH BY ELECTION
Tendring DC,http://statistics.data.gov.uk/id/local-authority-district/22UN,Corporate Services,1320 - Print Unit Service Unit,4302 - External Print Unit Expenses,22/05/2012,2096755-1,320,2112211 - Pulstar Dataprint Ltd,Job 037
Tendring DC,http://statistics.data.gov.uk/id/local-authority-district/22UN,Corporate Services,1320 - Print Unit Service Unit,4302 - External Print Unit Expenses,22/05/2012,2096756-1,430,2112211 - Pulstar Dataprint Ltd,Job 037
Tendring DC,http://statistics.data.gov.uk/id/local-authority-district/22UN,Corporate Services,1090 - Management Team Service Unit,4400 - Maintenance Under Service Agreements,08/05/2012,1048477-1,150.93,2101090 - Ricoh UK Ltd,RICOH COPIER
Tendring DC,http://statistics.data.gov.uk/id/local-authority-district/22UN,Corporate Services,1370 - Streets & Seafronts Service Unit,4350 - Photocopier Hire,01/05/2012,2095895-1,169.58,2101090 - Ricoh UK Ltd,Post Room Copier
Tendring DC,http://statistics.data.gov.uk/id/local-authority-district/22UN,Corporate Services,4520 - Land Charges,4350 - Photocopier Hire,01/05/2012,2095896-1,158.57,2101090 - Ricoh UK Ltd,Land Charges Copier
Tendring DC,http://statistics.data.gov.uk/id/local-authority-district/22UN,Corporate Services,6740 - Careline,4350 - Photocopier Hire,01/05/2012,2095997-1,213.47,REDACTED PERSONAL DATA,REDACTED PERSONAL DATA
Tendring DC,http://statistics.data.gov.uk/id/local-authority-district/22UN,Corporate Services,1210 - Facilities Management Service Unit,4400 - Maintenance Under Service Agreements,22/05/2012,2096770-1,276.8,2101090 - Ricoh UK Ltd,Ricoh V1202801556
Tendring DC,http://statistics.data.gov.uk/id/local-authority-district/22UN,Corporate Services,6985 - Big Society,4900 - Grants,29/05/2012,2096870-1,9495,REDACTED PERSONAL DATA,REDACTED PERSONAL DATA
Tendring DC,http://statistics.data.gov.uk/id/local-authority-district/22UN,Corporate Services,7040 - Civic Ceremonial Expenses,4080 - Materials & Consumables,15/05/2012,2096280-1,19,REDACTED PERSONAL DATA,REDACTED PERSONAL DATA
Tendring DC,http://statistics.data.gov.uk/id/local-authority-district/22UN,Corporate Services,7240 - Electoral Registration Expenses,4700 - Postage,01/05/2012,2095890-1,2015.72,2101139 - Royal Mail,Electoral Postage
Tendring DC,http://statistics.data.gov.uk/id/local-authority-district/22UN,Corporate Services,7240 - Electoral Registration Expenses,4700 - Postage,01/05/2012,2095891-1,99.6,2101139 - Royal Mail,Electoral Postage
Tendring DC,http://statistics.data.gov.uk/id/local-authority-district/22UN,Corporate Services,7240 - Electoral Registration Expenses,4700 - Postage,01/05/2012,2095893-1,7.12,2101139 - Royal Mail,Electoral Postage
Tendring DC,http://statistics.data.gov.uk/id/local-authority-district/22UN,Corporate Services,6740 - Careline,4700 - Postage,01/05/2012,2096001-1,23.05,REDACTED PERSONAL DATA,REDACTED PERSONAL DATA
Tendring DC,http://statistics.data.gov.uk/id/local-authority-district/22UN,Corporate Services,7460 - Economic Promotion,5164 - Project Expenses,29/05/2012,2096938-1,130.2,2101139 - Royal Mail,Freepost CL3705
Tendring DC,http://statistics.data.gov.uk/id/local-authority-district/22UN,Corporate Services,7080 - Chairman Charity Account,5460 - Distribution of Donations,29/05/2012,1048805-1,798.8,2101807 - Royal National Lifeboat Institution,
Tendring DC,http://statistics.data.gov.uk/id/local-authority-district/22UN,Corporate Services,7220 - Election Expenses,4486 - Election Expenses,22/05/2012,2096634-1,491,2112200 - RS Book Binders Ltd,Make Up/Binding Electoral
Tendring DC,http://statistics.data.gov.uk/id/local-authority-district/22UN,Corporate Services,7040 - Civic Ceremonial Expenses,4100 - Contract Catering,08/05/2012,2096133-1,148.5,REDACTED PERSONAL DATA,REDACTED PERSONAL DATA
Tendring DC,http://statistics.data.gov.uk/id/local-authority-district/22UN,Corporate Services,7040 - Civic Ceremonial Expenses,4080 - Materials & Consumables,08/05/2012,2096145-1,53.53,REDACTED PERSONAL DATA,REDACTED PERSONAL DATA
Tendring DC,http://statistics.data.gov.uk/id/local-authority-district/22UN,Corporate Services,7080 - Chairman Charity Account,5460 - Distribution of Donations,29/05/2012,1048806-1,798.8,2101229 - St Helena Hospice,
Tendring DC,http://statistics.data.gov.uk/id/local-authority-district/22UN,Corporate Services,6985 - Big Society,4900 - Grants,01/05/2012,2095916-1,2005,2101269 - St Osyth Parish Council,
Tendring DC,http://statistics.data.gov.uk/id/local-authority-district/22UN,Corporate Services,1880 - Office Accommodation Expenses,2100 - Building Repairs,08/05/2012,1048504-1,11.08,2101370 - Stannah Lift Services Ltd,STANNAH
Tendring DC,http://statistics.data.gov.uk/id/local-authority-district/22UN,Corporate Services,1880 - Office Accommodation Expenses,2100 - Building Repairs,08/05/2012,1048504-2,11.09,2101370 - Stannah Lift Services Ltd,STANNAH
Tendring DC,http://statistics.data.gov.uk/id/local-authority-district/22UN,Corporate Services,7220 - Election Expenses,4486 - Election Expenses,01/05/2012,2095888-1,80,2104780 - The Association of Electoral Administrators,AEA Membership ID/MBK
Tendring DC,http://statistics.data.gov.uk/id/local-authority-district/22UN,Corporate Services,5360 - HRA - Sheltered Units,4000 - Furniture,01/05/2012,2095999-1,45.2,REDACTED PERSONAL DATA,REDACTED PERSONAL DATA
Tendring DC,http://statistics.data.gov.uk/id/local-authority-district/22UN,Corporate Services,1100 - Corporate Services Manager Service Unit,4355 - Books & Periodicals,08/05/2012,2096157-1,124,2111580 - Thomson Reuters,Schofields Election Law
Tendring DC,http://statistics.data.gov.uk/id/local-authority-district/22UN,Corporate Services,1100 - Corporate Services Manager Service Unit,4355 - Books & Periodicals,08/05/2012,2096157-2,124,2111580 - Thomson Reuters,Schofields Election Law
Tendring DC,http://statistics.data.gov.uk/id/local-authority-district/22UN,Corporate Services,7716 - Jaywick Strategic Leadership group initiatives,1700 - Training - Courses,08/05/2012,1048456-1,250,2101437 - Tower Security (Tendring) Ltd,ROB TRAINING
Tendring DC,http://statistics.data.gov.uk/id/local-authority-district/22UN,Corporate Services,1860 - Depots General,4632 - Security,22/05/2012,2096542-1,120,2101437 - Tower Security (Tendring) Ltd,Tower Security
Tendring DC,http://statistics.data.gov.uk/id/local-authority-district/22UN,Corporate Services,1880 - Office Accommodation Expenses,4632 - Security,22/05/2012,2096543-1,120,2101437 - Tower Security (Tendring) Ltd,Tower Security
Tendring DC,http://statistics.data.gov.uk/id/local-authority-district/22UN,Corporate Services,7020 - SSCF - Crime Reduction,4900 - Grants,22/05/2012,2096769-1,349,2111017 - Tracker Network (UK) Ltd,Bike saddle
Tendring DC,http://statistics.data.gov.uk/id/local-authority-district/22UN,Corporate Services,1320 - Print Unit Service Unit,4302 - External Print Unit Expenses,22/05/2012,2096759-1,695,2101477 - Tradewell Signshop Ltd,39
Tendring DC,http://statistics.data.gov.uk/id/local-authority-district/22UN,Corporate Services,5480 - HRA - Repair & Maintenance,2074 - Smoke Alarm Repairs,01/05/2012,2095996-1,1143.64,2101419 - Tunstall Healthcare (UK) Ltd,Smoke Alarms
Tendring DC,http://statistics.data.gov.uk/id/local-authority-district/22UN,Corporate Services,1880 - Office Accommodation Expenses,2100 - Building Repairs,08/05/2012,1048457-1,259,2111714 - Universal System Controls,USC
Tendring DC,http://statistics.data.gov.uk/id/local-authority-district/22UN,Corporate Services,1880 - Office Accommodation Expenses,4446 - Bulk Bin Collection,22/05/2012,2096536-1,280.34,2101092 - Veolia ES (UK) Limited,Veolia Waste
Tendring DC,http://statistics.data.gov.uk/id/local-authority-district/22UN,Corporate Services,1880 - Office Accommodation Expenses,4446 - Bulk Bin Collection,22/05/2012,2096537-1,613.34,2101092 - Veolia ES (UK) Limited,Veolia Waste
Tendring DC,http://statistics.data.gov.uk/id/local-authority-district/22UN,Corporate Services,1860 - Depots General,4446 - Bulk Bin Collection,22/05/2012,2096538-1,98.48,2101092 - Veolia ES (UK) Limited,Veolia Waste
Tendring DC,http://statistics.data.gov.uk/id/local-authority-district/22UN,Corporate Services,1880 - Office Accommodation Expenses,4446 - Bulk Bin Collection,22/05/2012,2096539-1,231.11,2101092 - Veolia ES (UK) Limited,Veolia Waste
Tendring DC,http://statistics.data.gov.uk/id/local-authority-district/22UN,Corporate Services,1880 - Office Accommodation Expenses,4446 - Bulk Bin Collection,22/05/2012,2096540-1,61.34,2101092 - Veolia ES (UK) Limited,Veolia Waste
Tendring DC,http://statistics.data.gov.uk/id/local-authority-district/22UN,Corporate Services,1880 - Office Accommodation Expenses,4446 - Bulk Bin Collection,22/05/2012,2096541-1,84.56,2101092 - Veolia ES (UK) Limited,Veolia Waste
Tendring DC,http://statistics.data.gov.uk/id/local-authority-district/22UN,Corporate Services,7400 - Jaywick Enterprise Centre (Starter Units),4446 - Bulk Bin Collection,22/05/2012,2096700-1,120.55,2101092 - Veolia ES (UK) Limited,April Collection
Tendring DC,http://statistics.data.gov.uk/id/local-authority-district/22UN,Corporate Services,1880 - Office Accommodation Expenses,2500 - Water Services - Metered,22/05/2012,2096544-1,485.04,2101318 - Veolia Water East Ltd,Veolia Water
Tendring DC,http://statistics.data.gov.uk/id/local-authority-district/22UN,Corporate Services,1880 - Office Accommodation Expenses,2520 - Sewerage & Environmental Charges,22/05/2012,2096544-2,451.69,2101318 - Veolia Water East Ltd,Veolia Water
Tendring DC,http://statistics.data.gov.uk/id/local-authority-district/22UN,Corporate Services,1880 - Office Accommodation Expenses,2520 - Sewerage & Environmental Charges,22/05/2012,2096545-1,143.86,2101318 - Veolia Water East Ltd,Veolia Water
Tendring DC,http://statistics.data.gov.uk/id/local-authority-district/22UN,Corporate Services,1880 - Office Accommodation Expenses,2500 - Water Services - Metered,22/05/2012,2096545-2,109.57,2101318 - Veolia Water East Ltd,Veolia Water
Tendring DC,http://statistics.data.gov.uk/id/local-authority-district/22UN,Corporate Services,1860 - Depots General,2520 - Sewerage & Environmental Charges,22/05/2012,2096771-1,187.55,2101318 - Veolia Water East Ltd,Veolia Water
Tendring DC,http://statistics.data.gov.uk/id/local-authority-district/22UN,Corporate Services,1860 - Depots General,2500 - Water Services - Metered,22/05/2012,2096771-2,159.36,2101318 - Veolia Water East Ltd,Veolia Water
Tendring DC,http://statistics.data.gov.uk/id/local-authority-district/22UN,Corporate Services,1860 - Depots General,2520 - Sewerage & Environmental Charges,22/05/2012,2096772-1,105.08,2101318 - Veolia Water East Ltd,Veolia Water
Tendring DC,http://statistics.data.gov.uk/id/local-authority-district/22UN,Corporate Services,1860 - Depots General,2500 - Water Services - Metered,22/05/2012,2096772-2,57.68,2101318 - Veolia Water East Ltd,Veolia Water
Tendring DC,http://statistics.data.gov.uk/id/local-authority-district/22UN,Corporate Services,1100 - Corporate Services Manager Service Unit,4716 - Mobile Telephone Costs,15/05/2012,1048578-1,1.8,2101522 - Vodafone Corporate,VODAFONE
Tendring DC,http://statistics.data.gov.uk/id/local-authority-district/22UN,Corporate Services,1100 - Corporate Services Manager Service Unit,4716 - Mobile Telephone Costs,15/05/2012,1048579-1,4.45,2101522 - Vodafone Corporate,VODAFONE MOBILE JB
Tendring DC,http://statistics.data.gov.uk/id/local-authority-district/22UN,Corporate Services,1100 - Corporate Services Manager Service Unit,4716 - Mobile Telephone Costs,08/05/2012,2096148-1,32.92,REDACTED PERSONAL DATA,REDACTED PERSONAL DATA
Tendring DC,http://statistics.data.gov.uk/id/local-authority-district/22UN,Corporate Services,1090 - Management Team Service Unit,4716 - Mobile Telephone Costs,22/05/2012,2096602-1,187,2101522 - Vodafone Corporate,Vodafone
Tendring DC,http://statistics.data.gov.uk/id/local-authority-district/22UN,Corporate Services,6580 - Member Support Cost,4716 - Mobile Telephone Costs,22/05/2012,2096602-2,450.69,2101522 - Vodafone Corporate,Vodafone
Tendring DC,http://statistics.data.gov.uk/id/local-authority-district/22UN,Corporate Services,1210 - Facilities Management Service Unit,4716 - Mobile Telephone Costs,22/05/2012,2096602-3,302.46,2101522 - Vodafone Corporate,Vodafone
Tendring DC,http://statistics.data.gov.uk/id/local-authority-district/22UN,Corporate Services,1100 - Corporate Services Manager Service Unit,4716 - Mobile Telephone Costs,22/05/2012,2096602-4,227.38,2101522 - Vodafone Corporate,Vodafone
Tendring DC,http://statistics.data.gov.uk/id/local-authority-district/22UN,Corporate Services,7025 - CDRP Support,4900 - Grants,22/05/2012,2096602-5,11.49,2101522 - Vodafone Corporate,Vodafone
Tendring DC,http://statistics.data.gov.uk/id/local-authority-district/22UN,Corporate Services,1040 - Regeneration Projects Service Unit,4716 - Mobile Telephone Costs,22/05/2012,2096602-6,23.12,2101522 - Vodafone Corporate,Vodafone
Tendring DC,http://statistics.data.gov.uk/id/local-authority-district/22UN,Corporate Services,7716 - Jaywick Strategic Leadership group initiatives,4716 - Mobile Telephone Costs,22/05/2012,2096602-7,46.21,2101522 - Vodafone Corporate,Vodafone
Tendring DC,http://statistics.data.gov.uk/id/local-authority-district/22UN,Corporate Services,7716 - Jaywick Strategic Leadership group initiatives,4716 - Mobile Telephone Costs,22/05/2012,2096701-1,53.68,2101522 - Vodafone Corporate,Jan - Mar 12 Phone Bills
Tendring DC,http://statistics.data.gov.uk/id/local-authority-district/22UN,Corporate Services,1100 - Corporate Services Manager Service Unit,4716 - Mobile Telephone Costs,22/05/2012,2096774-1,15.27,2101522 - Vodafone Corporate,Vodafone Bill Apr 12
Tendring DC,http://statistics.data.gov.uk/id/local-authority-district/22UN,Corporate Services,1210 - Facilities Management Service Unit,4716 - Mobile Telephone Costs,22/05/2012,2096774-2,88.03,2101522 - Vodafone Corporate,Vodafone Bill Apr 12
Tendring DC,http://statistics.data.gov.uk/id/local-authority-district/22UN,Corporate Services,1330 - Human Resources Service Unit,4716 - Mobile Telephone Costs,22/05/2012,2096774-3,28.05,2101522 - Vodafone Corporate,Vodafone Bill Apr 12
Tendring DC,http://statistics.data.gov.uk/id/local-authority-district/22UN,Corporate Services,6460 - Career Track,4716 - Mobile Telephone Costs,22/05/2012,2096774-4,12.16,2101522 - Vodafone Corporate,Vodafone Bill Apr 12
Tendring DC,http://statistics.data.gov.uk/id/local-authority-district/22UN,Corporate Services,6460 - Career Track,4716 - Mobile Telephone Costs,22/05/2012,2096774-5,6.11,2101522 - Vodafone Corporate,Vodafone Bill Apr 12
Tendring DC,http://statistics.data.gov.uk/id/local-authority-district/22UN,Corporate Services,1880 - Office Accommodation Expenses,2100 - Building Repairs,22/05/2012,2096534-1,1370.1,2101526 - Wolters kluwer (UK) Ltd,Croner
Tendring DC,http://statistics.data.gov.uk/id/local-authority-district/22UN,Corporate Services,1320 - Print Unit Service Unit,4350 - Photocopier Hire,22/05/2012,2096757-1,1869.9,2101527 - Xerox Finance Ltd,Xerox Rental 4127
Tendring DC,http://statistics.data.gov.uk/id/local-authority-district/22UN,Corporate Services,1100 - Corporate Services Manager Service Unit,4300 - Printing & Stationery,08/05/2012,1048476-1,162.43,2107546 - XMA Limited,PRINTER CARTRIDGES
Tendring DC,http://statistics.data.gov.uk/id/local-authority-district/22UN,Corporate Services,7100 - Community Health/Safety,4300 - Printing & Stationery,15/05/2012,1048583-1,18.96,2107546 - XMA Limited,CANON PG1-5BK INK X 2
Tendring DC,http://statistics.data.gov.uk/id/local-authority-district/22UN,Corporate Services,1100 - Corporate Services Manager Service Unit,4300 - Printing & Stationery,29/05/2012,1048779-1,6.26,2107546 - XMA Limited,ELECTORAL CARTRIDGE
Tendring DC,http://statistics.data.gov.uk/id/local-authority-district/22UN,Corporate Services,1100 - Corporate Services Manager Service Unit,4300 - Printing & Stationery,15/05/2012,2096461-1,20.7,2107546 - XMA Limited,Printer Cartridges
Tendring DC,http://statistics.data.gov.uk/id/local-authority-district/22UN,Corporate Services,1100 - Corporate Services Manager Service Unit,4300 - Printing & Stationery,22/05/2012,2096635-1,148.4,2107546 - XMA Limited,Electoral Cartridge
Tendring DC,http://statistics.data.gov.uk/id/local-authority-district/22UN,Corporate Services,1100 - Corporate Services Manager Service Unit,4300 - Printing & Stationery,29/05/2012,2096932-1,4.14,2107546 - XMA Limited,Printer Cartridge
Tendring DC,http://statistics.data.gov.uk/id/local-authority-district/22UN,Corporate Services,7100 - Community Health/Safety,4300 - Printing & Stationery,29/05/2012,2096946-1,121.56,2107546 - XMA Limited,Ink for Printer
Tendring DC,http://statistics.data.gov.uk/id/local-authority-district/22UN,Corporate Services,1330 - Human Resources Service Unit,4300 - Printing & Stationery,08/05/2012,2096168-1,9,2111995 - Yes 2 Solutions,Yes2 Solutions
Tendring DC,http://statistics.data.gov.uk/id/local-authority-district/22UN,Corporate Services,1520 - Head of Planning and Customer Services,4300 - Printing & Stationery,22/05/2012,2096546-1,9,2111995 - Yes 2 Solutions,Yes 2 Solutions
Tendring DC,http://statistics.data.gov.uk/id/local-authority-district/22UN,Life Opportunities,6160 - Princes Theatre,4220 - Laundry,01/05/2012,2095951-1,68.3,2109102 - 3 Diamonds Linen Hire,Table Cloth Hire
Tendring DC,http://statistics.data.gov.uk/id/local-authority-district/22UN,Life Opportunities,6160 - Princes Theatre,4040 - Equipment & Tools,08/05/2012,2096089-1,45,REDACTED PERSONAL DATA,REDACTED PERSONAL DATA
Tendring DC,http://statistics.data.gov.uk/id/local-authority-district/22UN,Life Opportunities,5480 - HRA - Repair & Maintenance,2073 - Smoke Alarm Service/Testing,08/05/2012,2096246-1,55.5,2111360 - Aaron Services Ltd,Gas Service & Repair - North Area 11/12
Tendring DC,http://statistics.data.gov.uk/id/local-authority-district/22UN,Life Opportunities,5480 - HRA - Repair & Maintenance,2075 - Gas Service Contract Servicing/Testing (Domestic I,08/05/2012,2096246-2,2865.8,2111360 - Aaron Services Ltd,Gas Service & Repair - North Area 11/12
Tendring DC,http://statistics.data.gov.uk/id/local-authority-district/22UN,Life Opportunities,5480 - HRA - Repair & Maintenance,2076 - Gas Service Contract Other Refurbishment/Repairs (,08/05/2012,2096246-3,8336.89,2111360 - Aaron Services Ltd,Gas Service & Repair - North Area 11/12
Tendring DC,http://statistics.data.gov.uk/id/local-authority-district/22UN,Life Opportunities,8540 - Leisure Centre Clacton,2100 - Building Repairs,29/05/2012,1048744-1,150,2108452 - Access Automation Ltd,
Tendring DC,http://statistics.data.gov.uk/id/local-authority-district/22UN,Life Opportunities,5880 - Management Of Sport & Leisure Facilities,2100 - Building Repairs,29/05/2012,1048746-1,2000,2108452 - Access Automation Ltd,DOVERCOURT POOL
Tendring DC,http://statistics.data.gov.uk/id/local-authority-district/22UN,Life Opportunities,5480 - HRA - Repair & Maintenance,2017 - Mechanical Equipment /Extract Fans,01/05/2012,2095961-1,1130.6,REDACTED PERSONAL DATA,REDACTED PERSONAL DATA
Tendring DC,http://statistics.data.gov.uk/id/local-authority-district/22UN,Life Opportunities,5480 - HRA - Repair & Maintenance,2017 - Mechanical Equipment /Extract Fans,01/05/2012,2095962-1,750,REDACTED PERSONAL DATA,REDACTED PERSONAL DATA
Tendring DC,http://statistics.data.gov.uk/id/local-authority-district/22UN,Life Opportunities,5480 - HRA - Repair & Maintenance,2017 - Mechanical Equipment /Extract Fans,01/05/2012,2095963-1,640.5,REDACTED PERSONAL DATA,REDACTED PERSONAL DATA
Tendring DC,http://statistics.data.gov.uk/id/local-authority-district/22UN,Life Opportunities,5480 - HRA - Repair & Maintenance,2017 - Mechanical Equipment /Extract Fans,08/05/2012,2096009-1,680.5,REDACTED PERSONAL DATA,REDACTED PERSONAL DATA
Tendring DC,http://statistics.data.gov.uk/id/local-authority-district/22UN,Life Opportunities,5480 - HRA - Repair & Maintenance,2017 - Mechanical Equipment /Extract Fans,08/05/2012,2096010-1,611,REDACTED PERSONAL DATA,REDACTED PERSONAL DATA
Tendring DC,http://statistics.data.gov.uk/id/local-authority-district/22UN,Life Opportunities,5480 - HRA - Repair & Maintenance,2091 - External Works,08/05/2012,2096011-1,783.92,REDACTED PERSONAL DATA,REDACTED PERSONAL DATA
Tendring DC,http://statistics.data.gov.uk/id/local-authority-district/22UN,Life Opportunities,5480 - HRA - Repair & Maintenance,2017 - Mechanical Equipment /Extract Fans,08/05/2012,2096012-1,496.6,REDACTED PERSONAL DATA,REDACTED PERSONAL DATA
Tendring DC,http://statistics.data.gov.uk/id/local-authority-district/22UN,Life Opportunities,5480 - HRA - Repair & Maintenance,2017 - Mechanical Equipment /Extract Fans,08/05/2012,2096074-1,611,REDACTED PERSONAL DATA,REDACTED PERSONAL DATA
Tendring DC,http://statistics.data.gov.uk/id/local-authority-district/22UN,Life Opportunities,5480 - HRA - Repair & Maintenance,2017 - Mechanical Equipment /Extract Fans,08/05/2012,2096075-1,750,REDACTED PERSONAL DATA,REDACTED PERSONAL DATA
Tendring DC,http://statistics.data.gov.uk/id/local-authority-district/22UN,Life Opportunities,5480 - HRA - Repair & Maintenance,2017 - Mechanical Equipment /Extract Fans,08/05/2012,2096076-1,479.6,REDACTED PERSONAL DATA,REDACTED PERSONAL DATA
Tendring DC,http://statistics.data.gov.uk/id/local-authority-district/22UN,Life Opportunities,5480 - HRA - Repair & Maintenance,2017 - Mechanical Equipment /Extract Fans,08/05/2012,2096077-1,750,2110902 - Airtech Environmental Systems,Groom Park
Tendring DC,http://statistics.data.gov.uk/id/local-authority-district/22UN,Life Opportunities,5480 - HRA - Repair & Maintenance,2017 - Mechanical Equipment /Extract Fans,08/05/2012,2096078-1,885.1,REDACTED PERSONAL DATA,REDACTED PERSONAL DATA
Tendring DC,http://statistics.data.gov.uk/id/local-authority-district/22UN,Life Opportunities,5480 - HRA - Repair & Maintenance,2017 - Mechanical Equipment /Extract Fans,15/05/2012,2096387-1,611,2110902 - Airtech Environmental Systems,Ranson Cour
Tendring DC,http://statistics.data.gov.uk/id/local-authority-district/22UN,Life Opportunities,5480 - HRA - Repair & Maintenance,2017 - Mechanical Equipment /Extract Fans,15/05/2012,2096388-1,750,REDACTED PERSONAL DATA,REDACTED PERSONAL DATA
Tendring DC,http://statistics.data.gov.uk/id/local-authority-district/22UN,Life Opportunities,5480 - HRA - Repair & Maintenance,2017 - Mechanical Equipment /Extract Fans,29/05/2012,2096829-1,571,REDACTED PERSONAL DATA,REDACTED PERSONAL DATA
Tendring DC,http://statistics.data.gov.uk/id/local-authority-district/22UN,Life Opportunities,5480 - HRA - Repair & Maintenance,2017 - Mechanical Equipment /Extract Fans,29/05/2012,2096830-1,680.5,REDACTED PERSONAL DATA,REDACTED PERSONAL DATA
Tendring DC,http://statistics.data.gov.uk/id/local-authority-district/22UN,Life Opportunities,5480 - HRA - Repair & Maintenance,2017 - Mechanical Equipment /Extract Fans,29/05/2012,2096831-1,640.5,REDACTED PERSONAL DATA,REDACTED PERSONAL DATA
Tendring DC,http://statistics.data.gov.uk/id/local-authority-district/22UN,Life Opportunities,5480 - HRA - Repair & Maintenance,2017 - Mechanical Equipment /Extract Fans,29/05/2012,2096832-1,611,REDACTED PERSONAL DATA,REDACTED PERSONAL DATA
Tendring DC,http://statistics.data.gov.uk/id/local-authority-district/22UN,Life Opportunities,5480 - HRA - Repair & Maintenance,2017 - Mechanical Equipment /Extract Fans,29/05/2012,2096833-1,285.5,REDACTED PERSONAL DATA,REDACTED PERSONAL DATA
Tendring DC,http://statistics.data.gov.uk/id/local-authority-district/22UN,Life Opportunities,5820 - Harwich Sports Centre,4597 - Hired Services - Payments to Contractors,08/05/2012,1048452-1,150,2105419 - Ambi-Rad Ltd,DISPLAY UNIT FAULTY
Tendring DC,http://statistics.data.gov.uk/id/local-authority-district/22UN,Life Opportunities,8540 - Leisure Centre Clacton,4597 - Hired Services - Payments to Contractors,08/05/2012,2096144-1,330,REDACTED PERSONAL DATA,REDACTED PERSONAL DATA
Tendring DC,http://statistics.data.gov.uk/id/local-authority-district/22UN,Life Opportunities,5800 - Brightlingsea Sports Centre,4597 - Hired Services - Payments to Contractors,08/05/2012,2096144-2,150,REDACTED PERSONAL DATA,REDACTED PERSONAL DATA
Tendring DC,http://statistics.data.gov.uk/id/local-authority-district/22UN,Life Opportunities,6160 - Princes Theatre,4622 - Hired Services - Artistes and Production Companies,22/05/2012,1048686-1,262.15,REDACTED PERSONAL DATA,REDACTED PERSONAL DATA
Tendring DC,http://statistics.data.gov.uk/id/local-authority-district/22UN,Life Opportunities,5240 - HRA - Managing Tenancies,5242 - Tenant Relations,15/05/2012,2096272-1,10,REDACTED PERSONAL DATA,REDACTED PERSONAL DATA
Tendring DC,http://statistics.data.gov.uk/id/local-authority-district/22UN,Life Opportunities,5240 - HRA - Managing Tenancies,5242 - Tenant Relations,29/05/2012,2096867-1,10,REDACTED PERSONAL DATA,REDACTED PERSONAL DATA
Tendring DC,http://statistics.data.gov.uk/id/local-authority-district/22UN,Life Opportunities,5240 - HRA - Managing Tenancies,6625 - Tenants Compensation Scheme,22/05/2012,2096598-1,685,REDACTED COMMERCIAL CONFIDENTIALITY,REDACTED COMMERCIAL CONFIDENTIALITY
Tendring DC,http://statistics.data.gov.uk/id/local-authority-district/22UN,Life Opportunities,5820 - Harwich Sports Centre,4040 - Equipment & Tools,15/05/2012,1048616-1,28.9,2100048 - Argos Business Solutions,STORAGE BOXES
Tendring DC,http://statistics.data.gov.uk/id/local-authority-district/22UN,Life Opportunities,8520 - Frinton & Walton Swimming Pool,4000 - Furniture,15/05/2012,2096432-1,21.71,2100048 - Argos Business Solutions,Frinton & Walton Pool
Tendring DC,http://statistics.data.gov.uk/id/local-authority-district/22UN,Life Opportunities,H860 - Disabled Adaptations,C200 - Main Contractor,22/05/2012,1048626-1,1100,REDACTED PERSONAL DATA,REDACTED PERSONAL DATA
Tendring DC,http://statistics.data.gov.uk/id/local-authority-district/22UN,Life Opportunities,H860 - Disabled Adaptations,C200 - Main Contractor,22/05/2012,1048626-2,3885,REDACTED PERSONAL DATA,REDACTED PERSONAL DATA
Tendring DC,http://statistics.data.gov.uk/id/local-authority-district/22UN,Life Opportunities,8510 - Dovercourt Swimming Pool & All Weather Facilities,5300 - Resaleable Items,29/05/2012,1048731-1,565.31,2100088 - ASA Merchandising Ltd,DOVERCOURT POOL
Tendring DC,http://statistics.data.gov.uk/id/local-authority-district/22UN,Life Opportunities,8540 - Leisure Centre Clacton,5300 - Resaleable Items,15/05/2012,2096380-1,393.42,2100088 - ASA Merchandising Ltd,
Tendring DC,http://statistics.data.gov.uk/id/local-authority-district/22UN,Life Opportunities,5220 - HRA - Policy & Management,5930 - Business Planning Expenses,29/05/2012,2096825-1,2000,REDACTED COMMERCIAL CONFIDENTIALITY,REDACTED COMMERCIAL CONFIDENTIALITY
Tendring DC,http://statistics.data.gov.uk/id/local-authority-district/22UN,Life Opportunities,8520 - Frinton & Walton Swimming Pool,4000 - Furniture,29/05/2012,1048754-1,49.85,2103481 - AtoZ Supplies,FRINTON POOL
Tendring DC,http://statistics.data.gov.uk/id/local-authority-district/22UN,Life Opportunities,8520 - Frinton & Walton Swimming Pool,4400 - Maintenance Under Service Agreements,01/05/2012,2095982-1,81.07,2100209 - Autobar UK (South) Ltd,Frinton Walton Pool
Tendring DC,http://statistics.data.gov.uk/id/local-authority-district/22UN,Life Opportunities,8510 - Dovercourt Swimming Pool & All Weather Facilities,4400 - Maintenance Under Service Agreements,29/05/2012,1048757-1,126.45,2112129 - Autobar Vending Services Ltd,DOVERCOURT POOL
Tendring DC,http://statistics.data.gov.uk/id/local-authority-district/22UN,Life Opportunities,8510 - Dovercourt Swimming Pool & All Weather Facilities,4400 - Maintenance Under Service Agreements,15/05/2012,2096477-1,126.45,2112129 - Autobar Vending Services Ltd,Dovercourt Pool
Tendring DC,http://statistics.data.gov.uk/id/local-authority-district/22UN,Life Opportunities,8520 - Frinton & Walton Swimming Pool,4400 - Maintenance Under Service Agreements,15/05/2012,2096478-1,81.07,2112129 - Autobar Vending Services Ltd,Frinton & Walton Pool
Tendring DC,http://statistics.data.gov.uk/id/local-authority-district/22UN,Life Opportunities,8520 - Frinton & Walton Swimming Pool,4400 - Maintenance Under Service Agreements,29/05/2012,2096800-1,81.07,REDACTED PERSONAL DATA,REDACTED PERSONAL DATA
Tendring DC,http://statistics.data.gov.uk/id/local-authority-district/22UN,Life Opportunities,8510 - Dovercourt Swimming Pool & All Weather Facilities,4300 - Printing & Stationery,15/05/2012,2096424-1,299,2100069 - Autoprint,Dovercourt Pool
Tendring DC,http://statistics.data.gov.uk/id/local-authority-district/22UN,Life Opportunities,8520 - Frinton & Walton Swimming Pool,4300 - Printing & Stationery,15/05/2012,2096450-1,196,2100069 - Autoprint,Frinton Pool
Tendring DC,http://statistics.data.gov.uk/id/local-authority-district/22UN,Life Opportunities,8540 - Leisure Centre Clacton,4200 - Clothing & Uniforms,15/05/2012,2096305-1,64,2106876 - Badgemaster Ltd,
Tendring DC,http://statistics.data.gov.uk/id/local-authority-district/22UN,Life Opportunities,8540 - Leisure Centre Clacton,4200 - Clothing & Uniforms,22/05/2012,2096659-1,26.75,2106876 - Badgemaster Ltd,
Tendring DC,http://statistics.data.gov.uk/id/local-authority-district/22UN,Life Opportunities,5820 - Harwich Sports Centre,4040 - Equipment & Tools,29/05/2012,1048750-1,30.78,2106358 - Baker Ross Ltd,ART + CRAFT MATERIALS
Tendring DC,http://statistics.data.gov.uk/id/local-authority-district/22UN,Life Opportunities,5820 - Harwich Sports Centre,4040 - Equipment & Tools,29/05/2012,2096886-1,22.24,REDACTED PERSONAL DATA,REDACTED PERSONAL DATA
Tendring DC,http://statistics.data.gov.uk/id/local-authority-district/22UN,Life Opportunities,6160 - Princes Theatre,4200 - Clothing & Uniforms,22/05/2012,2096576-1,50.69,2109068 - Ballantyne Edwards Ltd,Theatre Uniform
Tendring DC,http://statistics.data.gov.uk/id/local-authority-district/22UN,Life Opportunities,6160 - Princes Theatre,4200 - Clothing & Uniforms,22/05/2012,2096577-1,277.64,2109068 - Ballantyne Edwards Ltd,
Tendring DC,http://statistics.data.gov.uk/id/local-authority-district/22UN,Life Opportunities,8520 - Frinton & Walton Swimming Pool,4300 - Printing & Stationery,08/05/2012,1048464-1,63.1,2100111 - Banner Business Supplies Ltd,FRINTON WALTON POOL
Tendring DC,http://statistics.data.gov.uk/id/local-authority-district/22UN,Life Opportunities,8540 - Leisure Centre Clacton,4300 - Printing & Stationery,15/05/2012,1048592-1,50.48,2100111 - Banner Business Supplies Ltd,
Tendring DC,http://statistics.data.gov.uk/id/local-authority-district/22UN,Life Opportunities,8510 - Dovercourt Swimming Pool & All Weather Facilities,4300 - Printing & Stationery,29/05/2012,1048729-1,50.48,2100111 - Banner Business Supplies Ltd,DOVERCOURT POOL
Tendring DC,http://statistics.data.gov.uk/id/local-authority-district/22UN,Life Opportunities,8510 - Dovercourt Swimming Pool & All Weather Facilities,4300 - Printing & Stationery,29/05/2012,1048730-1,75.12,2100111 - Banner Business Supplies Ltd,DOVERCOURT POOL
Tendring DC,http://statistics.data.gov.uk/id/local-authority-district/22UN,Life Opportunities,5240 - HRA - Managing Tenancies,4312 - Tenancy Stationery,08/05/2012,2096022-1,75.72,REDACTED COMMERCIAL CONFIDENTIALITY,REDACTED COMMERCIAL CONFIDENTIALITY
Tendring DC,http://statistics.data.gov.uk/id/local-authority-district/22UN,Life Opportunities,5240 - HRA - Managing Tenancies,4312 - Tenancy Stationery,29/05/2012,2096797-1,88.34,REDACTED PERSONAL DATA,REDACTED PERSONAL DATA
Tendring DC,http://statistics.data.gov.uk/id/local-authority-district/22UN,Life Opportunities,8510 - Dovercourt Swimming Pool & All Weather Facilities,5196 - Credit Card charges,21/05/2012,2096548-1,86.84,2100141 - Barclaycard Merchant Services,Dovercourt Pool
Tendring DC,http://statistics.data.gov.uk/id/local-authority-district/22UN,Life Opportunities,8510 - Dovercourt Swimming Pool & All Weather Facilities,5196 - Credit Card charges,21/05/2012,2096548-2,33.9,2100141 - Barclaycard Merchant Services,Dovercourt Pool
Tendring DC,http://statistics.data.gov.uk/id/local-authority-district/22UN,Life Opportunities,8540 - Leisure Centre Clacton,5196 - Credit Card charges,21/05/2012,2096549-1,33.9,2100141 - Barclaycard Merchant Services,April
Tendring DC,http://statistics.data.gov.uk/id/local-authority-district/22UN,Life Opportunities,8540 - Leisure Centre Clacton,5196 - Credit Card charges,21/05/2012,2096549-2,458.28,2100141 - Barclaycard Merchant Services,April
Tendring DC,http://statistics.data.gov.uk/id/local-authority-district/22UN,Life Opportunities,5860 - Manningtree Sports Centre,5196 - Credit Card charges,21/05/2012,2096550-1,16.95,2100141 - Barclaycard Merchant Services,PDQ for April
Tendring DC,http://statistics.data.gov.uk/id/local-authority-district/22UN,Life Opportunities,5860 - Manningtree Sports Centre,5196 - Credit Card charges,21/05/2012,2096550-2,41.45,2100141 - Barclaycard Merchant Services,PDQ for April
Tendring DC,http://statistics.data.gov.uk/id/local-authority-district/22UN,Life Opportunities,5820 - Harwich Sports Centre,5196 - Credit Card charges,21/05/2012,2096551-1,16.95,2100141 - Barclaycard Merchant Services,Barclaycard
Tendring DC,http://statistics.data.gov.uk/id/local-authority-district/22UN,Life Opportunities,5820 - Harwich Sports Centre,5196 - Credit Card charges,21/05/2012,2096551-2,33.24,2100141 - Barclaycard Merchant Services,Barclaycard
Tendring DC,http://statistics.data.gov.uk/id/local-authority-district/22UN,Life Opportunities,5800 - Brightlingsea Sports Centre,5196 - Credit Card charges,21/05/2012,2096552-1,20,2100141 - Barclaycard Merchant Services,Barclaycard Credit Cards
Tendring DC,http://statistics.data.gov.uk/id/local-authority-district/22UN,Life Opportunities,5800 - Brightlingsea Sports Centre,5196 - Credit Card charges,21/05/2012,2096552-2,22.1,2100141 - Barclaycard Merchant Services,Barclaycard Credit Cards
Tendring DC,http://statistics.data.gov.uk/id/local-authority-district/22UN,Life Opportunities,H805 - Major Refurbishment of Heating,C200 - Main Contractor,29/05/2012,2097018-1,22492.27,2100155 - Blue Flame (Colchester) Ltd,Heater Refurb Contract 09/12
Tendring DC,http://statistics.data.gov.uk/id/local-authority-district/22UN,Life Opportunities,H920 - DFGs,C400 - Grant payments,15/05/2012,2096323-1,50,2107495 - Blue Spark Electrical Ltd,2 Grange Court
Tendring DC,http://statistics.data.gov.uk/id/local-authority-district/22UN,Life Opportunities,H920 - DFGs,C400 - Grant payments,29/05/2012,2096967-1,50,REDACTED PERSONAL DATA,REDACTED PERSONAL DATA
Tendring DC,http://statistics.data.gov.uk/id/local-authority-district/22UN,Life Opportunities,8540 - Leisure Centre Clacton,2700 - Cleaning Materials,22/05/2012,2096664-1,1045,2102036 - Bonasystems Europe Ltd,
Tendring DC,http://statistics.data.gov.uk/id/local-authority-district/22UN,Life Opportunities,5140 - Homelessness,4683 - Other Homelessness Expenses,22/05/2012,2096731-1,88.94,REDACTED PERSONAL DATA,REDACTED PERSONAL DATA
Tendring DC,http://statistics.data.gov.uk/id/local-authority-district/22UN,Life Opportunities,5240 - HRA - Managing Tenancies,5242 - Tenant Relations,15/05/2012,2096273-1,10,REDACTED PERSONAL DATA,REDACTED PERSONAL DATA
Tendring DC,http://statistics.data.gov.uk/id/local-authority-district/22UN,Life Opportunities,5480 - HRA - Repair & Maintenance,2008 - Responsive Maintenance - Floor Wall And Ceiling Fi,29/05/2012,2096821-1,425,REDACTED PERSONAL DATA,REDACTED PERSONAL DATA
Tendring DC,http://statistics.data.gov.uk/id/local-authority-district/22UN,Life Opportunities,6160 - Princes Theatre,4622 - Hired Services - Artistes and Production Companies,08/05/2012,1048449-1,2731.67,REDACTED PERSONAL DATA,REDACTED PERSONAL DATA
Tendring DC,http://statistics.data.gov.uk/id/local-authority-district/22UN,Life Opportunities,7520 - Tourism Publicity Marketing Promotion,4880 - Subscriptions Paid,01/05/2012,2095955-1,1550,2111799 - British Destination,Annual Membership
Tendring DC,http://statistics.data.gov.uk/id/local-authority-district/22UN,Life Opportunities,5960 - Recreation Grounds,2304 - Energy Costs - Electricity,01/05/2012,2095884-1,572.47,2100197 - British Gas Trading Ltd,March Electric
Tendring DC,http://statistics.data.gov.uk/id/local-authority-district/22UN,Life Opportunities,5820 - Harwich Sports Centre,2304 - Energy Costs - Electricity,01/05/2012,2095884-10,580.39,2100197 - British Gas Trading Ltd,March Electric
Tendring DC,http://statistics.data.gov.uk/id/local-authority-district/22UN,Life Opportunities,5960 - Recreation Grounds,2304 - Energy Costs - Electricity,01/05/2012,2095884-11,-202.99,2100197 - British Gas Trading Ltd,March Electric
Tendring DC,http://statistics.data.gov.uk/id/local-authority-district/22UN,Life Opportunities,5960 - Recreation Grounds,2304 - Energy Costs - Electricity,01/05/2012,2095884-2,322.09,2100197 - British Gas Trading Ltd,March Electric
Tendring DC,http://statistics.data.gov.uk/id/local-authority-district/22UN,Life Opportunities,5860 - Manningtree Sports Centre,2304 - Energy Costs - Electricity,01/05/2012,2095884-3,1434.37,2100197 - British Gas Trading Ltd,March Electric
Tendring DC,http://statistics.data.gov.uk/id/local-authority-district/22UN,Life Opportunities,6040 - Miscellaneous Seafront Activities,2304 - Energy Costs - Electricity,01/05/2012,2095884-4,160.21,2100197 - British Gas Trading Ltd,March Electric
Tendring DC,http://statistics.data.gov.uk/id/local-authority-district/22UN,Life Opportunities,6040 - Miscellaneous Seafront Activities,2304 - Energy Costs - Electricity,01/05/2012,2095884-5,13.49,2100197 - British Gas Trading Ltd,March Electric
Tendring DC,http://statistics.data.gov.uk/id/local-authority-district/22UN,Life Opportunities,6000 - Beach Hut Sites,2304 - Energy Costs - Electricity,01/05/2012,2095884-6,135.19,2100197 - British Gas Trading Ltd,March Electric
Tendring DC,http://statistics.data.gov.uk/id/local-authority-district/22UN,Life Opportunities,6080 - Shops & Kiosks,2304 - Energy Costs - Electricity,01/05/2012,2095884-7,58.48,2100197 - British Gas Trading Ltd,March Electric
Tendring DC,http://statistics.data.gov.uk/id/local-authority-district/22UN,Life Opportunities,7600 - Tourist Information Centres,2304 - Energy Costs - Electricity,01/05/2012,2095884-8,13.66,2100197 - British Gas Trading Ltd,March Electric
Tendring DC,http://statistics.data.gov.uk/id/local-authority-district/22UN,Life Opportunities,1915 - Low Road Depot,2304 - Energy Costs - Electricity,01/05/2012,2095884-9,147.32,2100197 - British Gas Trading Ltd,March Electric
Tendring DC,http://statistics.data.gov.uk/id/local-authority-district/22UN,Life Opportunities,8520 - Frinton & Walton Swimming Pool,2304 - Energy Costs - Electricity,01/05/2012,2095885-1,226.03,2100197 - British Gas Trading Ltd,Frinton Pool
Tendring DC,http://statistics.data.gov.uk/id/local-authority-district/22UN,Life Opportunities,6740 - Careline,2304 - Energy Costs - Electricity,22/05/2012,2096494-1,118.15,REDACTED PERSONAL DATA,REDACTED PERSONAL DATA
Tendring DC,http://statistics.data.gov.uk/id/local-authority-district/22UN,Life Opportunities,6740 - Careline,2304 - Energy Costs - Electricity,22/05/2012,2096494-2,-35.36,REDACTED PERSONAL DATA,REDACTED PERSONAL DATA
Tendring DC,http://statistics.data.gov.uk/id/local-authority-district/22UN,Life Opportunities,H805 - Major Refurbishment of Heating,C200 - Main Contractor,22/05/2012,2096521-1,744.33,REDACTED PERSONAL DATA,REDACTED PERSONAL DATA
Tendring DC,http://statistics.data.gov.uk/id/local-authority-district/22UN,Life Opportunities,6080 - Shops & Kiosks,2304 - Energy Costs - Electricity,22/05/2012,2096739-1,149.45,REDACTED COMMERCIAL CONFIDENTIALITY,REDACTED COMMERCIAL CONFIDENTIALITY
Tendring DC,http://statistics.data.gov.uk/id/local-authority-district/22UN,Life Opportunities,6040 - Miscellaneous Seafront Activities,2304 - Energy Costs - Electricity,22/05/2012,2096739-10,152.02,REDACTED COMMERCIAL CONFIDENTIALITY,REDACTED COMMERCIAL CONFIDENTIALITY
Tendring DC,http://statistics.data.gov.uk/id/local-authority-district/22UN,Life Opportunities,6080 - Shops & Kiosks,2304 - Energy Costs - Electricity,22/05/2012,2096739-11,-52.47,REDACTED COMMERCIAL CONFIDENTIALITY,REDACTED COMMERCIAL CONFIDENTIALITY
Tendring DC,http://statistics.data.gov.uk/id/local-authority-district/22UN,Life Opportunities,7600 - Tourist Information Centres,2304 - Energy Costs - Electricity,22/05/2012,2096739-2,13.16,REDACTED COMMERCIAL CONFIDENTIALITY,REDACTED COMMERCIAL CONFIDENTIALITY
Tendring DC,http://statistics.data.gov.uk/id/local-authority-district/22UN,Life Opportunities,6000 - Beach Hut Sites,2304 - Energy Costs - Electricity,22/05/2012,2096739-3,140.32,REDACTED COMMERCIAL CONFIDENTIALITY,REDACTED COMMERCIAL CONFIDENTIALITY
Tendring DC,http://statistics.data.gov.uk/id/local-authority-district/22UN,Life Opportunities,1915 - Low Road Depot,2304 - Energy Costs - Electricity,22/05/2012,2096739-4,45.66,REDACTED COMMERCIAL CONFIDENTIALITY,REDACTED COMMERCIAL CONFIDENTIALITY
Tendring DC,http://statistics.data.gov.uk/id/local-authority-district/22UN,Life Opportunities,5820 - Harwich Sports Centre,2304 - Energy Costs - Electricity,22/05/2012,2096739-5,317.05,REDACTED COMMERCIAL CONFIDENTIALITY,REDACTED COMMERCIAL CONFIDENTIALITY
Tendring DC,http://statistics.data.gov.uk/id/local-authority-district/22UN,Life Opportunities,5860 - Manningtree Sports Centre,2304 - Energy Costs - Electricity,22/05/2012,2096739-6,779.96,REDACTED COMMERCIAL CONFIDENTIALITY,REDACTED COMMERCIAL CONFIDENTIALITY
Tendring DC,http://statistics.data.gov.uk/id/local-authority-district/22UN,Life Opportunities,5960 - Recreation Grounds,2304 - Energy Costs - Electricity,22/05/2012,2096739-7,370.31,REDACTED COMMERCIAL CONFIDENTIALITY,REDACTED COMMERCIAL CONFIDENTIALITY
Tendring DC,http://statistics.data.gov.uk/id/local-authority-district/22UN,Life Opportunities,5960 - Recreation Grounds,2304 - Energy Costs - Electricity,22/05/2012,2096739-8,255.7,REDACTED COMMERCIAL CONFIDENTIALITY,REDACTED COMMERCIAL CONFIDENTIALITY
Tendring DC,http://statistics.data.gov.uk/id/local-authority-district/22UN,Life Opportunities,6040 - Miscellaneous Seafront Activities,2304 - Energy Costs - Electricity,22/05/2012,2096739-9,20.14,REDACTED COMMERCIAL CONFIDENTIALITY,REDACTED COMMERCIAL CONFIDENTIALITY
Tendring DC,http://statistics.data.gov.uk/id/local-authority-district/22UN,Life Opportunities,8520 - Frinton & Walton Swimming Pool,2304 - Energy Costs - Electricity,29/05/2012,2096801-1,209.26,REDACTED PERSONAL DATA,REDACTED PERSONAL DATA
Tendring DC,http://statistics.data.gov.uk/id/local-authority-district/22UN,Life Opportunities,6000 - Beach Hut Sites,2304 - Energy Costs - Electricity,29/05/2012,2096917-1,10.98,2104953 - British Gas Trading Ltd,BH4 Gas
Tendring DC,http://statistics.data.gov.uk/id/local-authority-district/22UN,Life Opportunities,7000 - CCTV,4718 - Fixed Communication Lines,01/05/2012,2096002-1,139.5,2100168 - British Telecommunications plc,BT 429816
Tendring DC,http://statistics.data.gov.uk/id/local-authority-district/22UN,Life Opportunities,6740 - Careline,4710 - Telephones - Charges,29/05/2012,2096894-1,55,2100168 - British Telecommunications plc,Greenfields
Tendring DC,http://statistics.data.gov.uk/id/local-authority-district/22UN,Life Opportunities,6740 - Careline,4710 - Telephones - Charges,29/05/2012,2096895-1,118.02,2100168 - British Telecommunications plc,Disaster Recovery
Tendring DC,http://statistics.data.gov.uk/id/local-authority-district/22UN,Life Opportunities,8540 - Leisure Centre Clacton,4710 - Telephones - Charges,29/05/2012,2096982-1,77.48,REDACTED PERSONAL DATA,REDACTED PERSONAL DATA
Tendring DC,http://statistics.data.gov.uk/id/local-authority-district/22UN,Life Opportunities,5820 - Harwich Sports Centre,2700 - Cleaning Materials,29/05/2012,1048752-1,68.35,2101624 - Bunzl,CLEANING MATERIALS
Tendring DC,http://statistics.data.gov.uk/id/local-authority-district/22UN,Life Opportunities,8520 - Frinton & Walton Swimming Pool,2700 - Cleaning Materials,29/05/2012,1048755-1,54.06,2101624 - Bunzl,FRINTON POOL
Tendring DC,http://statistics.data.gov.uk/id/local-authority-district/22UN,Life Opportunities,8520 - Frinton & Walton Swimming Pool,2700 - Cleaning Materials,29/05/2012,1048756-1,156.35,2101624 - Bunzl,FRINTON POOL
Tendring DC,http://statistics.data.gov.uk/id/local-authority-district/22UN,Life Opportunities,8510 - Dovercourt Swimming Pool & All Weather Facilities,2700 - Cleaning Materials,29/05/2012,1048758-1,334.03,2101624 - Bunzl,DOVERCOURT POOL
Tendring DC,http://statistics.data.gov.uk/id/local-authority-district/22UN,Life Opportunities,8540 - Leisure Centre Clacton,2700 - Cleaning Materials,08/05/2012,2096204-1,243.1,2101624 - Bunzl,
Tendring DC,http://statistics.data.gov.uk/id/local-authority-district/22UN,Life Opportunities,8540 - Leisure Centre Clacton,2700 - Cleaning Materials,15/05/2012,2096293-1,206,REDACTED PERSONAL DATA,REDACTED PERSONAL DATA
Tendring DC,http://statistics.data.gov.uk/id/local-authority-district/22UN,Life Opportunities,8540 - Leisure Centre Clacton,2700 - Cleaning Materials,15/05/2012,2096294-1,14.58,REDACTED PERSONAL DATA,REDACTED PERSONAL DATA
Tendring DC,http://statistics.data.gov.uk/id/local-authority-district/22UN,Life Opportunities,5360 - HRA - Sheltered Units,2700 - Cleaning Materials,22/05/2012,2096648-1,65,2101624 - Bunzl,Katrin toilet Roll
Tendring DC,http://statistics.data.gov.uk/id/local-authority-district/22UN,Life Opportunities,8520 - Frinton & Walton Swimming Pool,2100 - Building Repairs,08/05/2012,1048465-1,250,2100280 - C H Lindsey & Son Ltd,FRINTON WALTON POOL
Tendring DC,http://statistics.data.gov.uk/id/local-authority-district/22UN,Life Opportunities,8540 - Leisure Centre Clacton,2100 - Building Repairs,01/05/2012,2095853-1,988.6,2100280 - C H Lindsey & Son Ltd,
Tendring DC,http://statistics.data.gov.uk/id/local-authority-district/22UN,Life Opportunities,8540 - Leisure Centre Clacton,2100 - Building Repairs,15/05/2012,2096296-1,129.71,REDACTED PERSONAL DATA,REDACTED PERSONAL DATA
Tendring DC,http://statistics.data.gov.uk/id/local-authority-district/22UN,Life Opportunities,8540 - Leisure Centre Clacton,2100 - Building Repairs,22/05/2012,2096660-1,1227,2100280 - C H Lindsey & Son Ltd,
Tendring DC,http://statistics.data.gov.uk/id/local-authority-district/22UN,Life Opportunities,6160 - Princes Theatre,4000 - Furniture,15/05/2012,2096334-1,1997.5,2100202 - Capita Business Services Ltd,PAYE net Portal Licence
Tendring DC,http://statistics.data.gov.uk/id/local-authority-district/22UN,Life Opportunities,5480 - HRA - Repair & Maintenance,2064 - Domestic Appliance Repairs,08/05/2012,2096095-1,45,REDACTED PERSONAL DATA,REDACTED PERSONAL DATA
Tendring DC,http://statistics.data.gov.uk/id/local-authority-district/22UN,Life Opportunities,6160 - Princes Theatre,4080 - Materials & Consumables,01/05/2012,2095944-1,154,REDACTED PERSONAL DATA,REDACTED PERSONAL DATA
Tendring DC,http://statistics.data.gov.uk/id/local-authority-district/22UN,Life Opportunities,8540 - Leisure Centre Clacton,4597 - Hired Services - Payments to Contractors,22/05/2012,2096656-1,155.05,2100243 - Caterway,Feb - March
Tendring DC,http://statistics.data.gov.uk/id/local-authority-district/22UN,Life Opportunities,H825 - Refurbishment of Door Entry Systems,C200 - Main Contractor,22/05/2012,2096516-1,230,REDACTED PERSONAL DATA,REDACTED PERSONAL DATA
Tendring DC,http://statistics.data.gov.uk/id/local-authority-district/22UN,Life Opportunities,6740 - Careline,9050 - Careline Income,01/05/2012,2095915-1,9.39,REDACTED PERSONAL DATA,REDACTED PERSONAL DATA
Tendring DC,http://statistics.data.gov.uk/id/local-authority-district/22UN,Life Opportunities,5260 - HRA - Rent Collection And Accounting,4635 - Cash Collection Contract,15/05/2012,2096413-1,367.23,REDACTED COMMERCIAL CONFIDENTIALITY,REDACTED COMMERCIAL CONFIDENTIALITY
Tendring DC,http://statistics.data.gov.uk/id/local-authority-district/22UN,Life Opportunities,5260 - HRA - Rent Collection And Accounting,4635 - Cash Collection Contract,29/05/2012,2096824-1,26.22,REDACTED PERSONAL DATA,REDACTED PERSONAL DATA
Tendring DC,http://statistics.data.gov.uk/id/local-authority-district/22UN,Life Opportunities,6160 - Princes Theatre,2100 - Building Repairs,29/05/2012,2097017-1,157.59,2100858 - Chelmer Electrical Ltd,Repair to Hydroboil
Tendring DC,http://statistics.data.gov.uk/id/local-authority-district/22UN,Life Opportunities,5240 - HRA - Managing Tenancies,4312 - Tenancy Stationery,15/05/2012,1048619-1,-36,REDACTED COMMERCIAL CONFIDENTIALITY,REDACTED COMMERCIAL CONFIDENTIALITY
Tendring DC,http://statistics.data.gov.uk/id/local-authority-district/22UN,Life Opportunities,5240 - HRA - Managing Tenancies,4312 - Tenancy Stationery,15/05/2012,2096412-1,36,2100205 - Chelmsford Safety Supplies Ltd,Black Brogue BFS44/10
Tendring DC,http://statistics.data.gov.uk/id/local-authority-district/22UN,Life Opportunities,8510 - Dovercourt Swimming Pool & All Weather Facilities,4200 - Clothing & Uniforms,22/05/2012,2096568-1,142.5,2100205 - Chelmsford Safety Supplies Ltd,Dovercourt Pool
Tendring DC,http://statistics.data.gov.uk/id/local-authority-district/22UN,Life Opportunities,5220 - HRA - Policy & Management,5253 - HRA Health & Safety Expenses,22/05/2012,2096639-1,54.8,REDACTED COMMERCIAL CONFIDENTIALITY,REDACTED COMMERCIAL CONFIDENTIALITY
Tendring DC,http://statistics.data.gov.uk/id/local-authority-district/22UN,Life Opportunities,5220 - HRA - Policy & Management,5253 - HRA Health & Safety Expenses,29/05/2012,2096827-1,63.98,REDACTED PERSONAL DATA,REDACTED PERSONAL DATA
Tendring DC,http://statistics.data.gov.uk/id/local-authority-district/22UN,Life Opportunities,5140 - Homelessness,4680 - Bed & Breakfast Accommodation,29/05/2012,2096826-1,135,REDACTED PERSONAL DATA,REDACTED PERSONAL DATA
Tendring DC,http://statistics.data.gov.uk/id/local-authority-district/22UN,Life Opportunities,5240 - HRA - Managing Tenancies,4312 - Tenancy Stationery,08/05/2012,2096020-1,42,REDACTED COMMERCIAL CONFIDENTIALITY,REDACTED COMMERCIAL CONFIDENTIALITY
Tendring DC,http://statistics.data.gov.uk/id/local-authority-district/22UN,Life Opportunities,8530 - Brightlingsea Swimming Pool,4000 - Furniture,29/05/2012,2096970-1,190,REDACTED PERSONAL DATA,REDACTED PERSONAL DATA
Tendring DC,http://statistics.data.gov.uk/id/local-authority-district/22UN,Life Opportunities,8530 - Brightlingsea Swimming Pool,4000 - Furniture,29/05/2012,2096970-2,50,REDACTED PERSONAL DATA,REDACTED PERSONAL DATA
Tendring DC,http://statistics.data.gov.uk/id/local-authority-district/22UN,Life Opportunities,5800 - Brightlingsea Sports Centre,5160 - Advertising,08/05/2012,2096121-1,104,2100246 - Chronicle Publishing Services,Chronicle Publishing
Tendring DC,http://statistics.data.gov.uk/id/local-authority-district/22UN,Life Opportunities,6160 - Princes Theatre,5308 - Ice Cream,01/05/2012,2095953-1,88.48,2108623 - CICC Ltd,Ice Cream
Tendring DC,http://statistics.data.gov.uk/id/local-authority-district/22UN,Life Opportunities,6160 - Princes Theatre,5308 - Ice Cream,01/05/2012,2095954-1,114.54,2108623 - CICC Ltd,Ice Cream
Tendring DC,http://statistics.data.gov.uk/id/local-authority-district/22UN,Life Opportunities,8540 - Leisure Centre Clacton,2100 - Building Repairs,15/05/2012,2096301-1,28.42,2100267 - City Electrical Factors Ltd Anglia Division,
Tendring DC,http://statistics.data.gov.uk/id/local-authority-district/22UN,Life Opportunities,8540 - Leisure Centre Clacton,2100 - Building Repairs,15/05/2012,2096301-2,0.74,2100267 - City Electrical Factors Ltd Anglia Division,
Tendring DC,http://statistics.data.gov.uk/id/local-authority-district/22UN,Life Opportunities,8510 - Dovercourt Swimming Pool & All Weather Facilities,2100 - Building Repairs,15/05/2012,2096443-1,64.6,2100267 - City Electrical Factors Ltd Anglia Division,Dovercourt Pool
Tendring DC,http://statistics.data.gov.uk/id/local-authority-district/22UN,Life Opportunities,8510 - Dovercourt Swimming Pool & All Weather Facilities,2100 - Building Repairs,15/05/2012,2096443-2,1.66,2100267 - City Electrical Factors Ltd Anglia Division,Dovercourt Pool
Tendring DC,http://statistics.data.gov.uk/id/local-authority-district/22UN,Life Opportunities,8510 - Dovercourt Swimming Pool & All Weather Facilities,2100 - Building Repairs,15/05/2012,2096444-1,5.12,2100267 - City Electrical Factors Ltd Anglia Division,Dovercourt Pool
Tendring DC,http://statistics.data.gov.uk/id/local-authority-district/22UN,Life Opportunities,8510 - Dovercourt Swimming Pool & All Weather Facilities,2100 - Building Repairs,15/05/2012,2096444-2,0.13,2100267 - City Electrical Factors Ltd Anglia Division,Dovercourt Pool
Tendring DC,http://statistics.data.gov.uk/id/local-authority-district/22UN,Life Opportunities,8510 - Dovercourt Swimming Pool & All Weather Facilities,2100 - Building Repairs,15/05/2012,2096445-1,65.38,2100267 - City Electrical Factors Ltd Anglia Division,Dovercourt Pool
Tendring DC,http://statistics.data.gov.uk/id/local-authority-district/22UN,Life Opportunities,8510 - Dovercourt Swimming Pool & All Weather Facilities,2100 - Building Repairs,15/05/2012,2096445-2,1.68,2100267 - City Electrical Factors Ltd Anglia Division,Dovercourt Pool
Tendring DC,http://statistics.data.gov.uk/id/local-authority-district/22UN,Life Opportunities,8510 - Dovercourt Swimming Pool & All Weather Facilities,2100 - Building Repairs,15/05/2012,2096470-1,-65.38,2100267 - City Electrical Factors Ltd Anglia Division,Dovercourt Pool
Tendring DC,http://statistics.data.gov.uk/id/local-authority-district/22UN,Life Opportunities,8510 - Dovercourt Swimming Pool & All Weather Facilities,2100 - Building Repairs,15/05/2012,2096470-2,-1.68,2100267 - City Electrical Factors Ltd Anglia Division,Dovercourt Pool
Tendring DC,http://statistics.data.gov.uk/id/local-authority-district/22UN,Life Opportunities,8540 - Leisure Centre Clacton,5160 - Advertising,29/05/2012,2096968-1,490,REDACTED PERSONAL DATA,REDACTED PERSONAL DATA
Tendring DC,http://statistics.data.gov.uk/id/local-authority-district/22UN,Life Opportunities,5960 - Recreation Grounds,9272 - Pitch Bookings,29/05/2012,2096866-1,33.83,REDACTED PERSONAL DATA,REDACTED PERSONAL DATA
Tendring DC,http://statistics.data.gov.uk/id/local-authority-district/22UN,Life Opportunities,7520 - Tourism Publicity Marketing Promotion,5160 - Advertising,01/05/2012,2095942-1,1750,REDACTED PERSONAL DATA,REDACTED PERSONAL DATA
Tendring DC,http://statistics.data.gov.uk/id/local-authority-district/22UN,Life Opportunities,5140 - Homelessness,4683 - Other Homelessness Expenses,29/05/2012,1048799-1,57.96,REDACTED PERSONAL DATA,REDACTED PERSONAL DATA
Tendring DC,http://statistics.data.gov.uk/id/local-authority-district/22UN,Life Opportunities,5860 - Manningtree Sports Centre,4597 - Hired Services - Payments to Contractors,08/05/2012,1048502-1,184.44,2100314 - Cooper & Brome (Plumbing & Heating) Ltd,BOILER SERVICE X 3
Tendring DC,http://statistics.data.gov.uk/id/local-authority-district/22UN,Life Opportunities,8540 - Leisure Centre Clacton,2100 - Building Repairs,22/05/2012,1048628-1,973.29,2100314 - Cooper & Brome (Plumbing & Heating) Ltd,
Tendring DC,http://statistics.data.gov.uk/id/local-authority-district/22UN,Life Opportunities,H920 - DFGs,C400 - Grant payments,15/05/2012,2096325-1,6282.63,2101884 - Cooper & Brome (Plumbing & Heating) Ltd,9 Parsonage Lane
Tendring DC,http://statistics.data.gov.uk/id/local-authority-district/22UN,Life Opportunities,5880 - Management Of Sport & Leisure Facilities,2100 - Building Repairs,15/05/2012,2096369-1,2485.2,2100314 - Cooper & Brome (Plumbing & Heating) Ltd,Male Changing Room Works
Tendring DC,http://statistics.data.gov.uk/id/local-authority-district/22UN,Life Opportunities,H920 - DFGs,C400 - Grant payments,22/05/2012,2096722-1,3249.48,REDACTED PERSONAL DATA,REDACTED PERSONAL DATA
Tendring DC,http://statistics.data.gov.uk/id/local-authority-district/22UN,Life Opportunities,5480 - HRA - Repair & Maintenance,2077 - Gas Service Contract  Servicing/Testing (Large Sca,22/05/2012,2096767-1,1538.76,2100314 - Cooper & Brome (Plumbing & Heating) Ltd,Large Scale Boilers Contract 09/12
Tendring DC,http://statistics.data.gov.uk/id/local-authority-district/22UN,Life Opportunities,5480 - HRA - Repair & Maintenance,2076 - Gas Service Contract Other Refurbishment/Repairs (,22/05/2012,2096767-2,587.77,2100314 - Cooper & Brome (Plumbing & Heating) Ltd,Large Scale Boilers Contract 09/12
Tendring DC,http://statistics.data.gov.uk/id/local-authority-district/22UN,Life Opportunities,8540 - Leisure Centre Clacton,2308 - Energy Costs - Gas (Including LPG),29/05/2012,1048741-1,2326.17,2104620 - Corona Energy Retail 4 Limited,APRIL
Tendring DC,http://statistics.data.gov.uk/id/local-authority-district/22UN,Life Opportunities,8520 - Frinton & Walton Swimming Pool,2308 - Energy Costs - Gas (Including LPG),29/05/2012,1048785-1,3342.25,2104620 - Corona Energy Retail 4 Limited,FRINTON POOL
Tendring DC,http://statistics.data.gov.uk/id/local-authority-district/22UN,Life Opportunities,8510 - Dovercourt Swimming Pool & All Weather Facilities,2308 - Energy Costs - Gas (Including LPG),29/05/2012,1048786-1,2962.92,2104620 - Corona Energy Retail 4 Limited,DOVERCOURT POOL
Tendring DC,http://statistics.data.gov.uk/id/local-authority-district/22UN,Life Opportunities,5340 - HRA - Communal Central Heating,2308 - Energy Costs - Gas (Including LPG),01/05/2012,2095882-1,8054.1,2104620 - Corona Energy Retail 4 Limited,Gas March SHUs
Tendring DC,http://statistics.data.gov.uk/id/local-authority-district/22UN,Life Opportunities,5360 - HRA - Sheltered Units,2308 - Energy Costs - Gas (Including LPG),01/05/2012,2095882-2,78.88,2104620 - Corona Energy Retail 4 Limited,Gas March SHUs
Tendring DC,http://statistics.data.gov.uk/id/local-authority-district/22UN,Life Opportunities,5140 - Homelessness,4683 - Other Homelessness Expenses,22/05/2012,2096732-1,535,REDACTED PERSONAL DATA,REDACTED PERSONAL DATA
Tendring DC,http://statistics.data.gov.uk/id/local-authority-district/22UN,Life Opportunities,8530 - Brightlingsea Swimming Pool,2100 - Building Repairs,29/05/2012,1048745-1,7.08,2108167 - Crown Paints Ltd,
Tendring DC,http://statistics.data.gov.uk/id/local-authority-district/22UN,Life Opportunities,8530 - Brightlingsea Swimming Pool,2100 - Building Repairs,15/05/2012,2096298-1,5.79,REDACTED PERSONAL DATA,REDACTED PERSONAL DATA
Tendring DC,http://statistics.data.gov.uk/id/local-authority-district/22UN,Life Opportunities,8530 - Brightlingsea Swimming Pool,2100 - Building Repairs,15/05/2012,2096299-1,302.75,REDACTED PERSONAL DATA,REDACTED PERSONAL DATA
Tendring DC,http://statistics.data.gov.uk/id/local-authority-district/22UN,Life Opportunities,8530 - Brightlingsea Swimming Pool,2100 - Building Repairs,15/05/2012,2096299-2,6.11,REDACTED PERSONAL DATA,REDACTED PERSONAL DATA
Tendring DC,http://statistics.data.gov.uk/id/local-authority-district/22UN,Life Opportunities,8530 - Brightlingsea Swimming Pool,2100 - Building Repairs,15/05/2012,2096384-1,38.03,2108167 - Crown Paints Ltd,
Tendring DC,http://statistics.data.gov.uk/id/local-authority-district/22UN,Life Opportunities,8530 - Brightlingsea Swimming Pool,2100 - Building Repairs,29/05/2012,2096981-1,8.58,REDACTED PERSONAL DATA,REDACTED PERSONAL DATA
Tendring DC,http://statistics.data.gov.uk/id/local-authority-district/22UN,Life Opportunities,8540 - Leisure Centre Clacton,4880 - Subscriptions Paid,29/05/2012,1048793-1,10,2111169 - CVS Tendring,
Tendring DC,http://statistics.data.gov.uk/id/local-authority-district/22UN,Life Opportunities,5360 - HRA - Sheltered Units,4710 - Telephones - Charges,22/05/2012,2096652-1,65.97,2106704 - Daisy Communications Ltd,Daisy Bills for April
Tendring DC,http://statistics.data.gov.uk/id/local-authority-district/22UN,Life Opportunities,6160 - Princes Theatre,4220 - Laundry,15/05/2012,2096414-1,5.54,2100397 - Danes of Colchester Ltd,Laundry
Tendring DC,http://statistics.data.gov.uk/id/local-authority-district/22UN,Life Opportunities,6160 - Princes Theatre,4220 - Laundry,15/05/2012,2096415-1,29.9,2100397 - Danes of Colchester Ltd,Laundry
Tendring DC,http://statistics.data.gov.uk/id/local-authority-district/22UN,Life Opportunities,6160 - Princes Theatre,4220 - Laundry,15/05/2012,2096415-2,0.46,2100397 - Danes of Colchester Ltd,Laundry
Tendring DC,http://statistics.data.gov.uk/id/local-authority-district/22UN,Life Opportunities,H920 - DFGs,C400 - Grant payments,29/05/2012,2096964-1,2800,REDACTED PERSONAL DATA,REDACTED PERSONAL DATA
Tendring DC,http://statistics.data.gov.uk/id/local-authority-district/22UN,Life Opportunities,8540 - Leisure Centre Clacton,9246 - Lifestyles Card - Monthly DD,15/05/2012,2096278-1,130,REDACTED PERSONAL DATA,REDACTED PERSONAL DATA
Tendring DC,http://statistics.data.gov.uk/id/local-authority-district/22UN,Life Opportunities,7520 - Tourism Publicity Marketing Promotion,5160 - Advertising,22/05/2012,2096581-1,250,2106190 - Destination UK Limited,Destination UK
Tendring DC,http://statistics.data.gov.uk/id/local-authority-district/22UN,Life Opportunities,8540 - Leisure Centre Clacton,5160 - Advertising,29/05/2012,2096976-1,50,REDACTED PERSONAL DATA,REDACTED PERSONAL DATA
Tendring DC,http://statistics.data.gov.uk/id/local-authority-district/22UN,Life Opportunities,8540 - Leisure Centre Clacton,5160 - Advertising,22/05/2012,2096657-1,435,2102946 - Dream 100.2fm,
Tendring DC,http://statistics.data.gov.uk/id/local-authority-district/22UN,Life Opportunities,8540 - Leisure Centre Clacton,5160 - Advertising,22/05/2012,2096658-1,350,2102946 - Dream 100.2fm,
Tendring DC,http://statistics.data.gov.uk/id/local-authority-district/22UN,Life Opportunities,H820 - Asbestos Management,C200 - Main Contractor,22/05/2012,2096525-1,390,REDACTED PERSONAL DATA,REDACTED PERSONAL DATA
Tendring DC,http://statistics.data.gov.uk/id/local-authority-district/22UN,Life Opportunities,8520 - Frinton & Walton Swimming Pool,4081 - Chemicals,08/05/2012,1048463-1,627.4,2100433 - East Essex Pool Care,FRINTON WALTON POOL
Tendring DC,http://statistics.data.gov.uk/id/local-authority-district/22UN,Life Opportunities,8520 - Frinton & Walton Swimming Pool,4081 - Chemicals,08/05/2012,1048466-1,117.6,2100433 - East Essex Pool Care,FRINTON WALTON POOL
Tendring DC,http://statistics.data.gov.uk/id/local-authority-district/22UN,Life Opportunities,8540 - Leisure Centre Clacton,4081 - Chemicals,22/05/2012,1048679-1,-32,2100433 - East Essex Pool Care,
Tendring DC,http://statistics.data.gov.uk/id/local-authority-district/22UN,Life Opportunities,8540 - Leisure Centre Clacton,4081 - Chemicals,22/05/2012,1048680-1,-16,2100433 - East Essex Pool Care,
Tendring DC,http://statistics.data.gov.uk/id/local-authority-district/22UN,Life Opportunities,8540 - Leisure Centre Clacton,4081 - Chemicals,08/05/2012,2096187-1,500.4,2100433 - East Essex Pool Care,
Tendring DC,http://statistics.data.gov.uk/id/local-authority-district/22UN,Life Opportunities,8540 - Leisure Centre Clacton,4081 - Chemicals,08/05/2012,2096188-1,89.5,2100433 - East Essex Pool Care,
Tendring DC,http://statistics.data.gov.uk/id/local-authority-district/22UN,Life Opportunities,8540 - Leisure Centre Clacton,4081 - Chemicals,08/05/2012,2096189-1,571.96,2100433 - East Essex Pool Care,
Tendring DC,http://statistics.data.gov.uk/id/local-authority-district/22UN,Life Opportunities,8540 - Leisure Centre Clacton,4081 - Chemicals,08/05/2012,2096190-1,38.5,2100433 - East Essex Pool Care,
Tendring DC,http://statistics.data.gov.uk/id/local-authority-district/22UN,Life Opportunities,8540 - Leisure Centre Clacton,4081 - Chemicals,08/05/2012,2096191-1,38.5,2100433 - East Essex Pool Care,
Tendring DC,http://statistics.data.gov.uk/id/local-authority-district/22UN,Life Opportunities,8540 - Leisure Centre Clacton,4081 - Chemicals,08/05/2012,2096192-1,79.9,2100433 - East Essex Pool Care,
Tendring DC,http://statistics.data.gov.uk/id/local-authority-district/22UN,Life Opportunities,8510 - Dovercourt Swimming Pool & All Weather Facilities,4081 - Chemicals,08/05/2012,2096193-1,226.2,2100433 - East Essex Pool Care,Dovercourt Pool
Tendring DC,http://statistics.data.gov.uk/id/local-authority-district/22UN,Life Opportunities,8510 - Dovercourt Swimming Pool & All Weather Facilities,4081 - Chemicals,08/05/2012,2096194-1,226.2,2100433 - East Essex Pool Care,Dovercourt Pool
Tendring DC,http://statistics.data.gov.uk/id/local-authority-district/22UN,Life Opportunities,8510 - Dovercourt Swimming Pool & All Weather Facilities,4081 - Chemicals,08/05/2012,2096195-1,648.5,2100433 - East Essex Pool Care,Dovercourt Pool
Tendring DC,http://statistics.data.gov.uk/id/local-authority-district/22UN,Life Opportunities,8510 - Dovercourt Swimming Pool & All Weather Facilities,2100 - Building Repairs,15/05/2012,2096436-1,1110,2100433 - East Essex Pool Care,Dovercourt Pool
Tendring DC,http://statistics.data.gov.uk/id/local-authority-district/22UN,Life Opportunities,8510 - Dovercourt Swimming Pool & All Weather Facilities,2100 - Building Repairs,15/05/2012,2096437-1,110,2100433 - East Essex Pool Care,Dovercourt Pool
Tendring DC,http://statistics.data.gov.uk/id/local-authority-district/22UN,Life Opportunities,8520 - Frinton & Walton Swimming Pool,4400 - Maintenance Under Service Agreements,15/05/2012,2096447-1,110,2100433 - East Essex Pool Care,Frinton & Walton Pool
Tendring DC,http://statistics.data.gov.uk/id/local-authority-district/22UN,Life Opportunities,8520 - Frinton & Walton Swimming Pool,4081 - Chemicals,15/05/2012,2096466-1,-40,2100433 - East Essex Pool Care,Frinton & Walton Pool
Tendring DC,http://statistics.data.gov.uk/id/local-authority-district/22UN,Life Opportunities,8540 - Leisure Centre Clacton,4081 - Chemicals,15/05/2012,2096467-1,-24,2100433 - East Essex Pool Care,Dovercourt Pool
Tendring DC,http://statistics.data.gov.uk/id/local-authority-district/22UN,Life Opportunities,8510 - Dovercourt Swimming Pool & All Weather Facilities,4081 - Chemicals,15/05/2012,2096469-1,-40,2100433 - East Essex Pool Care,Dovercourt Pool
Tendring DC,http://statistics.data.gov.uk/id/local-authority-district/22UN,Life Opportunities,8540 - Leisure Centre Clacton,2100 - Building Repairs,22/05/2012,2096665-1,460.88,2100433 - East Essex Pool Care,
Tendring DC,http://statistics.data.gov.uk/id/local-authority-district/22UN,Life Opportunities,8540 - Leisure Centre Clacton,2100 - Building Repairs,22/05/2012,2096666-1,366.9,2100433 - East Essex Pool Care,
Tendring DC,http://statistics.data.gov.uk/id/local-authority-district/22UN,Life Opportunities,8520 - Frinton & Walton Swimming Pool,4081 - Chemicals,22/05/2012,2096667-1,686,2100433 - East Essex Pool Care,Frinton & Walton Pool
Tendring DC,http://statistics.data.gov.uk/id/local-authority-district/22UN,Life Opportunities,8520 - Frinton & Walton Swimming Pool,2100 - Building Repairs,22/05/2012,2096668-1,148.8,2100433 - East Essex Pool Care,Frinton & Walton Pool
Tendring DC,http://statistics.data.gov.uk/id/local-authority-district/22UN,Life Opportunities,7600 - Tourist Information Centres,4080 - Materials & Consumables,08/05/2012,1048444-1,24,2102407 - Eastern Cash Registers (Norwich) Limited,INK CASSETTE
Tendring DC,http://statistics.data.gov.uk/id/local-authority-district/22UN,Life Opportunities,8530 - Brightlingsea Swimming Pool,4446 - Bulk Bin Collection,08/05/2012,1048446-1,150,2100493 - Eastern Waste Disposal Limited,SKIP
Tendring DC,http://statistics.data.gov.uk/id/local-authority-district/22UN,Life Opportunities,7680 - Tour De Tendring,5500 - Miscellaneous Expenses,29/05/2012,2096838-1,552,REDACTED PERSONAL DATA,REDACTED PERSONAL DATA
Tendring DC,http://statistics.data.gov.uk/id/local-authority-district/22UN,Life Opportunities,8540 - Leisure Centre Clacton,2304 - Energy Costs - Electricity,15/05/2012,2096378-1,6063.95,2105146 - EDF Energy 1 Ltd,April
Tendring DC,http://statistics.data.gov.uk/id/local-authority-district/22UN,Life Opportunities,8510 - Dovercourt Swimming Pool & All Weather Facilities,2304 - Energy Costs - Electricity,15/05/2012,2096433-1,2577.06,2105146 - EDF Energy 1 Ltd,Dovercourt Pool
Tendring DC,http://statistics.data.gov.uk/id/local-authority-district/22UN,Life Opportunities,8530 - Brightlingsea Swimming Pool,2520 - Sewerage & Environmental Charges,15/05/2012,2096307-1,1026,2100418 - Environment Agency,Discharge consent 12/13
Tendring DC,http://statistics.data.gov.uk/id/local-authority-district/22UN,Life Opportunities,5480 - HRA - Repair & Maintenance,2017 - Mechanical Equipment /Extract Fans,22/05/2012,1048629-1,168.54,REDACTED PERSONAL DATA,REDACTED PERSONAL DATA
Tendring DC,http://statistics.data.gov.uk/id/local-authority-district/22UN,Life Opportunities,5480 - HRA - Repair & Maintenance,2304 - Energy Costs - Electricity,01/05/2012,2095887-1,3.23,2107644 - Eon,24 St M
Tendring DC,http://statistics.data.gov.uk/id/local-authority-district/22UN,Life Opportunities,5480 - HRA - Repair & Maintenance,2304 - Energy Costs - Electricity,01/05/2012,2095887-2,15.01,2107644 - Eon,24 St M
Tendring DC,http://statistics.data.gov.uk/id/local-authority-district/22UN,Life Opportunities,5480 - HRA - Repair & Maintenance,2308 - Energy Costs - Gas (Including LPG),01/05/2012,2095964-1,8.02,REDACTED PERSONAL DATA,REDACTED PERSONAL DATA
Tendring DC,http://statistics.data.gov.uk/id/local-authority-district/22UN,Life Opportunities,5360 - HRA - Sheltered Units,2304 - Energy Costs - Electricity,15/05/2012,2096406-1,9.25,2107644 - Eon,KD Warden Jan/Apr
Tendring DC,http://statistics.data.gov.uk/id/local-authority-district/22UN,Life Opportunities,7520 - Tourism Publicity Marketing Promotion,4880 - Subscriptions Paid,22/05/2012,2096574-1,1500,REDACTED COMMERCIAL CONFIDENTIALITY,REDACTED COMMERCIAL CONFIDENTIALITY
Tendring DC,http://statistics.data.gov.uk/id/local-authority-district/22UN,Life Opportunities,7520 - Tourism Publicity Marketing Promotion,5160 - Advertising,22/05/2012,2096579-1,200,2109598 - Expo Publishing,Coach Monthly
Tendring DC,http://statistics.data.gov.uk/id/local-authority-district/22UN,Life Opportunities,5480 - HRA - Repair & Maintenance,2082 - CCTV repairs,01/05/2012,2095965-1,635,REDACTED PERSONAL DATA,REDACTED PERSONAL DATA
Tendring DC,http://statistics.data.gov.uk/id/local-authority-district/22UN,Life Opportunities,5480 - HRA - Repair & Maintenance,2082 - CCTV repairs,01/05/2012,2095966-1,515,REDACTED PERSONAL DATA,REDACTED PERSONAL DATA
Tendring DC,http://statistics.data.gov.uk/id/local-authority-district/22UN,Life Opportunities,5480 - HRA - Repair & Maintenance,2082 - CCTV repairs,01/05/2012,2095967-1,635,REDACTED PERSONAL DATA,REDACTED PERSONAL DATA
Tendring DC,http://statistics.data.gov.uk/id/local-authority-district/22UN,Life Opportunities,5480 - HRA - Repair & Maintenance,2058 - Fire Alarms Repairs,08/05/2012,2096007-1,50,REDACTED PERSONAL DATA,REDACTED PERSONAL DATA
Tendring DC,http://statistics.data.gov.uk/id/local-authority-district/22UN,Life Opportunities,5480 - HRA - Repair & Maintenance,2057 - Fire Alarms Servicing,08/05/2012,2096008-1,135,REDACTED PERSONAL DATA,REDACTED PERSONAL DATA
Tendring DC,http://statistics.data.gov.uk/id/local-authority-district/22UN,Life Opportunities,7600 - Tourist Information Centres,9356 - Commission Sales,15/05/2012,2096420-1,1593,2103743 - First Essex Buses Ltd,April Commission
Tendring DC,http://statistics.data.gov.uk/id/local-authority-district/22UN,Life Opportunities,8540 - Leisure Centre Clacton,2904 - Premises Licensing - Other,29/05/2012,2096959-1,284.67,2107806 - Fitness Professionals Ltd,BODY TRAINING SYSTEM
Tendring DC,http://statistics.data.gov.uk/id/local-authority-district/22UN,Life Opportunities,8540 - Leisure Centre Clacton,2904 - Premises Licensing - Other,29/05/2012,2096960-1,284.67,2107806 - Fitness Professionals Ltd,BODY TRAINING SYSTEM
Tendring DC,http://statistics.data.gov.uk/id/local-authority-district/22UN,Life Opportunities,7600 - Tourist Information Centres,9356 - Commission Sales,22/05/2012,2096580-1,405,2107423 - Fizz Coach Trips,April Commission
Tendring DC,http://statistics.data.gov.uk/id/local-authority-district/22UN,Life Opportunities,5480 - HRA - Repair & Maintenance,2089 - Sewer Repairs,29/05/2012,1048712-1,230,REDACTED PERSONAL DATA,REDACTED PERSONAL DATA
Tendring DC,http://statistics.data.gov.uk/id/local-authority-district/22UN,Life Opportunities,5480 - HRA - Repair & Maintenance,2089 - Sewer Repairs,29/05/2012,1048713-1,230,REDACTED PERSONAL DATA,REDACTED PERSONAL DATA
Tendring DC,http://statistics.data.gov.uk/id/local-authority-district/22UN,Life Opportunities,5480 - HRA - Repair & Maintenance,2089 - Sewer Repairs,29/05/2012,2096822-1,230,REDACTED PERSONAL DATA,REDACTED PERSONAL DATA
Tendring DC,http://statistics.data.gov.uk/id/local-authority-district/22UN,Life Opportunities,5480 - HRA - Repair & Maintenance,2089 - Sewer Repairs,29/05/2012,2096823-1,230,REDACTED PERSONAL DATA,REDACTED PERSONAL DATA
Tendring DC,http://statistics.data.gov.uk/id/local-authority-district/22UN,Life Opportunities,H920 - DFGs,C400 - Grant payments,15/05/2012,2096324-1,7133.25,2112067 - GB Adaptions Ltd,9 Parsonage Lane
Tendring DC,http://statistics.data.gov.uk/id/local-authority-district/22UN,Life Opportunities,5860 - Manningtree Sports Centre,4400 - Maintenance Under Service Agreements,08/05/2012,1048461-1,106,2100546 - GCS Alarms,MOVE SMOKE DETECTOR FOR BUILDING WORK
Tendring DC,http://statistics.data.gov.uk/id/local-authority-district/22UN,Life Opportunities,5860 - Manningtree Sports Centre,4400 - Maintenance Under Service Agreements,08/05/2012,2096024-1,170,2100546 - GCS Alarms,Hove Alarm Sensors for Building Work
Tendring DC,http://statistics.data.gov.uk/id/local-authority-district/22UN,Life Opportunities,8540 - Leisure Centre Clacton,2100 - Building Repairs,08/05/2012,2096202-1,80,2100546 - GCS Alarms,
Tendring DC,http://statistics.data.gov.uk/id/local-authority-district/22UN,Life Opportunities,8540 - Leisure Centre Clacton,2100 - Building Repairs,08/05/2012,2096203-1,142,2100546 - GCS Alarms,
Tendring DC,http://statistics.data.gov.uk/id/local-authority-district/22UN,Life Opportunities,8540 - Leisure Centre Clacton,2100 - Building Repairs,15/05/2012,2096292-1,15,REDACTED PERSONAL DATA,REDACTED PERSONAL DATA
Tendring DC,http://statistics.data.gov.uk/id/local-authority-district/22UN,Life Opportunities,8510 - Dovercourt Swimming Pool & All Weather Facilities,4400 - Maintenance Under Service Agreements,15/05/2012,2096435-1,435,2100546 - GCS Alarms,Dovercourt Pool
Tendring DC,http://statistics.data.gov.uk/id/local-authority-district/22UN,Life Opportunities,7000 - CCTV,4400 - Maintenance Under Service Agreements,22/05/2012,2096644-1,1294.5,REDACTED COMMERCIAL CONFIDENTIALITY,REDACTED COMMERCIAL CONFIDENTIALITY
Tendring DC,http://statistics.data.gov.uk/id/local-authority-district/22UN,Life Opportunities,7000 - CCTV,4400 - Maintenance Under Service Agreements,22/05/2012,2096645-1,214,2100546 - GCS Alarms,Lidls Column
Tendring DC,http://statistics.data.gov.uk/id/local-authority-district/22UN,Life Opportunities,7000 - CCTV,4400 - Maintenance Under Service Agreements,22/05/2012,2096646-1,70,2100546 - GCS Alarms,Rebot System
Tendring DC,http://statistics.data.gov.uk/id/local-authority-district/22UN,Life Opportunities,7000 - CCTV,4400 - Maintenance Under Service Agreements,22/05/2012,2096647-1,150,2100546 - GCS Alarms,Job not completed
Tendring DC,http://statistics.data.gov.uk/id/local-authority-district/22UN,Life Opportunities,5860 - Manningtree Sports Centre,4400 - Maintenance Under Service Agreements,29/05/2012,2096890-1,118,REDACTED PERSONAL DATA,REDACTED PERSONAL DATA
Tendring DC,http://statistics.data.gov.uk/id/local-authority-district/22UN,Life Opportunities,8530 - Brightlingsea Swimming Pool,2100 - Building Repairs,29/05/2012,2096978-1,110,REDACTED PERSONAL DATA,REDACTED PERSONAL DATA
Tendring DC,http://statistics.data.gov.uk/id/local-authority-district/22UN,Life Opportunities,5480 - HRA - Repair & Maintenance,2018 - Other  Responsive Repairs,08/05/2012,2096079-1,26.5,REDACTED PERSONAL DATA,REDACTED PERSONAL DATA
Tendring DC,http://statistics.data.gov.uk/id/local-authority-district/22UN,Life Opportunities,5480 - HRA - Repair & Maintenance,2018 - Other  Responsive Repairs,08/05/2012,2096086-1,88.9,REDACTED PERSONAL DATA,REDACTED PERSONAL DATA
Tendring DC,http://statistics.data.gov.uk/id/local-authority-district/22UN,Life Opportunities,5480 - HRA - Repair & Maintenance,2018 - Other  Responsive Repairs,08/05/2012,2096087-1,26.5,REDACTED PERSONAL DATA,REDACTED PERSONAL DATA
Tendring DC,http://statistics.data.gov.uk/id/local-authority-district/22UN,Life Opportunities,5480 - HRA - Repair & Maintenance,2018 - Other  Responsive Repairs,29/05/2012,2096820-1,56.2,REDACTED PERSONAL DATA,REDACTED PERSONAL DATA
Tendring DC,http://statistics.data.gov.uk/id/local-authority-district/22UN,Life Opportunities,8540 - Leisure Centre Clacton,4597 - Hired Services - Payments to Contractors,29/05/2012,2096862-1,30,REDACTED PERSONAL DATA,REDACTED PERSONAL DATA
Tendring DC,http://statistics.data.gov.uk/id/local-authority-district/22UN,Life Opportunities,8540 - Leisure Centre Clacton,2900 - Premises Licensing - Public Entertainment,29/05/2012,2096958-1,50,2110331 - GMS Recordings,Music Broadcasting - Lifestyles
Tendring DC,http://statistics.data.gov.uk/id/local-authority-district/22UN,Life Opportunities,5240 - HRA - Managing Tenancies,5242 - Tenant Relations,15/05/2012,2096268-1,10,REDACTED PERSONAL DATA,REDACTED PERSONAL DATA
Tendring DC,http://statistics.data.gov.uk/id/local-authority-district/22UN,Life Opportunities,8540 - Leisure Centre Clacton,2700 - Cleaning Materials,29/05/2012,1048732-1,72.1,2100509 - Granwax Products Ltd,
Tendring DC,http://statistics.data.gov.uk/id/local-authority-district/22UN,Life Opportunities,5480 - HRA - Repair & Maintenance,2017 - Mechanical Equipment /Extract Fans,08/05/2012,1048482-1,90,REDACTED PERSONAL DATA,REDACTED PERSONAL DATA
Tendring DC,http://statistics.data.gov.uk/id/local-authority-district/22UN,Life Opportunities,5480 - HRA - Repair & Maintenance,2017 - Mechanical Equipment /Extract Fans,08/05/2012,2096082-1,50,REDACTED PERSONAL DATA,REDACTED PERSONAL DATA
Tendring DC,http://statistics.data.gov.uk/id/local-authority-district/22UN,Life Opportunities,5480 - HRA - Repair & Maintenance,2017 - Mechanical Equipment /Extract Fans,08/05/2012,2096083-1,50,REDACTED PERSONAL DATA,REDACTED PERSONAL DATA
Tendring DC,http://statistics.data.gov.uk/id/local-authority-district/22UN,Life Opportunities,5480 - HRA - Repair & Maintenance,2017 - Mechanical Equipment /Extract Fans,15/05/2012,2096389-1,100,REDACTED PERSONAL DATA,REDACTED PERSONAL DATA
Tendring DC,http://statistics.data.gov.uk/id/local-authority-district/22UN,Life Opportunities,6040 - Miscellaneous Seafront Activities,2128 - Seafront Retaining Wall,01/05/2012,1048439-1,600,2100660 - Groupbridge Limited,RETAINING WALL-RETENTION
Tendring DC,http://statistics.data.gov.uk/id/local-authority-district/22UN,Life Opportunities,5860 - Manningtree Sports Centre,5300 - Resaleable Items,29/05/2012,2096889-1,72.82,REDACTED PERSONAL DATA,REDACTED PERSONAL DATA
Tendring DC,http://statistics.data.gov.uk/id/local-authority-district/22UN,Life Opportunities,H920 - DFGs,C400 - Grant payments,22/05/2012,2096718-1,3915,REDACTED PERSONAL DATA,REDACTED PERSONAL DATA
Tendring DC,http://statistics.data.gov.uk/id/local-authority-district/22UN,Life Opportunities,H920 - DFGs,C400 - Grant payments,29/05/2012,2096952-1,1598,REDACTED PERSONAL DATA,REDACTED PERSONAL DATA
Tendring DC,http://statistics.data.gov.uk/id/local-authority-district/22UN,Life Opportunities,5240 - HRA - Managing Tenancies,5242 - Tenant Relations,22/05/2012,2096597-1,44,REDACTED PERSONAL DATA,REDACTED PERSONAL DATA
Tendring DC,http://statistics.data.gov.uk/id/local-authority-district/22UN,Life Opportunities,6160 - Princes Theatre,4622 - Hired Services - Artistes and Production Companies,22/05/2012,1048687-1,356.15,2110264 - Hayley Lancaster,CONTRIBUTION FOR PERFORMING IN BORN TO PERFORM 3
Tendring DC,http://statistics.data.gov.uk/id/local-authority-district/22UN,Life Opportunities,8530 - Brightlingsea Swimming Pool,2100 - Building Repairs,15/05/2012,2096383-1,177.15,2100615 - Healey Tool Hire & Sales Limited,
Tendring DC,http://statistics.data.gov.uk/id/local-authority-district/22UN,Life Opportunities,7600 - Tourist Information Centres,9356 - Commission Sales,01/05/2012,2095901-1,247.42,2100635 - Hedingham & District Omnibuses Ltd,March Commission
Tendring DC,http://statistics.data.gov.uk/id/local-authority-district/22UN,Life Opportunities,7600 - Tourist Information Centres,9356 - Commission Sales,15/05/2012,2096422-1,677.73,2100635 - Hedingham & District Omnibuses Ltd,April Commission
Tendring DC,http://statistics.data.gov.uk/id/local-authority-district/22UN,Life Opportunities,8540 - Leisure Centre Clacton,2100 - Building Repairs,29/05/2012,2097015-1,247.68,2100685 - Heron Cleaning Machine Services,
Tendring DC,http://statistics.data.gov.uk/id/local-authority-district/22UN,Life Opportunities,5260 - HRA - Rent Collection And Accounting,4460 - Legal & Professional Expenses,29/05/2012,2096872-1,110,REDACTED COMMERCIAL CONFIDENTIALITY,REDACTED COMMERCIAL CONFIDENTIALITY
Tendring DC,http://statistics.data.gov.uk/id/local-authority-district/22UN,Life Opportunities,5260 - HRA - Rent Collection And Accounting,4460 - Legal & Professional Expenses,29/05/2012,2096873-1,110,REDACTED COMMERCIAL CONFIDENTIALITY,REDACTED COMMERCIAL CONFIDENTIALITY
Tendring DC,http://statistics.data.gov.uk/id/local-authority-district/22UN,Life Opportunities,5260 - HRA - Rent Collection And Accounting,4460 - Legal & Professional Expenses,29/05/2012,2096874-1,45,REDACTED COMMERCIAL CONFIDENTIALITY,REDACTED COMMERCIAL CONFIDENTIALITY
Tendring DC,http://statistics.data.gov.uk/id/local-authority-district/22UN,Life Opportunities,5260 - HRA - Rent Collection And Accounting,4460 - Legal & Professional Expenses,29/05/2012,2096975-1,45,REDACTED PERSONAL DATA,REDACTED PERSONAL DATA
Tendring DC,http://statistics.data.gov.uk/id/local-authority-district/22UN,Life Opportunities,8510 - Dovercourt Swimming Pool & All Weather Facilities,2100 - Building Repairs,15/05/2012,2096440-1,30,2111080 - Homecraft Contracts Electrical Ltd,Dovercourt Pool
Tendring DC,http://statistics.data.gov.uk/id/local-authority-district/22UN,Life Opportunities,8520 - Frinton & Walton Swimming Pool,2100 - Building Repairs,15/05/2012,2096449-1,30,2111080 - Homecraft Contracts Electrical Ltd,Frinton & Walton Pool
Tendring DC,http://statistics.data.gov.uk/id/local-authority-district/22UN,Life Opportunities,H920 - DFGs,C400 - Grant payments,15/05/2012,2096322-1,6560.94,REDACTED PERSONAL DATA,REDACTED PERSONAL DATA
Tendring DC,http://statistics.data.gov.uk/id/local-authority-district/22UN,Life Opportunities,8510 - Dovercourt Swimming Pool & All Weather Facilities,2100 - Building Repairs,15/05/2012,2096441-1,256,2101848 - Homecraft Contracts Ltd,Dovercourt Pool
Tendring DC,http://statistics.data.gov.uk/id/local-authority-district/22UN,Life Opportunities,8520 - Frinton & Walton Swimming Pool,2100 - Building Repairs,15/05/2012,2096448-1,76,2101848 - Homecraft Contracts Ltd,Frinton & Walton Pool
Tendring DC,http://statistics.data.gov.uk/id/local-authority-district/22UN,Life Opportunities,H920 - DFGs,C400 - Grant payments,29/05/2012,2096953-1,4166.79,REDACTED PERSONAL DATA,REDACTED PERSONAL DATA
Tendring DC,http://statistics.data.gov.uk/id/local-authority-district/22UN,Life Opportunities,5480 - HRA - Repair & Maintenance,2064 - Domestic Appliance Repairs,08/05/2012,2096093-1,136,REDACTED PERSONAL DATA,REDACTED PERSONAL DATA
Tendring DC,http://statistics.data.gov.uk/id/local-authority-district/22UN,Life Opportunities,5480 - HRA - Repair & Maintenance,2064 - Domestic Appliance Repairs,08/05/2012,2096094-1,45,REDACTED PERSONAL DATA,REDACTED PERSONAL DATA
Tendring DC,http://statistics.data.gov.uk/id/local-authority-district/22UN,Life Opportunities,5480 - HRA - Repair & Maintenance,2064 - Domestic Appliance Repairs,08/05/2012,2096096-1,86,REDACTED PERSONAL DATA,REDACTED PERSONAL DATA
Tendring DC,http://statistics.data.gov.uk/id/local-authority-district/22UN,Life Opportunities,5480 - HRA - Repair & Maintenance,2014 - Decoration Allowances,01/05/2012,2095968-1,590.49,REDACTED PERSONAL DATA,REDACTED PERSONAL DATA
Tendring DC,http://statistics.data.gov.uk/id/local-authority-district/22UN,Life Opportunities,5480 - HRA - Repair & Maintenance,2014 - Decoration Allowances,15/05/2012,2096390-1,1355.12,REDACTED PERSONAL DATA,REDACTED PERSONAL DATA
Tendring DC,http://statistics.data.gov.uk/id/local-authority-district/22UN,Life Opportunities,8540 - Leisure Centre Clacton,4400 - Maintenance Under Service Agreements,29/05/2012,2097014-1,200,2100702 - ING Lease (UK) Ltd,19/6/12 - 18/9/12
Tendring DC,http://statistics.data.gov.uk/id/local-authority-district/22UN,Life Opportunities,5820 - Harwich Sports Centre,4597 - Hired Services - Payments to Contractors,29/05/2012,1048751-1,700,2107101 - Inspiring Communities Ltd,COACHING SERVICES
Tendring DC,http://statistics.data.gov.uk/id/local-authority-district/22UN,Life Opportunities,6740 - Careline,4448 - Confidential Waste,01/05/2012,2096003-1,7.05,2110936 - IPPlus (UK) Ltd,Ancora Waste
Tendring DC,http://statistics.data.gov.uk/id/local-authority-district/22UN,Life Opportunities,8520 - Frinton & Walton Swimming Pool,4597 - Hired Services - Payments to Contractors,08/05/2012,2096199-1,328,2100724 - IQL UK Ltd,Frinton & Walton Pool
Tendring DC,http://statistics.data.gov.uk/id/local-authority-district/22UN,Life Opportunities,H860 - Disabled Adaptations,C200 - Main Contractor,08/05/2012,1048532-1,297,2105182 - ISM,GREENFIELDS
Tendring DC,http://statistics.data.gov.uk/id/local-authority-district/22UN,Life Opportunities,C611 - Cliff Road Sea Wall,C200 - Main Contractor,08/05/2012,2096247-1,281188.68,2100754 - J Breheny Contractors Ltd,
Tendring DC,http://statistics.data.gov.uk/id/local-authority-district/22UN,Life Opportunities,C611 - Cliff Road Sea Wall,C200 - Main Contractor,22/05/2012,2096741-1,81411.4,2100754 - J Breheny Contractors Ltd,
Tendring DC,http://statistics.data.gov.uk/id/local-authority-district/22UN,Life Opportunities,6160 - Princes Theatre,5160 - Advertising,01/05/2012,2095952-1,115,2107858 - J F Design,Web Banners/Icons
Tendring DC,http://statistics.data.gov.uk/id/local-authority-district/22UN,Life Opportunities,8530 - Brightlingsea Swimming Pool,4900 - Grants,01/05/2012,1048434-1,1625,2111116 - J Meredith & Sons Carpentry,
Tendring DC,http://statistics.data.gov.uk/id/local-authority-district/22UN,Life Opportunities,8510 - Dovercourt Swimming Pool & All Weather Facilities,5300 - Resaleable Items,08/05/2012,1048540-1,-5.5,2100755 - J P Lennard Ltd,DOVERCOURT POOL
Tendring DC,http://statistics.data.gov.uk/id/local-authority-district/22UN,Life Opportunities,8510 - Dovercourt Swimming Pool & All Weather Facilities,5300 - Resaleable Items,29/05/2012,1048691-1,-2.25,2100755 - J P Lennard Ltd,DOVERCOURT POOL
Tendring DC,http://statistics.data.gov.uk/id/local-authority-district/22UN,Life Opportunities,8520 - Frinton & Walton Swimming Pool,5300 - Resaleable Items,29/05/2012,1048735-1,42,2100755 - J P Lennard Ltd,FRINTON WALTON POOL
Tendring DC,http://statistics.data.gov.uk/id/local-authority-district/22UN,Life Opportunities,8540 - Leisure Centre Clacton,4000 - Furniture,29/05/2012,1048792-1,129.04,2100755 - J P Lennard Ltd,
Tendring DC,http://statistics.data.gov.uk/id/local-authority-district/22UN,Life Opportunities,8510 - Dovercourt Swimming Pool & All Weather Facilities,4000 - Furniture,01/05/2012,2095860-1,376.3,2100755 - J P Lennard Ltd,Dovercourt Pool
Tendring DC,http://statistics.data.gov.uk/id/local-authority-district/22UN,Life Opportunities,8510 - Dovercourt Swimming Pool & All Weather Facilities,4200 - Clothing & Uniforms,01/05/2012,2095981-1,58.2,2100755 - J P Lennard Ltd,Dovercourt Pool
Tendring DC,http://statistics.data.gov.uk/id/local-authority-district/22UN,Life Opportunities,5800 - Brightlingsea Sports Centre,4080 - Materials & Consumables,08/05/2012,2096119-1,104.17,2100755 - J P Lennard Ltd,J P Lennard
Tendring DC,http://statistics.data.gov.uk/id/local-authority-district/22UN,Life Opportunities,8520 - Frinton & Walton Swimming Pool,5300 - Resaleable Items,08/05/2012,2096198-1,221.7,2100755 - J P Lennard Ltd,Frinton & Walton Pool
Tendring DC,http://statistics.data.gov.uk/id/local-authority-district/22UN,Life Opportunities,8540 - Leisure Centre Clacton,4000 - Furniture,15/05/2012,2096300-1,33.3,REDACTED PERSONAL DATA,REDACTED PERSONAL DATA
Tendring DC,http://statistics.data.gov.uk/id/local-authority-district/22UN,Life Opportunities,8510 - Dovercourt Swimming Pool & All Weather Facilities,5300 - Resaleable Items,15/05/2012,2096434-1,88.15,2100755 - J P Lennard Ltd,Dovercourt Pool
Tendring DC,http://statistics.data.gov.uk/id/local-authority-district/22UN,Life Opportunities,8540 - Leisure Centre Clacton,4000 - Furniture,29/05/2012,2097016-1,95.85,2100755 - J P Lennard Ltd,
Tendring DC,http://statistics.data.gov.uk/id/local-authority-district/22UN,Life Opportunities,8540 - Leisure Centre Clacton,4597 - Hired Services - Payments to Contractors,15/05/2012,2096377-1,126,2100785 - J W Goding,April
Tendring DC,http://statistics.data.gov.uk/id/local-authority-district/22UN,Life Opportunities,8510 - Dovercourt Swimming Pool & All Weather Facilities,5311 - General Provisions - Vending,08/05/2012,2096182-1,194.78,2109088 - JC Vending Services,Dovercourt Pool
Tendring DC,http://statistics.data.gov.uk/id/local-authority-district/22UN,Life Opportunities,8510 - Dovercourt Swimming Pool & All Weather Facilities,5311 - General Provisions - Vending,08/05/2012,2096183-1,77,2109088 - JC Vending Services,Dovercourt Pool
Tendring DC,http://statistics.data.gov.uk/id/local-authority-district/22UN,Life Opportunities,5480 - HRA - Repair & Maintenance,2018 - Other  Responsive Repairs,08/05/2012,2096090-1,75,REDACTED PERSONAL DATA,REDACTED PERSONAL DATA
Tendring DC,http://statistics.data.gov.uk/id/local-authority-district/22UN,Life Opportunities,5480 - HRA - Repair & Maintenance,2018 - Other  Responsive Repairs,22/05/2012,2096493-1,320,REDACTED PERSONAL DATA,REDACTED PERSONAL DATA
Tendring DC,http://statistics.data.gov.uk/id/local-authority-district/22UN,Life Opportunities,5240 - HRA - Managing Tenancies,5242 - Tenant Relations,15/05/2012,2096270-1,10,REDACTED PERSONAL DATA,REDACTED PERSONAL DATA
Tendring DC,http://statistics.data.gov.uk/id/local-authority-district/22UN,Life Opportunities,5480 - HRA - Repair & Maintenance,2062 - Communal TV Aerials Repairs,22/05/2012,2096640-1,75,REDACTED PERSONAL DATA,REDACTED PERSONAL DATA
Tendring DC,http://statistics.data.gov.uk/id/local-authority-district/22UN,Life Opportunities,8540 - Leisure Centre Clacton,9246 - Lifestyles Card - Monthly DD,15/05/2012,2096279-1,12.5,REDACTED PERSONAL DATA,REDACTED PERSONAL DATA
Tendring DC,http://statistics.data.gov.uk/id/local-authority-district/22UN,Life Opportunities,5240 - HRA - Managing Tenancies,5242 - Tenant Relations,15/05/2012,2096265-1,10,REDACTED PERSONAL DATA,REDACTED PERSONAL DATA
Tendring DC,http://statistics.data.gov.uk/id/local-authority-district/22UN,Life Opportunities,5240 - HRA - Managing Tenancies,5242 - Tenant Relations,29/05/2012,2096869-1,10,REDACTED PERSONAL DATA,REDACTED PERSONAL DATA
Tendring DC,http://statistics.data.gov.uk/id/local-authority-district/22UN,Life Opportunities,8540 - Leisure Centre Clacton,5500 - Miscellaneous Expenses,29/05/2012,1048790-1,75.25,2107243 - Juice for Life Ltd,W/E 13.5.12
Tendring DC,http://statistics.data.gov.uk/id/local-authority-district/22UN,Life Opportunities,8540 - Leisure Centre Clacton,4597 - Hired Services - Payments to Contractors,29/05/2012,1048791-1,165,2107243 - Juice for Life Ltd,W/E 13-5-12
Tendring DC,http://statistics.data.gov.uk/id/local-authority-district/22UN,Life Opportunities,8540 - Leisure Centre Clacton,4597 - Hired Services - Payments to Contractors,01/05/2012,2095854-1,146.25,2107243 - Juice for Life Ltd,w/e 15/4/12
Tendring DC,http://statistics.data.gov.uk/id/local-authority-district/22UN,Life Opportunities,8540 - Leisure Centre Clacton,5500 - Miscellaneous Expenses,01/05/2012,2095855-1,56.15,2107243 - Juice for Life Ltd,w/e 15/4/12
Tendring DC,http://statistics.data.gov.uk/id/local-authority-district/22UN,Life Opportunities,8540 - Leisure Centre Clacton,4597 - Hired Services - Payments to Contractors,08/05/2012,2096231-1,250,REDACTED PERSONAL DATA,REDACTED PERSONAL DATA
Tendring DC,http://statistics.data.gov.uk/id/local-authority-district/22UN,Life Opportunities,8540 - Leisure Centre Clacton,5500 - Miscellaneous Expenses,08/05/2012,2096232-1,64.7,REDACTED PERSONAL DATA,REDACTED PERSONAL DATA
Tendring DC,http://statistics.data.gov.uk/id/local-authority-district/22UN,Life Opportunities,8540 - Leisure Centre Clacton,5500 - Miscellaneous Expenses,15/05/2012,2096302-1,87.4,2107243 - Juice for Life Ltd,w/e 29/4/12
Tendring DC,http://statistics.data.gov.uk/id/local-authority-district/22UN,Life Opportunities,8540 - Leisure Centre Clacton,4597 - Hired Services - Payments to Contractors,15/05/2012,2096303-1,272.5,2107243 - Juice for Life Ltd,w/e 29/4/12
Tendring DC,http://statistics.data.gov.uk/id/local-authority-district/22UN,Life Opportunities,8540 - Leisure Centre Clacton,5500 - Miscellaneous Expenses,22/05/2012,2096669-1,54.25,2107243 - Juice for Life Ltd,w/e 6/5/12
Tendring DC,http://statistics.data.gov.uk/id/local-authority-district/22UN,Life Opportunities,8540 - Leisure Centre Clacton,4597 - Hired Services - Payments to Contractors,22/05/2012,2096670-1,241.25,2107243 - Juice for Life Ltd,w/e 6-5-12
Tendring DC,http://statistics.data.gov.uk/id/local-authority-district/22UN,Life Opportunities,8540 - Leisure Centre Clacton,4597 - Hired Services - Payments to Contractors,29/05/2012,2096979-1,235,REDACTED PERSONAL DATA,REDACTED PERSONAL DATA
Tendring DC,http://statistics.data.gov.uk/id/local-authority-district/22UN,Life Opportunities,8540 - Leisure Centre Clacton,5500 - Miscellaneous Expenses,29/05/2012,2096980-1,66,REDACTED PERSONAL DATA,REDACTED PERSONAL DATA
Tendring DC,http://statistics.data.gov.uk/id/local-authority-district/22UN,Life Opportunities,5480 - HRA - Repair & Maintenance,2064 - Domestic Appliance Repairs,22/05/2012,2096489-1,20,REDACTED PERSONAL DATA,REDACTED PERSONAL DATA
Tendring DC,http://statistics.data.gov.uk/id/local-authority-district/22UN,Life Opportunities,5480 - HRA - Repair & Maintenance,2064 - Domestic Appliance Repairs,22/05/2012,2096490-1,60,REDACTED PERSONAL DATA,REDACTED PERSONAL DATA
Tendring DC,http://statistics.data.gov.uk/id/local-authority-district/22UN,Life Opportunities,5480 - HRA - Repair & Maintenance,2064 - Domestic Appliance Repairs,22/05/2012,2096491-1,45,REDACTED PERSONAL DATA,REDACTED PERSONAL DATA
Tendring DC,http://statistics.data.gov.uk/id/local-authority-district/22UN,Life Opportunities,5480 - HRA - Repair & Maintenance,2064 - Domestic Appliance Repairs,22/05/2012,2096492-1,450,REDACTED PERSONAL DATA,REDACTED PERSONAL DATA
Tendring DC,http://statistics.data.gov.uk/id/local-authority-district/22UN,Life Opportunities,5480 - HRA - Repair & Maintenance,2064 - Domestic Appliance Repairs,29/05/2012,2096791-1,45,REDACTED PERSONAL DATA,REDACTED PERSONAL DATA
Tendring DC,http://statistics.data.gov.uk/id/local-authority-district/22UN,Life Opportunities,5480 - HRA - Repair & Maintenance,2064 - Domestic Appliance Repairs,29/05/2012,2096792-1,45,REDACTED PERSONAL DATA,REDACTED PERSONAL DATA
Tendring DC,http://statistics.data.gov.uk/id/local-authority-district/22UN,Life Opportunities,5860 - Manningtree Sports Centre,4040 - Equipment & Tools,29/05/2012,1048727-1,36.54,2100820 - Kent Blaxill & Co Ltd,PAINT
Tendring DC,http://statistics.data.gov.uk/id/local-authority-district/22UN,Life Opportunities,8530 - Brightlingsea Swimming Pool,4900 - Grants,01/05/2012,2095857-1,727,2100820 - Kent Blaxill & Co Ltd,
Tendring DC,http://statistics.data.gov.uk/id/local-authority-district/22UN,Life Opportunities,8530 - Brightlingsea Swimming Pool,4900 - Grants,01/05/2012,2095858-1,40,2100820 - Kent Blaxill & Co Ltd,
Tendring DC,http://statistics.data.gov.uk/id/local-authority-district/22UN,Life Opportunities,5880 - Management Of Sport & Leisure Facilities,2100 - Building Repairs,01/05/2012,2095956-1,28.92,2100820 - Kent Blaxill & Co Ltd,Stormshield Base
Tendring DC,http://statistics.data.gov.uk/id/local-authority-district/22UN,Life Opportunities,8530 - Brightlingsea Swimming Pool,4900 - Grants,08/05/2012,2096200-1,46.86,2100820 - Kent Blaxill & Co Ltd,
Tendring DC,http://statistics.data.gov.uk/id/local-authority-district/22UN,Life Opportunities,5860 - Manningtree Sports Centre,2100 - Building Repairs,22/05/2012,2096566-1,123.09,2100820 - Kent Blaxill & Co Ltd,Paint and Stopcock Key
Tendring DC,http://statistics.data.gov.uk/id/local-authority-district/22UN,Life Opportunities,5820 - Harwich Sports Centre,2308 - Energy Costs - Gas (Including LPG),29/05/2012,1048749-1,551.88,2105075 - Kent County Council,GAS BILL
Tendring DC,http://statistics.data.gov.uk/id/local-authority-district/22UN,Life Opportunities,5820 - Harwich Sports Centre,2308 - Energy Costs - Gas (Including LPG),01/05/2012,2095970-1,785.19,2105075 - Kent County Council,Gas
Tendring DC,http://statistics.data.gov.uk/id/local-authority-district/22UN,Life Opportunities,5820 - Harwich Sports Centre,4597 - Hired Services - Payments to Contractors,08/05/2012,2096179-1,1040,2112137 - Kevin L Bax,Maintenance of Courts
Tendring DC,http://statistics.data.gov.uk/id/local-authority-district/22UN,Life Opportunities,6160 - Princes Theatre,5160 - Advertising,08/05/2012,2096023-1,301.5,2100850 - KidAround Ltd,Summer Issue Advert
Tendring DC,http://statistics.data.gov.uk/id/local-authority-district/22UN,Life Opportunities,5820 - Harwich Sports Centre,5300 - Resaleable Items,01/05/2012,2095979-1,134.85,2100870 - Kingswood Leisure Services Ltd,Sales Stock
Tendring DC,http://statistics.data.gov.uk/id/local-authority-district/22UN,Life Opportunities,5820 - Harwich Sports Centre,4040 - Equipment & Tools,29/05/2012,2096887-1,76.15,REDACTED PERSONAL DATA,REDACTED PERSONAL DATA
Tendring DC,http://statistics.data.gov.uk/id/local-authority-district/22UN,Life Opportunities,5820 - Harwich Sports Centre,5300 - Resaleable Items,29/05/2012,2096888-1,101.9,REDACTED PERSONAL DATA,REDACTED PERSONAL DATA
Tendring DC,http://statistics.data.gov.uk/id/local-authority-district/22UN,Life Opportunities,5860 - Manningtree Sports Centre,4601 - Hired services - Cleaning,29/05/2012,1048693-1,-85,2100851 - KO-SHEEN Contract Cleaning Ltd,CREDIT FOR CONTRACT CLEANING
Tendring DC,http://statistics.data.gov.uk/id/local-authority-district/22UN,Life Opportunities,5860 - Manningtree Sports Centre,4601 - Hired services - Cleaning,15/05/2012,2096375-1,174.25,2100851 - KO-SHEEN Contract Cleaning Ltd,Contract Cleaning February
Tendring DC,http://statistics.data.gov.uk/id/local-authority-district/22UN,Life Opportunities,5860 - Manningtree Sports Centre,4601 - Hired services - Cleaning,15/05/2012,2096425-1,212.5,2100851 - KO-SHEEN Contract Cleaning Ltd,Contract Cleaning February
Tendring DC,http://statistics.data.gov.uk/id/local-authority-district/22UN,Life Opportunities,5360 - HRA - Sheltered Units,4601 - Hired services - Cleaning,22/05/2012,2096649-1,588.88,2100851 - KO-SHEEN Contract Cleaning Ltd,Cleaning @ Belmans - April
Tendring DC,http://statistics.data.gov.uk/id/local-authority-district/22UN,Life Opportunities,5360 - HRA - Sheltered Units,4601 - Hired services - Cleaning,22/05/2012,2096650-1,357,2100851 - KO-SHEEN Contract Cleaning Ltd,Cleaning @ Spendells
Tendring DC,http://statistics.data.gov.uk/id/local-authority-district/22UN,Life Opportunities,5860 - Manningtree Sports Centre,4601 - Hired services - Cleaning,29/05/2012,2096891-1,323,REDACTED PERSONAL DATA,REDACTED PERSONAL DATA
Tendring DC,http://statistics.data.gov.uk/id/local-authority-district/22UN,Life Opportunities,5800 - Brightlingsea Sports Centre,2100 - Building Repairs,15/05/2012,2096276-1,20,REDACTED PERSONAL DATA,REDACTED PERSONAL DATA
Tendring DC,http://statistics.data.gov.uk/id/local-authority-district/22UN,Life Opportunities,5800 - Brightlingsea Sports Centre,2100 - Building Repairs,15/05/2012,2096277-1,52.5,REDACTED PERSONAL DATA,REDACTED PERSONAL DATA
Tendring DC,http://statistics.data.gov.uk/id/local-authority-district/22UN,Life Opportunities,7680 - Tour De Tendring,5500 - Miscellaneous Expenses,29/05/2012,1048719-1,607.5,2100893 - Leisure Hire Marquees Ltd,MARQUEE SUPPLY TDT
Tendring DC,http://statistics.data.gov.uk/id/local-authority-district/22UN,Life Opportunities,5800 - Brightlingsea Sports Centre,4000 - Furniture,08/05/2012,2096186-1,214.3,2111918 - LeisureTek Fitness Ltd,Schwinn & Stairmaster
Tendring DC,http://statistics.data.gov.uk/id/local-authority-district/22UN,Life Opportunities,5800 - Brightlingsea Sports Centre,2100 - Building Repairs,29/05/2012,1048789-1,690.93,2100805 - Life Fitness (UK) Ltd,LIFE FITNESS
Tendring DC,http://statistics.data.gov.uk/id/local-authority-district/22UN,Life Opportunities,5800 - Brightlingsea Sports Centre,2100 - Building Repairs,08/05/2012,2096120-1,351.6,2100805 - Life Fitness (UK) Ltd,Life Fitness
Tendring DC,http://statistics.data.gov.uk/id/local-authority-district/22UN,Life Opportunities,5240 - HRA - Managing Tenancies,5242 - Tenant Relations,15/05/2012,2096266-1,10,REDACTED PERSONAL DATA,REDACTED PERSONAL DATA
Tendring DC,http://statistics.data.gov.uk/id/local-authority-district/22UN,Life Opportunities,6160 - Princes Theatre,4622 - Hired Services - Artistes and Production Companies,22/05/2012,1048688-1,423.15,2112261 - Lisa Hills,CONTRIBUTION FOR PERFROMING IN BORN TO PERFORM 3
Tendring DC,http://statistics.data.gov.uk/id/local-authority-district/22UN,Life Opportunities,5860 - Manningtree Sports Centre,4597 - Hired Services - Payments to Contractors,22/05/2012,2096565-1,110,2112059 - Louise Sanders,Pilates Instructor
Tendring DC,http://statistics.data.gov.uk/id/local-authority-district/22UN,Life Opportunities,6160 - Princes Theatre,4080 - Materials & Consumables,29/05/2012,1048726-1,119,REDACTED PERSONAL DATA,REDACTED PERSONAL DATA
Tendring DC,http://statistics.data.gov.uk/id/local-authority-district/22UN,Life Opportunities,1650 - Building Services Service Unit,4300 - Printing & Stationery,01/05/2012,1048432-1,-1.95,2110099 - Lyreco UK Ltd,2 D RING BINDER
Tendring DC,http://statistics.data.gov.uk/id/local-authority-district/22UN,Life Opportunities,1050 - Leisure Service Unit,4300 - Printing & Stationery,08/05/2012,1048447-1,63.9,2110099 - Lyreco UK Ltd,STATIONERY
Tendring DC,http://statistics.data.gov.uk/id/local-authority-district/22UN,Life Opportunities,1050 - Leisure Service Unit,4300 - Printing & Stationery,08/05/2012,1048448-1,27.46,2110099 - Lyreco UK Ltd,STATIONERY
Tendring DC,http://statistics.data.gov.uk/id/local-authority-district/22UN,Life Opportunities,7220 - Election Expenses,4486 - Election Expenses,15/05/2012,1048545-1,113.43,2110099 - Lyreco UK Ltd,ELECTORAL LAMINATOR
Tendring DC,http://statistics.data.gov.uk/id/local-authority-district/22UN,Life Opportunities,8510 - Dovercourt Swimming Pool & All Weather Facilities,4300 - Printing & Stationery,01/05/2012,2095859-1,75.08,2110099 - Lyreco UK Ltd,Dovercourt Pool
Tendring DC,http://statistics.data.gov.uk/id/local-authority-district/22UN,Life Opportunities,5240 - HRA - Managing Tenancies,4312 - Tenancy Stationery,08/05/2012,2096016-1,35.73,REDACTED COMMERCIAL CONFIDENTIALITY,REDACTED COMMERCIAL CONFIDENTIALITY
Tendring DC,http://statistics.data.gov.uk/id/local-authority-district/22UN,Life Opportunities,5240 - HRA - Managing Tenancies,4312 - Tenancy Stationery,08/05/2012,2096017-1,4.9,REDACTED COMMERCIAL CONFIDENTIALITY,REDACTED COMMERCIAL CONFIDENTIALITY
Tendring DC,http://statistics.data.gov.uk/id/local-authority-district/22UN,Life Opportunities,1565 - Careline / CCTV Service Unit,4300 - Printing & Stationery,08/05/2012,2096159-1,25.8,2110099 - Lyreco UK Ltd,"Stationery for Barnes, Schemes & Spendells"
Tendring DC,http://statistics.data.gov.uk/id/local-authority-district/22UN,Life Opportunities,5360 - HRA - Sheltered Units,4300 - Printing & Stationery,08/05/2012,2096159-2,1.92,2110099 - Lyreco UK Ltd,"Stationery for Barnes, Schemes & Spendells"
Tendring DC,http://statistics.data.gov.uk/id/local-authority-district/22UN,Life Opportunities,5360 - HRA - Sheltered Units,4300 - Printing & Stationery,08/05/2012,2096159-3,12.2,2110099 - Lyreco UK Ltd,"Stationery for Barnes, Schemes & Spendells"
Tendring DC,http://statistics.data.gov.uk/id/local-authority-district/22UN,Life Opportunities,1565 - Careline / CCTV Service Unit,4300 - Printing & Stationery,08/05/2012,2096160-1,2.98,2110099 - Lyreco UK Ltd,Post It Notes
Tendring DC,http://statistics.data.gov.uk/id/local-authority-district/22UN,Life Opportunities,5240 - HRA - Managing Tenancies,4312 - Tenancy Stationery,15/05/2012,2096411-1,26.8,2110099 - Lyreco UK Ltd,Stationery 27/04/12
Tendring DC,http://statistics.data.gov.uk/id/local-authority-district/22UN,Life Opportunities,5240 - HRA - Managing Tenancies,4312 - Tenancy Stationery,22/05/2012,2096642-1,43.81,REDACTED COMMERCIAL CONFIDENTIALITY,REDACTED COMMERCIAL CONFIDENTIALITY
Tendring DC,http://statistics.data.gov.uk/id/local-authority-district/22UN,Life Opportunities,5240 - HRA - Managing Tenancies,4312 - Tenancy Stationery,29/05/2012,2096828-1,52.75,REDACTED PERSONAL DATA,REDACTED PERSONAL DATA
Tendring DC,http://statistics.data.gov.uk/id/local-authority-district/22UN,Life Opportunities,6160 - Princes Theatre,2100 - Building Repairs,15/05/2012,2096417-1,157.59,2102540 - Maldon District Council,Repair to Hydrorail
Tendring DC,http://statistics.data.gov.uk/id/local-authority-district/22UN,Life Opportunities,8540 - Leisure Centre Clacton,2100 - Building Repairs,15/05/2012,2096379-1,330,2111673 - Maplin Mechanical Services Ltd,
Tendring DC,http://statistics.data.gov.uk/id/local-authority-district/22UN,Life Opportunities,5140 - Homelessness,4680 - Bed & Breakfast Accommodation,08/05/2012,2096091-1,100,REDACTED PERSONAL DATA,REDACTED PERSONAL DATA
Tendring DC,http://statistics.data.gov.uk/id/local-authority-district/22UN,Life Opportunities,5140 - Homelessness,9032 - Homelessness Accommodation Charges,08/05/2012,2096091-2,-10.15,REDACTED PERSONAL DATA,REDACTED PERSONAL DATA
Tendring DC,http://statistics.data.gov.uk/id/local-authority-district/22UN,Life Opportunities,5140 - Homelessness,4680 - Bed & Breakfast Accommodation,08/05/2012,2096092-1,60,REDACTED PERSONAL DATA,REDACTED PERSONAL DATA
Tendring DC,http://statistics.data.gov.uk/id/local-authority-district/22UN,Life Opportunities,5140 - Homelessness,9032 - Homelessness Accommodation Charges,08/05/2012,2096092-2,-6.09,REDACTED PERSONAL DATA,REDACTED PERSONAL DATA
Tendring DC,http://statistics.data.gov.uk/id/local-authority-district/22UN,Life Opportunities,5140 - Homelessness,4680 - Bed & Breakfast Accommodation,22/05/2012,2096479-1,40,REDACTED PERSONAL DATA,REDACTED PERSONAL DATA
Tendring DC,http://statistics.data.gov.uk/id/local-authority-district/22UN,Life Opportunities,5140 - Homelessness,9032 - Homelessness Accommodation Charges,22/05/2012,2096479-2,-4.06,REDACTED PERSONAL DATA,REDACTED PERSONAL DATA
Tendring DC,http://statistics.data.gov.uk/id/local-authority-district/22UN,Life Opportunities,5140 - Homelessness,4680 - Bed & Breakfast Accommodation,22/05/2012,2096480-1,140,REDACTED PERSONAL DATA,REDACTED PERSONAL DATA
Tendring DC,http://statistics.data.gov.uk/id/local-authority-district/22UN,Life Opportunities,5140 - Homelessness,9032 - Homelessness Accommodation Charges,22/05/2012,2096480-2,-14.18,REDACTED PERSONAL DATA,REDACTED PERSONAL DATA
Tendring DC,http://statistics.data.gov.uk/id/local-authority-district/22UN,Life Opportunities,5140 - Homelessness,4680 - Bed & Breakfast Accommodation,22/05/2012,2096481-1,100,REDACTED PERSONAL DATA,REDACTED PERSONAL DATA
Tendring DC,http://statistics.data.gov.uk/id/local-authority-district/22UN,Life Opportunities,5140 - Homelessness,9032 - Homelessness Accommodation Charges,22/05/2012,2096481-2,-10.15,REDACTED PERSONAL DATA,REDACTED PERSONAL DATA
Tendring DC,http://statistics.data.gov.uk/id/local-authority-district/22UN,Life Opportunities,5140 - Homelessness,4680 - Bed & Breakfast Accommodation,22/05/2012,2096482-1,420,REDACTED PERSONAL DATA,REDACTED PERSONAL DATA
Tendring DC,http://statistics.data.gov.uk/id/local-authority-district/22UN,Life Opportunities,5140 - Homelessness,9032 - Homelessness Accommodation Charges,22/05/2012,2096482-2,-14.18,REDACTED PERSONAL DATA,REDACTED PERSONAL DATA
Tendring DC,http://statistics.data.gov.uk/id/local-authority-district/22UN,Life Opportunities,5140 - Homelessness,4680 - Bed & Breakfast Accommodation,22/05/2012,2096483-1,420,REDACTED PERSONAL DATA,REDACTED PERSONAL DATA
Tendring DC,http://statistics.data.gov.uk/id/local-authority-district/22UN,Life Opportunities,5140 - Homelessness,9032 - Homelessness Accommodation Charges,22/05/2012,2096483-2,-14.18,REDACTED PERSONAL DATA,REDACTED PERSONAL DATA
Tendring DC,http://statistics.data.gov.uk/id/local-authority-district/22UN,Life Opportunities,5140 - Homelessness,4680 - Bed & Breakfast Accommodation,22/05/2012,2096484-1,40,REDACTED PERSONAL DATA,REDACTED PERSONAL DATA
Tendring DC,http://statistics.data.gov.uk/id/local-authority-district/22UN,Life Opportunities,5140 - Homelessness,9032 - Homelessness Accommodation Charges,22/05/2012,2096484-2,-4.7,REDACTED PERSONAL DATA,REDACTED PERSONAL DATA
Tendring DC,http://statistics.data.gov.uk/id/local-authority-district/22UN,Life Opportunities,5140 - Homelessness,4680 - Bed & Breakfast Accommodation,22/05/2012,2096488-1,140,REDACTED PERSONAL DATA,REDACTED PERSONAL DATA
Tendring DC,http://statistics.data.gov.uk/id/local-authority-district/22UN,Life Opportunities,5140 - Homelessness,9032 - Homelessness Accommodation Charges,22/05/2012,2096488-2,-14.18,REDACTED PERSONAL DATA,REDACTED PERSONAL DATA
Tendring DC,http://statistics.data.gov.uk/id/local-authority-district/22UN,Life Opportunities,5140 - Homelessness,4680 - Bed & Breakfast Accommodation,29/05/2012,2096793-1,140,REDACTED PERSONAL DATA,REDACTED PERSONAL DATA
Tendring DC,http://statistics.data.gov.uk/id/local-authority-district/22UN,Life Opportunities,5140 - Homelessness,9032 - Homelessness Accommodation Charges,29/05/2012,2096793-2,-14.18,REDACTED PERSONAL DATA,REDACTED PERSONAL DATA
Tendring DC,http://statistics.data.gov.uk/id/local-authority-district/22UN,Life Opportunities,5140 - Homelessness,4680 - Bed & Breakfast Accommodation,29/05/2012,2096794-1,420,REDACTED PERSONAL DATA,REDACTED PERSONAL DATA
Tendring DC,http://statistics.data.gov.uk/id/local-authority-district/22UN,Life Opportunities,5140 - Homelessness,9032 - Homelessness Accommodation Charges,29/05/2012,2096794-2,-14.18,REDACTED PERSONAL DATA,REDACTED PERSONAL DATA
Tendring DC,http://statistics.data.gov.uk/id/local-authority-district/22UN,Life Opportunities,5140 - Homelessness,4683 - Other Homelessness Expenses,22/05/2012,2096730-1,165.23,REDACTED PERSONAL DATA,REDACTED PERSONAL DATA
Tendring DC,http://statistics.data.gov.uk/id/local-authority-district/22UN,Life Opportunities,5240 - HRA - Managing Tenancies,5242 - Tenant Relations,15/05/2012,2096262-1,10,REDACTED PERSONAL DATA,REDACTED PERSONAL DATA
Tendring DC,http://statistics.data.gov.uk/id/local-authority-district/22UN,Life Opportunities,7520 - Tourism Publicity Marketing Promotion,5160 - Advertising,22/05/2012,2096573-1,250,2109596 - Metropolis Business Media,The Pass
Tendring DC,http://statistics.data.gov.uk/id/local-authority-district/22UN,Life Opportunities,5140 - Homelessness,4683 - Other Homelessness Expenses,29/05/2012,1048800-1,156.86,REDACTED PERSONAL DATA,REDACTED PERSONAL DATA
Tendring DC,http://statistics.data.gov.uk/id/local-authority-district/22UN,Life Opportunities,5140 - Homelessness,4683 - Other Homelessness Expenses,29/05/2012,1048802-1,378.8,REDACTED PERSONAL DATA,REDACTED PERSONAL DATA
Tendring DC,http://statistics.data.gov.uk/id/local-authority-district/22UN,Life Opportunities,5360 - HRA - Sheltered Units,2308 - Energy Costs - Gas (Including LPG),22/05/2012,2096723-1,85.75,REDACTED PERSONAL DATA,REDACTED PERSONAL DATA
Tendring DC,http://statistics.data.gov.uk/id/local-authority-district/22UN,Life Opportunities,9920 - HRA Balance Sheet,B860 - Housing Rents - Cash,01/05/2012,2095907-1,866.83,REDACTED PERSONAL DATA,REDACTED PERSONAL DATA
Tendring DC,http://statistics.data.gov.uk/id/local-authority-district/22UN,Life Opportunities,9920 - HRA Balance Sheet,B860 - Housing Rents - Cash,08/05/2012,2096137-1,268.26,REDACTED PERSONAL DATA,REDACTED PERSONAL DATA
Tendring DC,http://statistics.data.gov.uk/id/local-authority-district/22UN,Life Opportunities,9920 - HRA Balance Sheet,B860 - Housing Rents - Cash,22/05/2012,2096707-1,148.12,REDACTED PERSONAL DATA,REDACTED PERSONAL DATA
Tendring DC,http://statistics.data.gov.uk/id/local-authority-district/22UN,Life Opportunities,8540 - Leisure Centre Clacton,4597 - Hired Services - Payments to Contractors,15/05/2012,2096333-1,22.5,REDACTED PERSONAL DATA,REDACTED PERSONAL DATA
Tendring DC,http://statistics.data.gov.uk/id/local-authority-district/22UN,Life Opportunities,9920 - HRA Balance Sheet,B860 - Housing Rents - Cash,01/05/2012,2095909-1,236.94,REDACTED PERSONAL DATA,REDACTED PERSONAL DATA
Tendring DC,http://statistics.data.gov.uk/id/local-authority-district/22UN,Life Opportunities,9920 - HRA Balance Sheet,B860 - Housing Rents - Cash,22/05/2012,2096703-1,98.83,REDACTED PERSONAL DATA,REDACTED PERSONAL DATA
Tendring DC,http://statistics.data.gov.uk/id/local-authority-district/22UN,Life Opportunities,9920 - HRA Balance Sheet,B860 - Housing Rents - Cash,15/05/2012,2096309-1,70,REDACTED PERSONAL DATA,REDACTED PERSONAL DATA
Tendring DC,http://statistics.data.gov.uk/id/local-authority-district/22UN,Life Opportunities,9920 - HRA Balance Sheet,B860 - Housing Rents - Cash,15/05/2012,2096312-1,256,REDACTED PERSONAL DATA,REDACTED PERSONAL DATA
Tendring DC,http://statistics.data.gov.uk/id/local-authority-district/22UN,Life Opportunities,9920 - HRA Balance Sheet,B860 - Housing Rents - Cash,15/05/2012,2096317-1,159.83,REDACTED PERSONAL DATA,REDACTED PERSONAL DATA
Tendring DC,http://statistics.data.gov.uk/id/local-authority-district/22UN,Life Opportunities,9920 - HRA Balance Sheet,B860 - Housing Rents - Cash,15/05/2012,2096310-1,52.45,REDACTED PERSONAL DATA,REDACTED PERSONAL DATA
Tendring DC,http://statistics.data.gov.uk/id/local-authority-district/22UN,Life Opportunities,9920 - HRA Balance Sheet,B860 - Housing Rents - Cash,22/05/2012,2096766-1,639.04,REDACTED COMMERCIAL CONFIDENTIALITY,REDACTED COMMERCIAL CONFIDENTIALITY
Tendring DC,http://statistics.data.gov.uk/id/local-authority-district/22UN,Life Opportunities,8540 - Leisure Centre Clacton,4400 - Maintenance Under Service Agreements,15/05/2012,2096376-1,60.4,2104791 - Mobile Mini Uk Ltd,11/4/12 - 8/5/12
Tendring DC,http://statistics.data.gov.uk/id/local-authority-district/22UN,Life Opportunities,5480 - HRA - Repair & Maintenance,2073 - Smoke Alarm Service/Testing,22/05/2012,2096744-1,1056.56,2111370 - Morrison Facilities Services,Gas Service & Repair
Tendring DC,http://statistics.data.gov.uk/id/local-authority-district/22UN,Life Opportunities,5480 - HRA - Repair & Maintenance,2075 - Gas Service Contract Servicing/Testing (Domestic I,22/05/2012,2096744-2,3440.88,2111370 - Morrison Facilities Services,Gas Service & Repair
Tendring DC,http://statistics.data.gov.uk/id/local-authority-district/22UN,Life Opportunities,5480 - HRA - Repair & Maintenance,2076 - Gas Service Contract Other Refurbishment/Repairs (,22/05/2012,2096744-3,4568.92,2111370 - Morrison Facilities Services,Gas Service & Repair
Tendring DC,http://statistics.data.gov.uk/id/local-authority-district/22UN,Life Opportunities,5240 - HRA - Managing Tenancies,5242 - Tenant Relations,15/05/2012,2096269-1,10,REDACTED PERSONAL DATA,REDACTED PERSONAL DATA
Tendring DC,http://statistics.data.gov.uk/id/local-authority-district/22UN,Life Opportunities,9920 - HRA Balance Sheet,B860 - Housing Rents - Cash,15/05/2012,2096315-1,25.28,REDACTED PERSONAL DATA,REDACTED PERSONAL DATA
Tendring DC,http://statistics.data.gov.uk/id/local-authority-district/22UN,Life Opportunities,9920 - HRA Balance Sheet,B860 - Housing Rents - Cash,01/05/2012,2095905-1,79.48,REDACTED PERSONAL DATA,REDACTED PERSONAL DATA
Tendring DC,http://statistics.data.gov.uk/id/local-authority-district/22UN,Life Opportunities,9920 - HRA Balance Sheet,B860 - Housing Rents - Cash,08/05/2012,2096141-1,61.74,REDACTED PERSONAL DATA,REDACTED PERSONAL DATA
Tendring DC,http://statistics.data.gov.uk/id/local-authority-district/22UN,Life Opportunities,9920 - HRA Balance Sheet,B860 - Housing Rents - Cash,08/05/2012,2096140-1,279.4,REDACTED PERSONAL DATA,REDACTED PERSONAL DATA
Tendring DC,http://statistics.data.gov.uk/id/local-authority-district/22UN,Life Opportunities,9920 - HRA Balance Sheet,B860 - Housing Rents - Cash,08/05/2012,2096139-1,165.17,REDACTED PERSONAL DATA,REDACTED PERSONAL DATA
Tendring DC,http://statistics.data.gov.uk/id/local-authority-district/22UN,Life Opportunities,9920 - HRA Balance Sheet,B860 - Housing Rents - Cash,01/05/2012,2095906-1,1706.34,REDACTED PERSONAL DATA,REDACTED PERSONAL DATA
Tendring DC,http://statistics.data.gov.uk/id/local-authority-district/22UN,Life Opportunities,9920 - HRA Balance Sheet,B860 - Housing Rents - Cash,29/05/2012,2096875-1,66.2,REDACTED PERSONAL DATA,REDACTED PERSONAL DATA
Tendring DC,http://statistics.data.gov.uk/id/local-authority-district/22UN,Life Opportunities,9920 - HRA Balance Sheet,B860 - Housing Rents - Cash,15/05/2012,2096311-1,111.43,REDACTED PERSONAL DATA,REDACTED PERSONAL DATA
Tendring DC,http://statistics.data.gov.uk/id/local-authority-district/22UN,Life Opportunities,9920 - HRA Balance Sheet,B860 - Housing Rents - Cash,29/05/2012,2096877-1,48.56,REDACTED PERSONAL DATA,REDACTED PERSONAL DATA
Tendring DC,http://statistics.data.gov.uk/id/local-authority-district/22UN,Life Opportunities,9920 - HRA Balance Sheet,B860 - Housing Rents - Cash,08/05/2012,2096129-1,141.12,REDACTED PERSONAL DATA,REDACTED PERSONAL DATA
Tendring DC,http://statistics.data.gov.uk/id/local-authority-district/22UN,Life Opportunities,9920 - HRA Balance Sheet,B860 - Housing Rents - Cash,22/05/2012,2096706-1,109.91,REDACTED PERSONAL DATA,REDACTED PERSONAL DATA
Tendring DC,http://statistics.data.gov.uk/id/local-authority-district/22UN,Life Opportunities,8520 - Frinton & Walton Swimming Pool,9252 - Active Option Card,08/05/2012,2096142-1,53.12,REDACTED PERSONAL DATA,REDACTED PERSONAL DATA
Tendring DC,http://statistics.data.gov.uk/id/local-authority-district/22UN,Life Opportunities,9920 - HRA Balance Sheet,B860 - Housing Rents - Cash,22/05/2012,2096708-1,137.22,REDACTED PERSONAL DATA,REDACTED PERSONAL DATA
Tendring DC,http://statistics.data.gov.uk/id/local-authority-district/22UN,Life Opportunities,9920 - HRA Balance Sheet,B860 - Housing Rents - Cash,01/05/2012,2095908-1,209.93,REDACTED PERSONAL DATA,REDACTED PERSONAL DATA
Tendring DC,http://statistics.data.gov.uk/id/local-authority-district/22UN,Life Opportunities,9920 - HRA Balance Sheet,B860 - Housing Rents - Cash,22/05/2012,1048657-1,251.04,REDACTED PERSONAL DATA,REDACTED PERSONAL DATA
Tendring DC,http://statistics.data.gov.uk/id/local-authority-district/22UN,Life Opportunities,9920 - HRA Balance Sheet,B860 - Housing Rents - Cash,22/05/2012,2096702-1,117.52,REDACTED PERSONAL DATA,REDACTED PERSONAL DATA
Tendring DC,http://statistics.data.gov.uk/id/local-authority-district/22UN,Life Opportunities,5240 - HRA - Managing Tenancies,5242 - Tenant Relations,15/05/2012,2096264-1,10,REDACTED PERSONAL DATA,REDACTED PERSONAL DATA
Tendring DC,http://statistics.data.gov.uk/id/local-authority-district/22UN,Life Opportunities,9920 - HRA Balance Sheet,B860 - Housing Rents - Cash,22/05/2012,2096704-1,332.96,REDACTED PERSONAL DATA,REDACTED PERSONAL DATA
Tendring DC,http://statistics.data.gov.uk/id/local-authority-district/22UN,Life Opportunities,9920 - HRA Balance Sheet,B860 - Housing Rents - Cash,29/05/2012,2096876-1,36.84,REDACTED PERSONAL DATA,REDACTED PERSONAL DATA
Tendring DC,http://statistics.data.gov.uk/id/local-authority-district/22UN,Life Opportunities,9920 - HRA Balance Sheet,B860 - Housing Rents - Cash,22/05/2012,2096705-1,14.78,REDACTED PERSONAL DATA,REDACTED PERSONAL DATA
Tendring DC,http://statistics.data.gov.uk/id/local-authority-district/22UN,Life Opportunities,9920 - HRA Balance Sheet,B860 - Housing Rents - Cash,15/05/2012,2096314-1,28.98,REDACTED PERSONAL DATA,REDACTED PERSONAL DATA
Tendring DC,http://statistics.data.gov.uk/id/local-authority-district/22UN,Life Opportunities,6160 - Princes Theatre,4040 - Equipment & Tools,01/05/2012,2095947-1,834.58,2103915 - MRL Productions,Mounts & Cabling
Tendring DC,http://statistics.data.gov.uk/id/local-authority-district/22UN,Life Opportunities,9920 - HRA Balance Sheet,B860 - Housing Rents - Cash,22/05/2012,1048655-1,26.87,REDACTED PERSONAL DATA,REDACTED PERSONAL DATA
Tendring DC,http://statistics.data.gov.uk/id/local-authority-district/22UN,Life Opportunities,9920 - HRA Balance Sheet,B860 - Housing Rents - Cash,15/05/2012,2096313-1,156.47,REDACTED PERSONAL DATA,REDACTED PERSONAL DATA
Tendring DC,http://statistics.data.gov.uk/id/local-authority-district/22UN,Life Opportunities,5240 - HRA - Managing Tenancies,5242 - Tenant Relations,15/05/2012,2096271-1,10,REDACTED PERSONAL DATA,REDACTED PERSONAL DATA
Tendring DC,http://statistics.data.gov.uk/id/local-authority-district/22UN,Life Opportunities,8510 - Dovercourt Swimming Pool & All Weather Facilities,1700 - Training - Courses,29/05/2012,2096864-1,80,REDACTED PERSONAL DATA,REDACTED PERSONAL DATA
Tendring DC,http://statistics.data.gov.uk/id/local-authority-district/22UN,Life Opportunities,8540 - Leisure Centre Clacton,9228 - Swimming Lessons,29/05/2012,2096969-1,43,REDACTED PERSONAL DATA,REDACTED PERSONAL DATA
Tendring DC,http://statistics.data.gov.uk/id/local-authority-district/22UN,Life Opportunities,7300 - Licencing,9087 - Licence Fees,01/05/2012,2095913-1,584,REDACTED PERSONAL DATA,REDACTED PERSONAL DATA
Tendring DC,http://statistics.data.gov.uk/id/local-authority-district/22UN,Life Opportunities,9920 - HRA Balance Sheet,B860 - Housing Rents - Cash,08/05/2012,2096143-1,137.1,REDACTED PERSONAL DATA,REDACTED PERSONAL DATA
Tendring DC,http://statistics.data.gov.uk/id/local-authority-district/22UN,Life Opportunities,9920 - HRA Balance Sheet,B860 - Housing Rents - Cash,01/05/2012,2095903-1,192.34,REDACTED PERSONAL DATA,REDACTED PERSONAL DATA
Tendring DC,http://statistics.data.gov.uk/id/local-authority-district/22UN,Life Opportunities,9920 - HRA Balance Sheet,B860 - Housing Rents - Cash,15/05/2012,2096318-1,751.9,REDACTED PERSONAL DATA,REDACTED PERSONAL DATA
Tendring DC,http://statistics.data.gov.uk/id/local-authority-district/22UN,Life Opportunities,9920 - HRA Balance Sheet,B860 - Housing Rents - Cash,15/05/2012,2096320-1,751.9,REDACTED PERSONAL DATA,REDACTED PERSONAL DATA
Tendring DC,http://statistics.data.gov.uk/id/local-authority-district/22UN,Life Opportunities,9920 - HRA Balance Sheet,B860 - Housing Rents - Cash,22/05/2012,1048656-1,29.85,REDACTED PERSONAL DATA,REDACTED PERSONAL DATA
Tendring DC,http://statistics.data.gov.uk/id/local-authority-district/22UN,Life Opportunities,9920 - HRA Balance Sheet,B860 - Housing Rents - Cash,29/05/2012,2096974-1,598.5,REDACTED PERSONAL DATA,REDACTED PERSONAL DATA
Tendring DC,http://statistics.data.gov.uk/id/local-authority-district/22UN,Life Opportunities,9920 - HRA Balance Sheet,B860 - Housing Rents - Cash,15/05/2012,2096319-1,100,REDACTED PERSONAL DATA,REDACTED PERSONAL DATA
Tendring DC,http://statistics.data.gov.uk/id/local-authority-district/22UN,Life Opportunities,9920 - HRA Balance Sheet,B860 - Housing Rents - Cash,22/05/2012,2096712-1,18.68,REDACTED PERSONAL DATA,REDACTED PERSONAL DATA
Tendring DC,http://statistics.data.gov.uk/id/local-authority-district/22UN,Life Opportunities,5140 - Homelessness,4683 - Other Homelessness Expenses,22/05/2012,2096726-1,595,REDACTED PERSONAL DATA,REDACTED PERSONAL DATA
Tendring DC,http://statistics.data.gov.uk/id/local-authority-district/22UN,Life Opportunities,9920 - HRA Balance Sheet,B860 - Housing Rents - Cash,08/05/2012,2096138-1,185.24,REDACTED PERSONAL DATA,REDACTED PERSONAL DATA
Tendring DC,http://statistics.data.gov.uk/id/local-authority-district/22UN,Life Opportunities,9920 - HRA Balance Sheet,B860 - Housing Rents - Cash,01/05/2012,2095904-1,72.74,REDACTED PERSONAL DATA,REDACTED PERSONAL DATA
Tendring DC,http://statistics.data.gov.uk/id/local-authority-district/22UN,Life Opportunities,8520 - Frinton & Walton Swimming Pool,9252 - Active Option Card,15/05/2012,2096331-1,54.92,REDACTED PERSONAL DATA,REDACTED PERSONAL DATA
Tendring DC,http://statistics.data.gov.uk/id/local-authority-district/22UN,Life Opportunities,8540 - Leisure Centre Clacton,9200 - Course Income,22/05/2012,2096733-1,37.5,REDACTED PERSONAL DATA,REDACTED PERSONAL DATA
Tendring DC,http://statistics.data.gov.uk/id/local-authority-district/22UN,Life Opportunities,9920 - HRA Balance Sheet,B860 - Housing Rents - Cash,08/05/2012,2096135-1,87.99,REDACTED PERSONAL DATA,REDACTED PERSONAL DATA
Tendring DC,http://statistics.data.gov.uk/id/local-authority-district/22UN,Life Opportunities,9920 - HRA Balance Sheet,B860 - Housing Rents - Cash,22/05/2012,1048658-1,56.94,REDACTED PERSONAL DATA,REDACTED PERSONAL DATA
Tendring DC,http://statistics.data.gov.uk/id/local-authority-district/22UN,Life Opportunities,5240 - HRA - Managing Tenancies,6620 - Under Occupation Incentive Scheme,15/05/2012,2096259-1,1000,REDACTED PERSONAL DATA,REDACTED PERSONAL DATA
Tendring DC,http://statistics.data.gov.uk/id/local-authority-district/22UN,Life Opportunities,9920 - HRA Balance Sheet,B860 - Housing Rents - Cash,22/05/2012,2096711-1,35.96,REDACTED PERSONAL DATA,REDACTED PERSONAL DATA
Tendring DC,http://statistics.data.gov.uk/id/local-authority-district/22UN,Life Opportunities,9920 - HRA Balance Sheet,B860 - Housing Rents - Cash,22/05/2012,2096710-1,351.56,REDACTED PERSONAL DATA,REDACTED PERSONAL DATA
Tendring DC,http://statistics.data.gov.uk/id/local-authority-district/22UN,Life Opportunities,5240 - HRA - Managing Tenancies,5242 - Tenant Relations,15/05/2012,2096267-1,10,REDACTED PERSONAL DATA,REDACTED PERSONAL DATA
Tendring DC,http://statistics.data.gov.uk/id/local-authority-district/22UN,Life Opportunities,5240 - HRA - Managing Tenancies,5242 - Tenant Relations,29/05/2012,2096868-1,10,REDACTED PERSONAL DATA,REDACTED PERSONAL DATA
Tendring DC,http://statistics.data.gov.uk/id/local-authority-district/22UN,Life Opportunities,9920 - HRA Balance Sheet,B860 - Housing Rents - Cash,08/05/2012,2096136-1,100,REDACTED PERSONAL DATA,REDACTED PERSONAL DATA
Tendring DC,http://statistics.data.gov.uk/id/local-authority-district/22UN,Life Opportunities,9920 - HRA Balance Sheet,B860 - Housing Rents - Cash,15/05/2012,2096316-1,6.6,REDACTED PERSONAL DATA,REDACTED PERSONAL DATA
Tendring DC,http://statistics.data.gov.uk/id/local-authority-district/22UN,Life Opportunities,8540 - Leisure Centre Clacton,2100 - Building Repairs,29/05/2012,2096977-1,50,REDACTED PERSONAL DATA,REDACTED PERSONAL DATA
Tendring DC,http://statistics.data.gov.uk/id/local-authority-district/22UN,Life Opportunities,6160 - Princes Theatre,9356 - Commission Sales,15/05/2012,1048590-1,1197.25,2110032 - National Express Ltd,APRIL COMMISSION
Tendring DC,http://statistics.data.gov.uk/id/local-authority-district/22UN,Life Opportunities,7600 - Tourist Information Centres,9356 - Commission Sales,15/05/2012,1048620-1,-151.74,2110032 - National Express Ltd,APRIL DUPLICATED TICKETS
Tendring DC,http://statistics.data.gov.uk/id/local-authority-district/22UN,Life Opportunities,H706 - Kitchen & Bathroom Replacement,C200 - Main Contractor,29/05/2012,2097019-1,51695.2,2100988 - Needhams Building Contractors Limited,Kitchen Refurb Phase II
Tendring DC,http://statistics.data.gov.uk/id/local-authority-district/22UN,Life Opportunities,6160 - Princes Theatre,5160 - Advertising,29/05/2012,1048722-1,67.9,2100989 - Newsquest (London) Ltd,THEATRE ADVERTS
Tendring DC,http://statistics.data.gov.uk/id/local-authority-district/22UN,Life Opportunities,6160 - Princes Theatre,5160 - Advertising,29/05/2012,1048723-1,122.22,2100989 - Newsquest (London) Ltd,THEATRE ADVERTS
Tendring DC,http://statistics.data.gov.uk/id/local-authority-district/22UN,Life Opportunities,6160 - Princes Theatre,5160 - Advertising,29/05/2012,1048724-1,68.6,2100989 - Newsquest (London) Ltd,THEATRE ADVERTS
Tendring DC,http://statistics.data.gov.uk/id/local-authority-district/22UN,Life Opportunities,8540 - Leisure Centre Clacton,5160 - Advertising,29/05/2012,1048742-1,225,2100989 - Newsquest (London) Ltd,
Tendring DC,http://statistics.data.gov.uk/id/local-authority-district/22UN,Life Opportunities,8540 - Leisure Centre Clacton,5160 - Advertising,15/05/2012,2096304-1,450,2100989 - Newsquest (London) Ltd,
Tendring DC,http://statistics.data.gov.uk/id/local-authority-district/22UN,Life Opportunities,6160 - Princes Theatre,5160 - Advertising,15/05/2012,2096418-1,143.5,2100989 - Newsquest (London) Ltd,Theatre Ads
Tendring DC,http://statistics.data.gov.uk/id/local-authority-district/22UN,Life Opportunities,6160 - Princes Theatre,5160 - Advertising,15/05/2012,2096419-1,151.5,2100989 - Newsquest (London) Ltd,Theate Ads
Tendring DC,http://statistics.data.gov.uk/id/local-authority-district/22UN,Life Opportunities,6160 - Princes Theatre,5160 - Advertising,22/05/2012,2096572-1,121.5,2100989 - Newsquest (London) Ltd,Theatre - May
Tendring DC,http://statistics.data.gov.uk/id/local-authority-district/22UN,Life Opportunities,5140 - Homelessness,4683 - Other Homelessness Expenses,29/05/2012,1048801-1,700,REDACTED PERSONAL DATA,REDACTED PERSONAL DATA
Tendring DC,http://statistics.data.gov.uk/id/local-authority-district/22UN,Life Opportunities,5140 - Homelessness,4683 - Other Homelessness Expenses,15/05/2012,2096392-1,120,REDACTED PERSONAL DATA,REDACTED PERSONAL DATA
Tendring DC,http://statistics.data.gov.uk/id/local-authority-district/22UN,Life Opportunities,5240 - HRA - Managing Tenancies,4644 - Energy Performance Certificate Costs,15/05/2012,2096391-1,795,REDACTED PERSONAL DATA,REDACTED PERSONAL DATA
Tendring DC,http://statistics.data.gov.uk/id/local-authority-district/22UN,Life Opportunities,8520 - Frinton & Walton Swimming Pool,4400 - Maintenance Under Service Agreements,29/05/2012,1048737-1,103,2108273 - Nursing & Hygeine Maintenance,FRINTON WALTON POOL
Tendring DC,http://statistics.data.gov.uk/id/local-authority-district/22UN,Life Opportunities,5140 - Homelessness,4683 - Other Homelessness Expenses,22/05/2012,2096724-1,364.72,REDACTED PERSONAL DATA,REDACTED PERSONAL DATA
Tendring DC,http://statistics.data.gov.uk/id/local-authority-district/22UN,Life Opportunities,1650 - Building Services Service Unit,4040 - Equipment & Tools,22/05/2012,2096517-1,423.13,REDACTED PERSONAL DATA,REDACTED PERSONAL DATA
Tendring DC,http://statistics.data.gov.uk/id/local-authority-district/22UN,Life Opportunities,1670 - Engineering Services Manager,4040 - Equipment & Tools,22/05/2012,2096517-2,423.13,REDACTED PERSONAL DATA,REDACTED PERSONAL DATA
Tendring DC,http://statistics.data.gov.uk/id/local-authority-district/22UN,Life Opportunities,1650 - Building Services Service Unit,4300 - Printing & Stationery,22/05/2012,2096518-1,2.04,REDACTED PERSONAL DATA,REDACTED PERSONAL DATA
Tendring DC,http://statistics.data.gov.uk/id/local-authority-district/22UN,Life Opportunities,1670 - Engineering Services Manager,4300 - Printing & Stationery,22/05/2012,2096518-2,2.05,REDACTED PERSONAL DATA,REDACTED PERSONAL DATA
Tendring DC,http://statistics.data.gov.uk/id/local-authority-district/22UN,Life Opportunities,1650 - Building Services Service Unit,4040 - Equipment & Tools,22/05/2012,2096519-1,23.61,REDACTED PERSONAL DATA,REDACTED PERSONAL DATA
Tendring DC,http://statistics.data.gov.uk/id/local-authority-district/22UN,Life Opportunities,1670 - Engineering Services Manager,4040 - Equipment & Tools,22/05/2012,2096519-2,23.62,REDACTED PERSONAL DATA,REDACTED PERSONAL DATA
Tendring DC,http://statistics.data.gov.uk/id/local-authority-district/22UN,Life Opportunities,5140 - Homelessness,4683 - Other Homelessness Expenses,22/05/2012,2096729-1,272,REDACTED PERSONAL DATA,REDACTED PERSONAL DATA
Tendring DC,http://statistics.data.gov.uk/id/local-authority-district/22UN,Life Opportunities,H920 - DFGs,C400 - Grant payments,22/05/2012,2096719-1,5340.52,REDACTED PERSONAL DATA,REDACTED PERSONAL DATA
Tendring DC,http://statistics.data.gov.uk/id/local-authority-district/22UN,Life Opportunities,8510 - Dovercourt Swimming Pool & All Weather Facilities,5311 - General Provisions - Vending,08/05/2012,1048441-1,141.85,2101083 - Osgood Smith,DOVERCOURT POOL
Tendring DC,http://statistics.data.gov.uk/id/local-authority-district/22UN,Life Opportunities,8510 - Dovercourt Swimming Pool & All Weather Facilities,5311 - General Provisions - Vending,08/05/2012,1048442-1,7.54,2101083 - Osgood Smith,DOVERCOURT POOL
Tendring DC,http://statistics.data.gov.uk/id/local-authority-district/22UN,Life Opportunities,5860 - Manningtree Sports Centre,5311 - General Provisions - Vending,08/05/2012,1048451-1,252.89,2101083 - Osgood Smith,VENDING MACHINE SUPPLIES
Tendring DC,http://statistics.data.gov.uk/id/local-authority-district/22UN,Life Opportunities,5860 - Manningtree Sports Centre,5311 - General Provisions - Vending,08/05/2012,1048451-2,-2.5,2101083 - Osgood Smith,VENDING MACHINE SUPPLIES
Tendring DC,http://statistics.data.gov.uk/id/local-authority-district/22UN,Life Opportunities,5860 - Manningtree Sports Centre,5311 - General Provisions - Vending,08/05/2012,1048460-1,299.37,2101083 - Osgood Smith,VENDING MACHINE SUPPLIES
Tendring DC,http://statistics.data.gov.uk/id/local-authority-district/22UN,Life Opportunities,5820 - Harwich Sports Centre,5311 - General Provisions - Vending,15/05/2012,1048617-1,36.73,2101083 - Osgood Smith,CANTEEN GOODS
Tendring DC,http://statistics.data.gov.uk/id/local-authority-district/22UN,Life Opportunities,5820 - Harwich Sports Centre,5311 - General Provisions - Vending,29/05/2012,1048690-1,-15.49,2101083 - Osgood Smith,CANTEEN SUPPLY
Tendring DC,http://statistics.data.gov.uk/id/local-authority-district/22UN,Life Opportunities,8510 - Dovercourt Swimming Pool & All Weather Facilities,5311 - General Provisions - Vending,29/05/2012,1048733-1,38.08,2101083 - Osgood Smith,DOVERCOURT POOL
Tendring DC,http://statistics.data.gov.uk/id/local-authority-district/22UN,Life Opportunities,8510 - Dovercourt Swimming Pool & All Weather Facilities,5311 - General Provisions - Vending,29/05/2012,1048734-1,173.99,2101083 - Osgood Smith,DOVERCOURT POOL
Tendring DC,http://statistics.data.gov.uk/id/local-authority-district/22UN,Life Opportunities,5800 - Brightlingsea Sports Centre,5316 - General Provisions,29/05/2012,1048747-1,146.64,2101083 - Osgood Smith,OSGOOD SMITH
Tendring DC,http://statistics.data.gov.uk/id/local-authority-district/22UN,Life Opportunities,5820 - Harwich Sports Centre,5311 - General Provisions - Vending,29/05/2012,1048748-1,69.19,2101083 - Osgood Smith,CANTEEN SUPPLIES
Tendring DC,http://statistics.data.gov.uk/id/local-authority-district/22UN,Life Opportunities,8520 - Frinton & Walton Swimming Pool,5311 - General Provisions - Vending,29/05/2012,1048787-1,310.71,2101083 - Osgood Smith,FRINTON WALTON POOL
Tendring DC,http://statistics.data.gov.uk/id/local-authority-district/22UN,Life Opportunities,8520 - Frinton & Walton Swimming Pool,5311 - General Provisions - Vending,29/05/2012,1048788-1,2.87,2101083 - Osgood Smith,FRINTON WALTON POOL
Tendring DC,http://statistics.data.gov.uk/id/local-authority-district/22UN,Life Opportunities,5800 - Brightlingsea Sports Centre,5316 - General Provisions,01/05/2012,2095972-1,140.56,2101083 - Osgood Smith,Osgood Smith
Tendring DC,http://statistics.data.gov.uk/id/local-authority-district/22UN,Life Opportunities,5820 - Harwich Sports Centre,5311 - General Provisions - Vending,01/05/2012,2095973-1,48.06,2101083 - Osgood Smith,Canteen Goods
Tendring DC,http://statistics.data.gov.uk/id/local-authority-district/22UN,Life Opportunities,8520 - Frinton & Walton Swimming Pool,5311 - General Provisions - Vending,01/05/2012,2095974-1,359.16,2101083 - Osgood Smith,Frinton Walton Pool
Tendring DC,http://statistics.data.gov.uk/id/local-authority-district/22UN,Life Opportunities,8520 - Frinton & Walton Swimming Pool,5311 - General Provisions - Vending,01/05/2012,2095975-1,8,2101083 - Osgood Smith,Frinton Walton Pool
Tendring DC,http://statistics.data.gov.uk/id/local-authority-district/22UN,Life Opportunities,8520 - Frinton & Walton Swimming Pool,5311 - General Provisions - Vending,01/05/2012,2095976-1,269.08,2101083 - Osgood Smith,Frinton Walton Pool
Tendring DC,http://statistics.data.gov.uk/id/local-authority-district/22UN,Life Opportunities,8520 - Frinton & Walton Swimming Pool,5311 - General Provisions - Vending,01/05/2012,2095977-1,31.08,2101083 - Osgood Smith,Frinton & Walton Pool
Tendring DC,http://statistics.data.gov.uk/id/local-authority-district/22UN,Life Opportunities,8520 - Frinton & Walton Swimming Pool,5311 - General Provisions - Vending,01/05/2012,2095978-1,90.2,2101083 - Osgood Smith,Frinton Walton Pool
Tendring DC,http://statistics.data.gov.uk/id/local-authority-district/22UN,Life Opportunities,5820 - Harwich Sports Centre,5311 - General Provisions - Vending,08/05/2012,2096180-1,122.07,2101083 - Osgood Smith,Canteen Goods
Tendring DC,http://statistics.data.gov.uk/id/local-authority-district/22UN,Life Opportunities,8540 - Leisure Centre Clacton,5300 - Resaleable Items,15/05/2012,2096306-1,53.31,2101083 - Osgood Smith,
Tendring DC,http://statistics.data.gov.uk/id/local-authority-district/22UN,Life Opportunities,8520 - Frinton & Walton Swimming Pool,5311 - General Provisions - Vending,15/05/2012,2096427-1,77.71,2101083 - Osgood Smith,Frinton & Walton
Tendring DC,http://statistics.data.gov.uk/id/local-authority-district/22UN,Life Opportunities,8520 - Frinton & Walton Swimming Pool,5311 - General Provisions - Vending,15/05/2012,2096428-1,14.18,2101083 - Osgood Smith,Frinton & Walton Pool
Tendring DC,http://statistics.data.gov.uk/id/local-authority-district/22UN,Life Opportunities,8520 - Frinton & Walton Swimming Pool,5311 - General Provisions - Vending,15/05/2012,2096429-1,64.45,2101083 - Osgood Smith,Frinton & Walton Pool
Tendring DC,http://statistics.data.gov.uk/id/local-authority-district/22UN,Life Opportunities,8520 - Frinton & Walton Swimming Pool,5311 - General Provisions - Vending,15/05/2012,2096430-1,252.65,2101083 - Osgood Smith,Frinton & Walton Pool
Tendring DC,http://statistics.data.gov.uk/id/local-authority-district/22UN,Life Opportunities,6160 - Princes Theatre,5306 - Confectionary,22/05/2012,2096561-1,43.57,2101083 - Osgood Smith,Confectionery - Theatre
Tendring DC,http://statistics.data.gov.uk/id/local-authority-district/22UN,Life Opportunities,5860 - Manningtree Sports Centre,5311 - General Provisions - Vending,22/05/2012,2096562-1,184.91,2101083 - Osgood Smith,Vending Machines Supplies
Tendring DC,http://statistics.data.gov.uk/id/local-authority-district/22UN,Life Opportunities,5860 - Manningtree Sports Centre,5311 - General Provisions - Vending,22/05/2012,2096562-2,-2.5,2101083 - Osgood Smith,Vending Machines Supplies
Tendring DC,http://statistics.data.gov.uk/id/local-authority-district/22UN,Life Opportunities,5860 - Manningtree Sports Centre,5311 - General Provisions - Vending,22/05/2012,2096563-1,184.36,2101083 - Osgood Smith,Vending Machine Supplies
Tendring DC,http://statistics.data.gov.uk/id/local-authority-district/22UN,Life Opportunities,5860 - Manningtree Sports Centre,5311 - General Provisions - Vending,22/05/2012,2096584-1,52.49,2101083 - Osgood Smith,Vending Supplies
Tendring DC,http://statistics.data.gov.uk/id/local-authority-district/22UN,Life Opportunities,5860 - Manningtree Sports Centre,5311 - General Provisions - Vending,22/05/2012,2096584-2,-7.5,2101083 - Osgood Smith,Vending Supplies
Tendring DC,http://statistics.data.gov.uk/id/local-authority-district/22UN,Life Opportunities,5820 - Harwich Sports Centre,5311 - General Provisions - Vending,29/05/2012,2096835-1,95.25,REDACTED PERSONAL DATA,REDACTED PERSONAL DATA
Tendring DC,http://statistics.data.gov.uk/id/local-authority-district/22UN,Life Opportunities,5820 - Harwich Sports Centre,5311 - General Provisions - Vending,29/05/2012,2096836-1,18.54,REDACTED PERSONAL DATA,REDACTED PERSONAL DATA
Tendring DC,http://statistics.data.gov.uk/id/local-authority-district/22UN,Life Opportunities,8520 - Frinton & Walton Swimming Pool,1700 - Training - Courses,29/05/2012,2096865-1,37.5,REDACTED PERSONAL DATA,REDACTED PERSONAL DATA
Tendring DC,http://statistics.data.gov.uk/id/local-authority-district/22UN,Life Opportunities,8540 - Leisure Centre Clacton,2300 - Energy Costs - Fuel Oil,29/05/2012,1048739-1,1937.7,2107113 - Pace Fuelcare Ltd,
Tendring DC,http://statistics.data.gov.uk/id/local-authority-district/22UN,Life Opportunities,8540 - Leisure Centre Clacton,2300 - Energy Costs - Fuel Oil,29/05/2012,1048795-1,1696.63,2107113 - Pace Fuelcare Ltd,
Tendring DC,http://statistics.data.gov.uk/id/local-authority-district/22UN,Life Opportunities,8540 - Leisure Centre Clacton,2300 - Energy Costs - Fuel Oil,08/05/2012,2096201-1,2083.41,2107113 - Pace Fuelcare Ltd,
Tendring DC,http://statistics.data.gov.uk/id/local-authority-district/22UN,Life Opportunities,8540 - Leisure Centre Clacton,2300 - Energy Costs - Fuel Oil,15/05/2012,2096295-1,2048.4,REDACTED PERSONAL DATA,REDACTED PERSONAL DATA
Tendring DC,http://statistics.data.gov.uk/id/local-authority-district/22UN,Life Opportunities,8540 - Leisure Centre Clacton,2300 - Energy Costs - Fuel Oil,22/05/2012,2096663-1,1689.07,2107113 - Pace Fuelcare Ltd,
Tendring DC,http://statistics.data.gov.uk/id/local-authority-district/22UN,Life Opportunities,5480 - HRA - Repair & Maintenance,2095 - Other General Planned Repairs,22/05/2012,1048623-1,76,REDACTED PERSONAL DATA,REDACTED PERSONAL DATA
Tendring DC,http://statistics.data.gov.uk/id/local-authority-district/22UN,Life Opportunities,5480 - HRA - Repair & Maintenance,2095 - Other General Planned Repairs,22/05/2012,1048623-2,42,REDACTED PERSONAL DATA,REDACTED PERSONAL DATA
Tendring DC,http://statistics.data.gov.uk/id/local-authority-district/22UN,Life Opportunities,5480 - HRA - Repair & Maintenance,2017 - Mechanical Equipment /Extract Fans,29/05/2012,2096802-1,230,2101519 - Paul N Smith,West Street
Tendring DC,http://statistics.data.gov.uk/id/local-authority-district/22UN,Life Opportunities,5480 - HRA - Repair & Maintenance,2017 - Mechanical Equipment /Extract Fans,29/05/2012,2096802-2,60,2101519 - Paul N Smith,West Street
Tendring DC,http://statistics.data.gov.uk/id/local-authority-district/22UN,Life Opportunities,H870 - Cash Incentive Scheme,C400 - Grant payments,21/05/2012,2096559-1,18000,REDACTED PERSONAL DATA,REDACTED PERSONAL DATA
Tendring DC,http://statistics.data.gov.uk/id/local-authority-district/22UN,Life Opportunities,7520 - Tourism Publicity Marketing Promotion,5160 - Advertising,29/05/2012,2096963-1,575,2112223 - Peter Johnson Entertainments Ltd,Circus Whiz
Tendring DC,http://statistics.data.gov.uk/id/local-authority-district/22UN,Life Opportunities,8540 - Leisure Centre Clacton,5160 - Advertising,29/05/2012,1048740-1,150,2101097 - Peter Lockyer Advertising Ltd,
Tendring DC,http://statistics.data.gov.uk/id/local-authority-district/22UN,Life Opportunities,6355 - Community Activity Network,4597 - Hired Services - Payments to Contractors,01/05/2012,2095980-1,870.45,2101068 - Physical Company,Equipment for Body Conditioning Class
Tendring DC,http://statistics.data.gov.uk/id/local-authority-district/22UN,Life Opportunities,6355 - Community Activity Network,4597 - Hired Services - Payments to Contractors,22/05/2012,2096564-1,83.4,2101068 - Physical Company,Equipment for Class - Dumbells
Tendring DC,http://statistics.data.gov.uk/id/local-authority-district/22UN,Life Opportunities,5420 - HRA - Communal Cleaning,2706 - Communal Areas Cleaning Expenses,08/05/2012,2096019-1,3521.58,REDACTED COMMERCIAL CONFIDENTIALITY,REDACTED COMMERCIAL CONFIDENTIALITY
Tendring DC,http://statistics.data.gov.uk/id/local-authority-district/22UN,Life Opportunities,1661 - Other Apportionable Overheads - Corporate Support,4700 - Postage,01/05/2012,2095912-1,5050,REDACTED PERSONAL DATA,REDACTED PERSONAL DATA
Tendring DC,http://statistics.data.gov.uk/id/local-authority-district/22UN,Life Opportunities,8510 - Dovercourt Swimming Pool & All Weather Facilities,2100 - Building Repairs,15/05/2012,1048614-1,1700,2101039 - Plastica Limited,DOVERCOURT POOL
Tendring DC,http://statistics.data.gov.uk/id/local-authority-district/22UN,Life Opportunities,H820 - Asbestos Management,C200 - Main Contractor,15/05/2012,2096471-1,6670.19,2110537 - Plasufix Ltd,External Cladding Replacement
Tendring DC,http://statistics.data.gov.uk/id/local-authority-district/22UN,Life Opportunities,H720 - Environmental Improvements,C200 - Main Contractor,15/05/2012,2096471-2,6670.19,2110537 - Plasufix Ltd,External Cladding Replacement
Tendring DC,http://statistics.data.gov.uk/id/local-authority-district/22UN,Life Opportunities,7520 - Tourism Publicity Marketing Promotion,5160 - Advertising,08/05/2012,2096106-1,90,2102483 - Plum Publishing Ltd,Coach Tourism Advert
Tendring DC,http://statistics.data.gov.uk/id/local-authority-district/22UN,Life Opportunities,7680 - Tour De Tendring,5500 - Miscellaneous Expenses,29/05/2012,1048728-1,615,2104933 - Plush Mobile Toilets Ltd,MOBILE TOILET TDT
Tendring DC,http://statistics.data.gov.uk/id/local-authority-district/22UN,Life Opportunities,5480 - HRA - Repair & Maintenance,2001 - Responsive Maintenance - Concrete And Other Extern,15/05/2012,2096385-1,1195,2107848 - PMC Landscapes,Manthorpe House
Tendring DC,http://statistics.data.gov.uk/id/local-authority-district/22UN,Life Opportunities,5480 - HRA - Repair & Maintenance,2001 - Responsive Maintenance - Concrete And Other Extern,15/05/2012,2096386-1,1025,2107848 - PMC Landscapes,Harcourt Ave
Tendring DC,http://statistics.data.gov.uk/id/local-authority-district/22UN,Life Opportunities,8530 - Brightlingsea Swimming Pool,2100 - Building Repairs,15/05/2012,2096297-1,2623.3,REDACTED PERSONAL DATA,REDACTED PERSONAL DATA
Tendring DC,http://statistics.data.gov.uk/id/local-authority-district/22UN,Life Opportunities,6160 - Princes Theatre,5160 - Advertising,29/05/2012,2096839-1,555,REDACTED PERSONAL DATA,REDACTED PERSONAL DATA
Tendring DC,http://statistics.data.gov.uk/id/local-authority-district/22UN,Life Opportunities,7520 - Tourism Publicity Marketing Promotion,5160 - Advertising,01/05/2012,2095943-1,750,REDACTED PERSONAL DATA,REDACTED PERSONAL DATA
Tendring DC,http://statistics.data.gov.uk/id/local-authority-district/22UN,Life Opportunities,6160 - Princes Theatre,5160 - Advertising,01/05/2012,2095943-2,750,REDACTED PERSONAL DATA,REDACTED PERSONAL DATA
Tendring DC,http://statistics.data.gov.uk/id/local-authority-district/22UN,Life Opportunities,7520 - Tourism Publicity Marketing Promotion,5160 - Advertising,29/05/2012,2096863-1,420,REDACTED PERSONAL DATA,REDACTED PERSONAL DATA
Tendring DC,http://statistics.data.gov.uk/id/local-authority-district/22UN,Life Opportunities,9900 - General Fund Balance Sheet,B382 - Rechargeable Works - Other,08/05/2012,1048534-1,361.02,REDACTED COMMERCIAL CONFIDENTIALITY,REDACTED COMMERCIAL CONFIDENTIALITY
Tendring DC,http://statistics.data.gov.uk/id/local-authority-district/22UN,Life Opportunities,8520 - Frinton & Walton Swimming Pool,4400 - Maintenance Under Service Agreements,15/05/2012,1048615-1,117.76,2101090 - Ricoh UK Ltd,FRINTON & WALTON POOL
Tendring DC,http://statistics.data.gov.uk/id/local-authority-district/22UN,Life Opportunities,1650 - Building Services Service Unit,4400 - Maintenance Under Service Agreements,29/05/2012,1048698-1,79.17,2101090 - Ricoh UK Ltd,COLOUR COPIER
Tendring DC,http://statistics.data.gov.uk/id/local-authority-district/22UN,Life Opportunities,1670 - Engineering Services Manager,4400 - Maintenance Under Service Agreements,29/05/2012,1048698-2,79.17,2101090 - Ricoh UK Ltd,COLOUR COPIER
Tendring DC,http://statistics.data.gov.uk/id/local-authority-district/22UN,Life Opportunities,1650 - Building Services Service Unit,4300 - Printing & Stationery,29/05/2012,1048698-3,282.03,2101090 - Ricoh UK Ltd,COLOUR COPIER
Tendring DC,http://statistics.data.gov.uk/id/local-authority-district/22UN,Life Opportunities,1650 - Building Services Service Unit,4300 - Printing & Stationery,29/05/2012,1048698-4,282.02,2101090 - Ricoh UK Ltd,COLOUR COPIER
Tendring DC,http://statistics.data.gov.uk/id/local-authority-district/22UN,Life Opportunities,1650 - Building Services Service Unit,1700 - Training - Courses,22/05/2012,2096520-1,150,REDACTED PERSONAL DATA,REDACTED PERSONAL DATA
Tendring DC,http://statistics.data.gov.uk/id/local-authority-district/22UN,Life Opportunities,8530 - Brightlingsea Swimming Pool,4200 - Clothing & Uniforms,29/05/2012,1048738-1,174.47,2101127 - RLSS UK Enterprises Ltd,
Tendring DC,http://statistics.data.gov.uk/id/local-authority-district/22UN,Life Opportunities,9900 - General Fund Balance Sheet,B382 - Rechargeable Works - Other,01/05/2012,1048435-1,1400.51,2101187 - Roalco Limited,23/4A CURRENTS COMM
Tendring DC,http://statistics.data.gov.uk/id/local-authority-district/22UN,Life Opportunities,9900 - General Fund Balance Sheet,B382 - Rechargeable Works - Other,01/05/2012,1048436-1,1301.15,2101187 - Roalco Limited,2 Current communal
Tendring DC,http://statistics.data.gov.uk/id/local-authority-district/22UN,Life Opportunities,5220 - HRA - Policy & Management,4355 - Books & Periodicals,15/05/2012,2096370-1,82,REDACTED PERSONAL DATA,REDACTED PERSONAL DATA
Tendring DC,http://statistics.data.gov.uk/id/local-authority-district/22UN,Life Opportunities,5240 - HRA - Managing Tenancies,5248 - Estate Management Expenses,15/05/2012,2096371-1,47.8,REDACTED PERSONAL DATA,REDACTED PERSONAL DATA
Tendring DC,http://statistics.data.gov.uk/id/local-authority-district/22UN,Life Opportunities,5240 - HRA - Managing Tenancies,5248 - Estate Management Expenses,15/05/2012,2096372-1,59.75,REDACTED PERSONAL DATA,REDACTED PERSONAL DATA
Tendring DC,http://statistics.data.gov.uk/id/local-authority-district/22UN,Life Opportunities,5480 - HRA - Repair & Maintenance,2000 - Responsive Maintenance - Miscellaneous,15/05/2012,2096472-1,159694.1,2101187 - Roalco Limited,Roalco
Tendring DC,http://statistics.data.gov.uk/id/local-authority-district/22UN,Life Opportunities,5480 - HRA - Repair & Maintenance,2088 - Disabled Adaptations,29/05/2012,2096804-1,121.63,REDACTED PERSONAL DATA,REDACTED PERSONAL DATA
Tendring DC,http://statistics.data.gov.uk/id/local-authority-district/22UN,Life Opportunities,5480 - HRA - Repair & Maintenance,2088 - Disabled Adaptations,29/05/2012,2096805-1,38.44,REDACTED PERSONAL DATA,REDACTED PERSONAL DATA
Tendring DC,http://statistics.data.gov.uk/id/local-authority-district/22UN,Life Opportunities,5480 - HRA - Repair & Maintenance,2088 - Disabled Adaptations,29/05/2012,2096806-1,38.44,REDACTED PERSONAL DATA,REDACTED PERSONAL DATA
Tendring DC,http://statistics.data.gov.uk/id/local-authority-district/22UN,Life Opportunities,5480 - HRA - Repair & Maintenance,2088 - Disabled Adaptations,29/05/2012,2096807-1,51.13,REDACTED PERSONAL DATA,REDACTED PERSONAL DATA
Tendring DC,http://statistics.data.gov.uk/id/local-authority-district/22UN,Life Opportunities,5480 - HRA - Repair & Maintenance,2088 - Disabled Adaptations,29/05/2012,2096808-1,94.12,REDACTED PERSONAL DATA,REDACTED PERSONAL DATA
Tendring DC,http://statistics.data.gov.uk/id/local-authority-district/22UN,Life Opportunities,H800 - Structural Repairs,C200 - Main Contractor,22/05/2012,1048630-1,1126,REDACTED PERSONAL DATA,REDACTED PERSONAL DATA
Tendring DC,http://statistics.data.gov.uk/id/local-authority-district/22UN,Life Opportunities,H800 - Structural Repairs,C200 - Main Contractor,08/05/2012,2096249-1,2033.48,2101893 - Rose Builders Ltd,
Tendring DC,http://statistics.data.gov.uk/id/local-authority-district/22UN,Life Opportunities,5240 - HRA - Managing Tenancies,5242 - Tenant Relations,15/05/2012,2096263-1,10,REDACTED PERSONAL DATA,REDACTED PERSONAL DATA
Tendring DC,http://statistics.data.gov.uk/id/local-authority-district/22UN,Life Opportunities,5240 - HRA - Managing Tenancies,5242 - Tenant Relations,15/05/2012,2096260-1,10,REDACTED PERSONAL DATA,REDACTED PERSONAL DATA
Tendring DC,http://statistics.data.gov.uk/id/local-authority-district/22UN,Life Opportunities,7240 - Electoral Registration Expenses,4700 - Postage,01/05/2012,2095892-1,286.01,2101139 - Royal Mail,Electoral Postage
Tendring DC,http://statistics.data.gov.uk/id/local-authority-district/22UN,Life Opportunities,5240 - HRA - Managing Tenancies,5242 - Tenant Relations,01/05/2012,2095971-1,7.21,REDACTED COMMERCIAL CONFIDENTIALITY,REDACTED COMMERCIAL CONFIDENTIALITY
Tendring DC,http://statistics.data.gov.uk/id/local-authority-district/22UN,Life Opportunities,5240 - HRA - Managing Tenancies,5242 - Tenant Relations,08/05/2012,2096021-1,93.7,REDACTED COMMERCIAL CONFIDENTIALITY,REDACTED COMMERCIAL CONFIDENTIALITY
Tendring DC,http://statistics.data.gov.uk/id/local-authority-district/22UN,Life Opportunities,8540 - Leisure Centre Clacton,2100 - Building Repairs,22/05/2012,1048627-1,236,2109169 - S J Leisure Contractors Ltd,
Tendring DC,http://statistics.data.gov.uk/id/local-authority-district/22UN,Life Opportunities,8520 - Frinton & Walton Swimming Pool,2100 - Building Repairs,08/05/2012,2096097-1,120,REDACTED PERSONAL DATA,REDACTED PERSONAL DATA
Tendring DC,http://statistics.data.gov.uk/id/local-authority-district/22UN,Life Opportunities,H860 - Disabled Adaptations,C200 - Main Contractor,29/05/2012,2096803-1,2025,REDACTED PERSONAL DATA,REDACTED PERSONAL DATA
Tendring DC,http://statistics.data.gov.uk/id/local-authority-district/22UN,Life Opportunities,H860 - Disabled Adaptations,C200 - Main Contractor,29/05/2012,2096803-2,925.96,REDACTED PERSONAL DATA,REDACTED PERSONAL DATA
Tendring DC,http://statistics.data.gov.uk/id/local-authority-district/22UN,Life Opportunities,1090 - Management Team Service Unit,1700 - Training - Courses,22/05/2012,2096570-1,225,REDACTED COMMERCIAL CONFIDENTIALITY,REDACTED COMMERCIAL CONFIDENTIALITY
Tendring DC,http://statistics.data.gov.uk/id/local-authority-district/22UN,Life Opportunities,6160 - Princes Theatre,4622 - Hired Services - Artistes and Production Companies,22/05/2012,1048685-1,332.15,2112251 - Samantha Green,CONTRIBUTION FOR PERFORMING IN BORN TO PERFORM 3
Tendring DC,http://statistics.data.gov.uk/id/local-authority-district/22UN,Life Opportunities,H705 - Window/Door Replacement,C200 - Main Contractor,08/05/2012,1048535-1,45,REDACTED PERSONAL DATA,REDACTED PERSONAL DATA
Tendring DC,http://statistics.data.gov.uk/id/local-authority-district/22UN,Life Opportunities,H705 - Window/Door Replacement,C200 - Main Contractor,15/05/2012,2096473-1,66422.53,2105783 - SBP Ltd,Windows and Doors 11/12
Tendring DC,http://statistics.data.gov.uk/id/local-authority-district/22UN,Life Opportunities,9900 - General Fund Balance Sheet,B382 - Rechargeable Works - Other,08/05/2012,1048537-1,120,REDACTED COMMERCIAL CONFIDENTIALITY,REDACTED COMMERCIAL CONFIDENTIALITY
Tendring DC,http://statistics.data.gov.uk/id/local-authority-district/22UN,Life Opportunities,8540 - Leisure Centre Clacton,2100 - Building Repairs,22/05/2012,2096661-1,102.58,2111488 - Shoretan Leisure,
Tendring DC,http://statistics.data.gov.uk/id/local-authority-district/22UN,Life Opportunities,8540 - Leisure Centre Clacton,5160 - Advertising,29/05/2012,1048797-1,700,2100032 - Signs Made Easy,
Tendring DC,http://statistics.data.gov.uk/id/local-authority-district/22UN,Life Opportunities,8540 - Leisure Centre Clacton,5160 - Advertising,01/05/2012,2095856-1,403.08,2100032 - Signs Made Easy,
Tendring DC,http://statistics.data.gov.uk/id/local-authority-district/22UN,Life Opportunities,5240 - HRA - Managing Tenancies,5248 - Estate Management Expenses,08/05/2012,2096018-1,58.06,REDACTED COMMERCIAL CONFIDENTIALITY,REDACTED COMMERCIAL CONFIDENTIALITY
Tendring DC,http://statistics.data.gov.uk/id/local-authority-district/22UN,Life Opportunities,5800 - Brightlingsea Sports Centre,5160 - Advertising,22/05/2012,2096582-1,69,2103454 - Simad Publications,Look Magazine
Tendring DC,http://statistics.data.gov.uk/id/local-authority-district/22UN,Life Opportunities,6160 - Princes Theatre,4040 - Equipment & Tools,08/05/2012,2096134-1,75.42,REDACTED PERSONAL DATA,REDACTED PERSONAL DATA
Tendring DC,http://statistics.data.gov.uk/id/local-authority-district/22UN,Life Opportunities,6740 - Careline,4710 - Telephones - Charges,22/05/2012,2096651-1,12.77,2108907 - Southern Communications Ltd,Southern Comms - April 12
Tendring DC,http://statistics.data.gov.uk/id/local-authority-district/22UN,Life Opportunities,5360 - HRA - Sheltered Units,4710 - Telephones - Charges,22/05/2012,2096651-10,33.1,2108907 - Southern Communications Ltd,Southern Comms - April 12
Tendring DC,http://statistics.data.gov.uk/id/local-authority-district/22UN,Life Opportunities,5360 - HRA - Sheltered Units,4710 - Telephones - Charges,22/05/2012,2096651-11,33.56,2108907 - Southern Communications Ltd,Southern Comms - April 12
Tendring DC,http://statistics.data.gov.uk/id/local-authority-district/22UN,Life Opportunities,5360 - HRA - Sheltered Units,4710 - Telephones - Charges,22/05/2012,2096651-12,0.65,2108907 - Southern Communications Ltd,Southern Comms - April 12
Tendring DC,http://statistics.data.gov.uk/id/local-authority-district/22UN,Life Opportunities,7000 - CCTV,4718 - Fixed Communication Lines,22/05/2012,2096651-2,63.9,2108907 - Southern Communications Ltd,Southern Comms - April 12
Tendring DC,http://statistics.data.gov.uk/id/local-authority-district/22UN,Life Opportunities,5360 - HRA - Sheltered Units,4710 - Telephones - Charges,22/05/2012,2096651-3,29.02,2108907 - Southern Communications Ltd,Southern Comms - April 12
Tendring DC,http://statistics.data.gov.uk/id/local-authority-district/22UN,Life Opportunities,5360 - HRA - Sheltered Units,4710 - Telephones - Charges,22/05/2012,2096651-4,34.86,2108907 - Southern Communications Ltd,Southern Comms - April 12
Tendring DC,http://statistics.data.gov.uk/id/local-authority-district/22UN,Life Opportunities,5360 - HRA - Sheltered Units,4710 - Telephones - Charges,22/05/2012,2096651-5,33.03,2108907 - Southern Communications Ltd,Southern Comms - April 12
Tendring DC,http://statistics.data.gov.uk/id/local-authority-district/22UN,Life Opportunities,5360 - HRA - Sheltered Units,4710 - Telephones - Charges,22/05/2012,2096651-6,0.59,2108907 - Southern Communications Ltd,Southern Comms - April 12
Tendring DC,http://statistics.data.gov.uk/id/local-authority-district/22UN,Life Opportunities,5360 - HRA - Sheltered Units,4710 - Telephones - Charges,22/05/2012,2096651-7,24.55,2108907 - Southern Communications Ltd,Southern Comms - April 12
Tendring DC,http://statistics.data.gov.uk/id/local-authority-district/22UN,Life Opportunities,5360 - HRA - Sheltered Units,4710 - Telephones - Charges,22/05/2012,2096651-8,0.1,2108907 - Southern Communications Ltd,Southern Comms - April 12
Tendring DC,http://statistics.data.gov.uk/id/local-authority-district/22UN,Life Opportunities,5360 - HRA - Sheltered Units,4710 - Telephones - Charges,22/05/2012,2096651-9,39.53,2108907 - Southern Communications Ltd,Southern Comms - April 12
Tendring DC,http://statistics.data.gov.uk/id/local-authority-district/22UN,Life Opportunities,H860 - Disabled Adaptations,C200 - Main Contractor,08/05/2012,1048533-1,1008.5,REDACTED PERSONAL DATA,REDACTED PERSONAL DATA
Tendring DC,http://statistics.data.gov.uk/id/local-authority-district/22UN,Life Opportunities,5480 - HRA - Repair & Maintenance,2019 - Repair & Maintenance - Keys,08/05/2012,2096080-1,19.01,REDACTED PERSONAL DATA,REDACTED PERSONAL DATA
Tendring DC,http://statistics.data.gov.uk/id/local-authority-district/22UN,Life Opportunities,5480 - HRA - Repair & Maintenance,2019 - Repair & Maintenance - Keys,08/05/2012,2096081-1,52.75,REDACTED PERSONAL DATA,REDACTED PERSONAL DATA
Tendring DC,http://statistics.data.gov.uk/id/local-authority-district/22UN,Life Opportunities,5480 - HRA - Repair & Maintenance,2019 - Repair & Maintenance - Keys,08/05/2012,2096084-1,114.43,REDACTED PERSONAL DATA,REDACTED PERSONAL DATA
Tendring DC,http://statistics.data.gov.uk/id/local-authority-district/22UN,Life Opportunities,5480 - HRA - Repair & Maintenance,2019 - Repair & Maintenance - Keys,22/05/2012,2096641-1,71.69,REDACTED PERSONAL DATA,REDACTED PERSONAL DATA
Tendring DC,http://statistics.data.gov.uk/id/local-authority-district/22UN,Life Opportunities,6160 - Princes Theatre,4040 - Equipment & Tools,08/05/2012,1048443-1,121.47,2101300 - Stage Electrics,LIGHTING EQUIPMENT
Tendring DC,http://statistics.data.gov.uk/id/local-authority-district/22UN,Life Opportunities,6160 - Princes Theatre,4040 - Equipment & Tools,01/05/2012,2095946-1,349.05,2101300 - Stage Electrics,Lamps
Tendring DC,http://statistics.data.gov.uk/id/local-authority-district/22UN,Life Opportunities,6160 - Princes Theatre,4040 - Equipment & Tools,22/05/2012,2096571-1,791.43,2101300 - Stage Electrics,Art Speaker
Tendring DC,http://statistics.data.gov.uk/id/local-authority-district/22UN,Life Opportunities,6160 - Princes Theatre,4000 - Furniture,15/05/2012,2096421-1,625,2109308 - Standing Ovation Entertainments Ltd,Service Costs - Box Office
Tendring DC,http://statistics.data.gov.uk/id/local-authority-district/22UN,Life Opportunities,5480 - HRA - Repair & Maintenance,2069 - Lift/Stairlift Servicing,22/05/2012,2096743-1,1474.34,2101360 - Stannah Lift Services Limited,Lift Services & Repair
Tendring DC,http://statistics.data.gov.uk/id/local-authority-district/22UN,Life Opportunities,5480 - HRA - Repair & Maintenance,2070 - Lift/Stairlift Repairs,22/05/2012,2096743-2,365.18,2101360 - Stannah Lift Services Limited,Lift Services & Repair
Tendring DC,http://statistics.data.gov.uk/id/local-authority-district/22UN,Life Opportunities,5240 - HRA - Managing Tenancies,5242 - Tenant Relations,15/05/2012,2096274-1,10,REDACTED PERSONAL DATA,REDACTED PERSONAL DATA
Tendring DC,http://statistics.data.gov.uk/id/local-authority-district/22UN,Life Opportunities,5240 - HRA - Managing Tenancies,5242 - Tenant Relations,15/05/2012,1048589-1,32,REDACTED PERSONAL DATA,REDACTED PERSONAL DATA
Tendring DC,http://statistics.data.gov.uk/id/local-authority-district/22UN,Life Opportunities,9920 - HRA Balance Sheet,B860 - Housing Rents - Cash,15/05/2012,2096709-1,351.56,REDACTED PERSONAL DATA,REDACTED PERSONAL DATA
Tendring DC,http://statistics.data.gov.uk/id/local-authority-district/22UN,Life Opportunities,5240 - HRA - Managing Tenancies,5242 - Tenant Relations,15/05/2012,2096261-1,10,REDACTED PERSONAL DATA,REDACTED PERSONAL DATA
Tendring DC,http://statistics.data.gov.uk/id/local-authority-district/22UN,Life Opportunities,H920 - DFGs,C400 - Grant payments,22/05/2012,2096713-1,95.12,REDACTED PERSONAL DATA,REDACTED PERSONAL DATA
Tendring DC,http://statistics.data.gov.uk/id/local-authority-district/22UN,Life Opportunities,H920 - DFGs,C400 - Grant payments,22/05/2012,2096714-1,699.46,REDACTED PERSONAL DATA,REDACTED PERSONAL DATA
Tendring DC,http://statistics.data.gov.uk/id/local-authority-district/22UN,Life Opportunities,H920 - DFGs,C400 - Grant payments,22/05/2012,2096715-1,228.73,REDACTED PERSONAL DATA,REDACTED PERSONAL DATA
